Directorate,Department,Expenditure Type,Ref.Doc.1,Vendor Name,Expenditure Amount (exc VAT),Payment Date
Assurance,Assurance Management,Other Services,10008464,GOVNET COMMUNICATIONS,395.00,10/09/2014
Assurance,Governance,Advertising for staff,20011464,TMP (UK) LTD,"1,382.30",12/09/2014
Assurance,Governance,Advertising for staff,20011465,TMP (UK) LTD,"1,382.30",12/09/2014
Assurance,Governance,Conference Expenses,10009487,LONDON COUNCILS,300.00,23/09/2014
Assurance,Governance,Furniture-Purchase-Repair,10007783,RAYNERS CATERING EQUIPMENT,"-1,680.00",03/09/2014
Assurance,Governance,Furniture-Purchase-Repair,10007782,RAYNERS CATERING EQUIPMENT,"2,926.60",03/09/2014
Assurance,Governance,Postage,10008779,ELECTORAL REFORM SERVICES,"9,265.86",15/09/2014
Assurance,Governance,Postage,10008805,ROYAL MAIL GROUP LIMITED,"1,177.28",15/09/2014
Assurance,Governance,Printing-Contract,10009389,FINANCIAL DATA MANAGEMENT LTD,"1,955.00",22/09/2014
Assurance,Governance,Printing-Contract,10009648,FINANCIAL DATA MANAGEMENT LTD,"3,162.38",24/09/2014
Assurance,Governance,Printing-Contract,10009387,FINANCIAL DATA MANAGEMENT LTD,"6,855.49",22/09/2014
Assurance,Governance,Printing-Contract,10009385,FINANCIAL DATA MANAGEMENT LTD,"19,928.10",22/09/2014
Assurance,Governance,Printing-Contract,10009379,FINANCIAL DATA MANAGEMENT LTD,"22,823.43",22/09/2014
Assurance,Governance,Printing-Contract,10009372,FINANCIAL DATA MANAGEMENT LTD,"25,967.60",22/09/2014
Assurance,Internal Audit & CAFT,Fees and Charges,10008731,THE BARNETGROUP LIMITED,"1,419.09",12/09/2014
Assurance,Internal Audit & CAFT,Other Services,10009104,REDACTED - PERSONAL DATA,592.50,25/09/2014
Assurance,Internal Audit & CAFT,Subscriptions,10009120,CALL CREDIT LTD,684.00,25/09/2014
Assurance,Internal Audit & CAFT,Subscriptions,10008465,CALL CREDIT LTD,"1,447.00",10/09/2014
Assurance,Internal Audit & CAFT,Subscriptions,10008817,EQUIFAX LTD,"1,020.00",16/09/2014
Central Expenses,Central Expenses,Grant Payments,10007690,LONDON BOROUGH OF BROMLEY,"43,810.03",02/09/2014
Central Expenses,Central Expenses,Insurance Claims,20010695,BERRYMANS LACE MAWER,800.00,04/09/2014
Central Expenses,Central Expenses,Insurance Claims,10009523,CITY SUBURBAN TREE SURGEONS LTD,"2,177.38",23/09/2014
Central Expenses,Central Expenses,Insurance Claims,10007767,CLYDE & CO LLP,800.50,03/09/2014
Central Expenses,Central Expenses,Insurance Claims,10008271,CLYDE & CO LLP,"1,020.00",09/09/2014
Central Expenses,Central Expenses,Insurance Claims,20011493,DEPARTMENT FOR WORK & PENSIONS,461.25,12/09/2014
Central Expenses,Central Expenses,Insurance Claims,20011494,DEPARTMENT FOR WORK & PENSIONS,627.00,12/09/2014
Central Expenses,Central Expenses,Insurance Claims,20011139,DEPARTMENT FOR WORK & PENSIONS,615.00,05/09/2014
Central Expenses,Central Expenses,Insurance Claims,20011924,ENTERPRISE RENT A CAR,314.18,30/09/2014
Central Expenses,Central Expenses,Insurance Claims,20011018,FENTONS SOLICITORS LLP,"4,800.00",01/09/2014
Central Expenses,Central Expenses,Insurance Claims,20011757,HODGE JONES & ALLEN SOLICITORS,"1,550.00",23/09/2014
Central Expenses,Central Expenses,Insurance Claims,10009542,JOHNSON AUSTIN PARTNERSHIP LLP,455.00,24/09/2014
Central Expenses,Central Expenses,Insurance Claims,10007765,JOHNSON AUSTIN PARTNERSHIP LLP,585.00,02/09/2014
Central Expenses,Central Expenses,Insurance Claims,10007764,KENNEDYS,378.00,02/09/2014
Central Expenses,Central Expenses,Insurance Claims,20011019,KINDERTONS LTD,"2,588.39",01/09/2014
Central Expenses,Central Expenses,Insurance Claims,10008355,LEGAL COSTS NEGOTIATORS,383.44,10/09/2014
Central Expenses,Central Expenses,Insurance Claims,10008276,LEGAL COSTS NEGOTIATORS,"1,344.10",10/09/2014
Central Expenses,Central Expenses,Insurance Claims,20011181,OSBORNES SOLICITORS,405.00,04/09/2014
Central Expenses,Central Expenses,Insurance Claims,20011182,PLEXUS LAW,"7,000.00",04/09/2014
Central Expenses,Central Expenses,Insurance Claims,20011021,ROYTHORNES LTD,"11,407.67",01/09/2014
Central Expenses,Central Expenses,Insurance Claims,10009541,THE BARNETGROUP LIMITED,"29,905.27",24/09/2014
Central Expenses,Central Expenses,Insurance Claims,10008237,WEIGHTMANS LLP,350.00,10/09/2014
Central Expenses,Central Expenses,Insurance Claims,10009212,WEIGHTMANS LLP,350.00,22/09/2014
Central Expenses,Central Expenses,Insurance Claims,10008224,WEIGHTMANS LLP,500.00,10/09/2014
Central Expenses,Central Expenses,Insurance Claims,10008235,WEIGHTMANS LLP,965.00,10/09/2014
Central Expenses,Central Expenses,Insurance Claims,10009211,WEIGHTMANS LLP,"1,000.00",22/09/2014
Central Expenses,Central Expenses,Insurance Claims,10008230,WEIGHTMANS LLP,"1,216.98",10/09/2014
Central Expenses,Central Expenses,Insurance Claims,10008221,WEIGHTMANS LLP,"1,425.00",10/09/2014
Central Expenses,Central Expenses,Insurance Claims,10009538,WEIGHTMANS LLP,"1,564.50",24/09/2014
Central Expenses,Central Expenses,Insurance Claims,10008218,WEIGHTMANS LLP,"2,135.20",10/09/2014
Central Expenses,Central Expenses,Other Establishments - Third Party Payment,10008347,CITY OF LONDON,"207,092.00",12/09/2014
Central Expenses,Central Expenses,Other Establishments - Third Party Payment,EBX0023913,LEE VALLEY REGIONAL PARK AUTH.,"33,699.99",19/09/2014
Central Expenses,Central Expenses,Other Establishments - Third Party Payment,EBX0022117,LONDON PENSIONS FUND AUTHORITY,"50,280.90",10/09/2014
Central Expenses,Central Expenses,Other Establishments - Third Party Payment,EBX0021079,TRANSPORT TRADING LIMITED,"3,660,135.00",02/09/2014
Commissioning Group,Commercial,Advertising,10009294,THE LONDON APPRENTICESHIP CO,275.00,23/09/2014
Commissioning Group,Commercial,Non Education Staff GPay,10006846,THE LONDON APPRENTICESHIP CO,275.00,10/09/2014
Commissioning Group,Commercial,Non Education Staff GPay,10008486,THE LONDON APPRENTICESHIP CO,275.00,12/09/2014
Commissioning Group,Commercial,Software Licences & Support,10007758,BUCHANAN COMPUTING LTD,"25,475.00",02/09/2014
Commissioning Group,Commissioning Group,Building Repairs & Maintenance,10007863,KIRKMAN & JOURDAIN LTD,"56,276.23",04/09/2014
Commissioning Group,Commissioning Group,Consultants Fees,10007886,LOCALITY MATTERS LTD,"7,650.00",05/09/2014
Commissioning Group,Commissioning Group,Professional Services,10006966,FOCUS CONSULTANTS 2010 LLP,"1,068.75",25/09/2014
Commissioning Group,Deputy Chief Operating Officer,Advertising,10008413,THE LONDON APPRENTICESHIP CO,385.00,12/09/2014
Commissioning Group,Deputy Chief Operating Officer,Consultants Fees,10007803,OPINION RESEARCH SERVICES,"5,185.00",04/09/2014
Commissioning Group,Deputy Chief Operating Officer,Consultants Fees,10007805,OPINION RESEARCH SERVICES,"25,187.00",04/09/2014
Commissioning Group,Deputy Chief Operating Officer,Consultants Fees,10007804,OPINION RESEARCH SERVICES,"29,450.00",04/09/2014
Commissioning Group,Deputy Chief Operating Officer,Consultants Fees,10010039,QUALITY FIELDWORK & RESEARCH,"3,294.82",30/09/2014
Commissioning Group,Deputy Chief Operating Officer,Food Costs,20011381,ASSOCIATION OF LOCAL GOV. COMMUNICA,250.00,09/09/2014
Commissioning Group,Deputy Chief Operating Officer,Food Costs,20011194,REDACTED - PERSONAL DATA,"1,339.61",05/09/2014
Commissioning Group,Deputy Chief Operating Officer,Grant Payments,20011365,BARNET MENCAP,"1,250.00",09/09/2014
Commissioning Group,Deputy Chief Operating Officer,Grant Payments,20011369,EAST FINCHLEY ARTS FESTIVAL,"1,000.00",09/09/2014
Commissioning Group,Deputy Chief Operating Officer,Grant Payments,20011459,M & M OUT OF SCHOOL CARE,"1,250.00",17/09/2014
Commissioning Group,Deputy Chief Operating Officer,Grant Payments,20011799,THE READER ORGANISATION,"9,825.00",24/09/2014
Commissioning Group,Deputy Chief Operating Officer,Grant Payments,20011801,TRAIN FOR EMPLOYMENT LTD,"8,750.00",25/09/2014
Commissioning Group,Deputy Chief Operating Officer,Other Agencies - Third Party Payment,10007870,FAMILY FUND TRADING LTD,"-1,176.25",19/09/2014
Commissioning Group,Deputy Chief Operating Officer,Other Agencies - Third Party Payment,10007629,FAMILY FUND TRADING LTD,"1,816.67",19/09/2014
Commissioning Group,Deputy Chief Operating Officer,Other Agencies - Third Party Payment,20011676,FAMILY FUND TRADING LTD,"50,000.00",19/09/2014
Commissioning Group,Deputy Chief Operating Officer,Other Services,10008415,FILEMAKER INTERNATIONAL LTD,"1,059.00",10/09/2014
Commissioning Group,Deputy Chief Operating Officer,Professional Services,20011029,EMPLOYEE ADVISORY RESOURCE LTD,"2,916.26",01/09/2014
Commissioning Group,Deputy Chief Operating Officer,Professional Services,10008526,PENNA PLC,"1,500.00",11/09/2014
Commissioning Group,Deputy Chief Operating Officer,Publications,10007654,REDACTED - PERSONAL DATA,250.00,02/09/2014
Commissioning Group,Deputy Chief Operating Officer,Software Licences & Support,10008408,CROWD TECHNOLOGIES LTD,408.00,11/09/2014
Commissioning Group,Deputy Chief Operating Officer,Software Licences & Support,10008409,CROWD TECHNOLOGIES LTD,408.00,11/09/2014
Commissioning Group,Deputy Chief Operating Officer,Software Licences & Support,10008410,CROWD TECHNOLOGIES LTD,408.00,11/09/2014
Commissioning Group,Deputy Chief Operating Officer,Software Licences & Support,10008411,CROWD TECHNOLOGIES LTD,408.00,11/09/2014
Commissioning Group,Deputy Chief Operating Officer,Software Licences & Support,10008412,CROWD TECHNOLOGIES LTD,408.00,11/09/2014
Corporate Accounting,Control Accounts,Government departments - Third Party Payment,EBX0024757,GREATER LONDON AUTHORITY,"241,490.00",25/09/2014
Corporate Accounting,Control Accounts,Other Agencies - Third Party Payment,10008953,CITIBANK NA LONDON,250.00,17/09/2014
Corporate Accounting,Control Accounts,Other Agencies - Third Party Payment,10009503,CITIBANK NA LONDON,252.90,24/09/2014
Corporate Accounting,Control Accounts,Other Agencies - Third Party Payment,10007671,CITIBANK NA LONDON,272.05,02/09/2014
Corporate Accounting,Control Accounts,Other Agencies - Third Party Payment,10008132,CITIBANK NA LONDON,285.50,16/09/2014
Corporate Accounting,Control Accounts,Other Agencies - Third Party Payment,10007676,CITIBANK NA LONDON,290.86,02/09/2014
Corporate Accounting,Control Accounts,Other Agencies - Third Party Payment,10007677,CITIBANK NA LONDON,322.45,03/09/2014
Corporate Accounting,Control Accounts,Other Agencies - Third Party Payment,10008492,CITIBANK NA LONDON,331.14,12/09/2014
Corporate Accounting,Control Accounts,Other Agencies - Third Party Payment,10009508,CITIBANK NA LONDON,335.35,24/09/2014
Corporate Accounting,Control Accounts,Other Agencies - Third Party Payment,10009506,CITIBANK NA LONDON,389.70,24/09/2014
Corporate Accounting,Control Accounts,Other Agencies - Third Party Payment,10009786,CITIBANK NA LONDON,438.20,26/09/2014
Corporate Accounting,Control Accounts,Other Agencies - Third Party Payment,10009787,CITIBANK NA LONDON,444.35,26/09/2014
Corporate Accounting,Control Accounts,Other Agencies - Third Party Payment,10008490,CITIBANK NA LONDON,447.35,12/09/2014
Corporate Accounting,Control Accounts,Other Agencies - Third Party Payment,10008481,CITIBANK NA LONDON,454.69,12/09/2014
Corporate Accounting,Control Accounts,Other Agencies - Third Party Payment,10009785,CITIBANK NA LONDON,500.81,26/09/2014
Corporate Accounting,Control Accounts,Other Agencies - Third Party Payment,10009507,CITIBANK NA LONDON,537.35,24/09/2014
Corporate Accounting,Control Accounts,Other Agencies - Third Party Payment,10008489,CITIBANK NA LONDON,564.50,12/09/2014
Corporate Accounting,Control Accounts,Other Agencies - Third Party Payment,10008493,CITIBANK NA LONDON,616.50,12/09/2014
Corporate Accounting,Control Accounts,Other Agencies - Third Party Payment,10007675,CITIBANK NA LONDON,674.16,02/09/2014
Corporate Accounting,Control Accounts,Other Agencies - Third Party Payment,10007674,CITIBANK NA LONDON,695.25,02/09/2014
Corporate Accounting,Control Accounts,Other Agencies - Third Party Payment,10007673,CITIBANK NA LONDON,830.10,02/09/2014
Corporate Accounting,Control Accounts,Other Agencies - Third Party Payment,10008491,CITIBANK NA LONDON,899.70,12/09/2014
Corporate Accounting,Control Accounts,Other Agencies - Third Party Payment,10009505,CITIBANK NA LONDON,982.70,24/09/2014
Corporate Accounting,Control Accounts,Other Agencies - Third Party Payment,10008479,CITIBANK NA LONDON,"1,100.67",12/09/2014
Corporate Accounting,Control Accounts,Other Agencies - Third Party Payment,10008482,CITIBANK NA LONDON,"1,552.59",12/09/2014
Corporate Accounting,Control Accounts,Other Agencies - Third Party Payment,10007670,CITIBANK NA LONDON,"1,599.95",02/09/2014
Corporate Accounting,Control Accounts,Other Agencies - Third Party Payment,10007810,CITIBANK NA LONDON,"2,181.82",05/09/2014
Corporate Accounting,Control Accounts,Other Agencies - Third Party Payment,10009501,CITIBANK NA LONDON,"2,249.78",24/09/2014
Corporate Accounting,Control Accounts,Other Agencies - Third Party Payment,10009073,CITIBANK NA LONDON,"2,531.62",19/09/2014
Corporate Accounting,Control Accounts,Other Agencies - Third Party Payment,10008134,CITIBANK NA LONDON,"5,800.72",10/09/2014
Corporate Accounting,Control Accounts,Other Establishments - Third Party Payment,20011960,COPTHALL SCHOOL (ACADEMY),"9,758.69",30/09/2014
Corporate Accounting,Control Accounts,Other Establishments - Third Party Payment,20011961,HENRIETTA BARNETT SCHOOL (ACADEMY),"7,387.20",30/09/2014
Corporate Accounting,Control Accounts,Other Local Authorities - Third Party Payment,EBX0023749,GREATER LONDON AUTHORITY,"2,330,724.00",18/09/2014
Corporate Accounting,Control Accounts,Other Local Authorities - Third Party Payment,EBX0022118,GREATER LONDON AUTHORITY,"3,841,043.70",10/09/2014
Delivery Units,Adults and Communities,Advertising,20011810,TMP (UK) LTD,"1,534.60",24/09/2014
Delivery Units,Adults and Communities,Equipment and Materials Purchase,10009236,MEDEQUIP ASSISTIVE TECHNOLOGY LTD,761.40,19/09/2014
Delivery Units,Adults and Communities,Equipment and Materials Purchase,10009429,MEDEQUIP ASSISTIVE TECHNOLOGY LTD,"1,048.78",22/09/2014
Delivery Units,Adults and Communities,Equipment and Materials Purchase,10009428,MEDEQUIP ASSISTIVE TECHNOLOGY LTD,"1,841.25",22/09/2014
Delivery Units,Adults and Communities,Equipment and Materials Purchase,10009430,MEDEQUIP ASSISTIVE TECHNOLOGY LTD,"2,940.09",22/09/2014
Delivery Units,Adults and Communities,Equipment and Materials Purchase,10009235,MEDEQUIP ASSISTIVE TECHNOLOGY LTD,"194,990.12",19/09/2014
Delivery Units,Adults and Communities,Equipment and Materials Purchase,10009233,MEDEQUIP ASSISTIVE TECHNOLOGY LTD,"200,840.54",19/09/2014
Delivery Units,Adults and Communities,Equipment and Materials Purchase,10009234,MEDEQUIP ASSISTIVE TECHNOLOGY LTD,"225,365.68",19/09/2014
Delivery Units,Adults and Communities,Equipment and Materials Purchase,10010016,OCS GROUP UK LIMITED,"185,578.00",30/09/2014
Delivery Units,Adults and Communities,Equipment and Materials Purchase,10007919,OCS GROUP UK LIMITED,"220,705.00",08/09/2014
Delivery Units,Adults and Communities,Equipment and Materials Purchase,10007920,OCS GROUP UK LIMITED,"220,705.00",08/09/2014
Delivery Units,Adults and Communities,Equipment and Materials Purchase,10009480,REDLAND HEALTHCARE LTD,"1,173.73",24/09/2014
Delivery Units,Adults and Communities,Equipment and Materials Purchase,10009481,REDLAND HEALTHCARE LTD,"1,937.26",24/09/2014
Delivery Units,Adults and Communities,Equipment and Materials Purchase,10002218,REMTEK SYSTEMS LTD,845.00,26/09/2014
Delivery Units,Adults and Communities,Equipment and Materials Purchase,10002219,REMTEK SYSTEMS LTD,"1,950.00",26/09/2014
Delivery Units,Adults and Communities,Gas,10008866,BRITISH GAS,273.87,16/09/2014
Delivery Units,Adults and Communities,Miscellaneous Expenses,20011656,REDACTED - PERSONAL DATA,250.00,18/09/2014
Delivery Units,Adults and Communities,Non Education Staff GPay,10008926,COMMUNITY BARNET,"15,530.08",19/09/2014
Delivery Units,Adults and Communities,Other Agencies - Third Party Payment,30032522,AARON COURT CARE HOME,"2,216.41",02/09/2014
Delivery Units,Adults and Communities,Other Agencies - Third Party Payment,30032464,ABBEY RAVENSCROFT PARK NURSING HOME,"-1,161.04",02/09/2014
Delivery Units,Adults and Communities,Other Agencies - Third Party Payment,30032459,ABBEY RAVENSCROFT PARK NURSING HOME,-548.92,02/09/2014
Delivery Units,Adults and Communities,Other Agencies - Third Party Payment,30032458,ABBEY RAVENSCROFT PARK NURSING HOME,"2,318.93",02/09/2014
Delivery Units,Adults and Communities,Other Agencies - Third Party Payment,30032469,ABBEY RAVENSCROFT PARK NURSING HOME,"2,318.93",02/09/2014
Delivery Units,Adults and Communities,Other Agencies - Third Party Payment,30032456,ABBEY RAVENSCROFT PARK NURSING HOME,"2,570.70",02/09/2014
Delivery Units,Adults and Communities,Other Agencies - Third Party Payment,30032457,ABBEY RAVENSCROFT PARK NURSING HOME,"2,570.70",02/09/2014
Delivery Units,Adults and Communities,Other Agencies - Third Party Payment,30032461,ABBEY RAVENSCROFT PARK NURSING HOME,"2,570.70",02/09/2014
Delivery Units,Adults and Communities,Other Agencies - Third Party Payment,30032462,ABBEY RAVENSCROFT PARK NURSING HOME,"2,570.70",02/09/2014
Delivery Units,Adults and Communities,Other Agencies - Third Party Payment,30032465,ABBEY RAVENSCROFT PARK NURSING HOME,"2,570.70",02/09/2014
Delivery Units,Adults and Communities,Other Agencies - Third Party Payment,30032466,ABBEY RAVENSCROFT PARK NURSING HOME,"2,570.70",02/09/2014
Delivery Units,Adults and Communities,Other Agencies - Third Party Payment,30032468,ABBEY RAVENSCROFT PARK NURSING HOME,"2,570.70",02/09/2014
Delivery Units,Adults and Communities,Other Agencies - Third Party Payment,30032470,ABBEY RAVENSCROFT PARK NURSING HOME,"2,570.70",02/09/2014
Delivery Units,Adults and Communities,Other Agencies - Third Party Payment,30032472,ABBEY RAVENSCROFT PARK NURSING HOME,"2,570.70",02/09/2014
Delivery Units,Adults and Communities,Other Agencies - Third Party Payment,30032463,ABBEY RAVENSCROFT PARK NURSING HOME,"2,570.83",02/09/2014
Delivery Units,Adults and Communities,Other Agencies - Third Party Payment,30032460,ABBEY RAVENSCROFT PARK NURSING HOME,"2,657.14",02/09/2014
Delivery Units,Adults and Communities,Other Agencies - Third Party Payment,30032467,ABBEY RAVENSCROFT PARK NURSING HOME,"2,878.57",02/09/2014
Delivery Units,Adults and Communities,Other Agencies - Third Party Payment,30032471,ABBEY RAVENSCROFT PARK NURSING HOME,"3,205.84",02/09/2014
Delivery Units,Adults and Communities,Other Agencies - Third Party Payment,30034948,ABOUT ME CARE & SUPPORT LTD,"1,365.84",12/09/2014
Delivery Units,Adults and Communities,Other Agencies - Third Party Payment,30033862,ADDICTION RECOVERY CENTRE,"1,000.00",05/09/2014
Delivery Units,Adults and Communities,Other Agencies - Third Party Payment,30033857,ADDICTION RECOVERY CENTRE,"2,900.00",05/09/2014
Delivery Units,Adults and Communities,Other Agencies - Third Party Payment,30033781,AGUDAS ISRAEL HOUSING ASSCTN LTD,-548.92,11/09/2014
Delivery Units,Adults and Communities,Other Agencies - Third Party Payment,30036840,AGUDAS ISRAEL HOUSING ASSCTN LTD,"1,428.75",22/09/2014
Delivery Units,Adults and Communities,Other Agencies - Third Party Payment,30036819,AGUDAS ISRAEL HOUSING ASSCTN LTD,"1,600.20",22/09/2014
Delivery Units,Adults and Communities,Other Agencies - Third Party Payment,30036821,AGUDAS ISRAEL HOUSING ASSCTN LTD,"1,600.20",22/09/2014
Delivery Units,Adults and Communities,Other Agencies - Third Party Payment,30036832,AGUDAS ISRAEL HOUSING ASSCTN LTD,"1,600.20",25/09/2014
Delivery Units,Adults and Communities,Other Agencies - Third Party Payment,30036834,AGUDAS ISRAEL HOUSING ASSCTN LTD,"1,600.20",22/09/2014
Delivery Units,Adults and Communities,Other Agencies - Third Party Payment,30036839,AGUDAS ISRAEL HOUSING ASSCTN LTD,"1,600.20",22/09/2014
Delivery Units,Adults and Communities,Other Agencies - Third Party Payment,30033783,AGUDAS ISRAEL HOUSING ASSCTN LTD,"2,527.83",11/09/2014
Delivery Units,Adults and Communities,Other Agencies - Third Party Payment,30033780,AGUDAS ISRAEL HOUSING ASSCTN LTD,"3,321.43",11/09/2014
Delivery Units,Adults and Communities,Other Agencies - Third Party Payment,30033782,AGUDAS ISRAEL HOUSING ASSCTN LTD,"4,207.14",11/09/2014
Delivery Units,Adults and Communities,Other Agencies - Third Party Payment,30033233,ALL ABOUT CARE,-353.62,03/09/2014
Delivery Units,Adults and Communities,Other Agencies - Third Party Payment,30033232,ALL ABOUT CARE,"2,023.28",03/09/2014
Delivery Units,Adults and Communities,Other Agencies - Third Party Payment,30032544,ALLIED HEALTHCARE LTD,"4,501.41",02/09/2014
Delivery Units,Adults and Communities,Other Agencies - Third Party Payment,30032010,ALWYCK HOUSING GROUP,"2,216.41",01/09/2014
Delivery Units,Adults and Communities,Other Agencies - Third Party Payment,30032165,ANCASTER COURT NURSING HOME,"2,570.70",01/09/2014
Delivery Units,Adults and Communities,Other Agencies - Third Party Payment,30032499,ANCASTER COURT NURSING HOME,"2,570.70",02/09/2014
Delivery Units,Adults and Communities,Other Agencies - Third Party Payment,30032125,ANCHOR TRUST,"2,232.64",01/09/2014
Delivery Units,Adults and Communities,Other Agencies - Third Party Payment,30036859,ANCHOR TRUST,"2,232.64",22/09/2014
Delivery Units,Adults and Communities,Other Agencies - Third Party Payment,30032289,APEX CARE HOME LTD,-353.62,01/09/2014
Delivery Units,Adults and Communities,Other Agencies - Third Party Payment,30032288,APEX CARE HOME LTD,"4,132.74",01/09/2014
Delivery Units,Adults and Communities,Other Agencies - Third Party Payment,30033579,ARBOURS ASSOCIATION LTD,"1,412.04",04/09/2014
Delivery Units,Adults and Communities,Other Agencies - Third Party Payment,30036960,AREA 51 EDUCATION LTD,632.00,25/09/2014
Delivery Units,Adults and Communities,Other Agencies - Third Party Payment,30036962,AREA 51 EDUCATION LTD,948.00,25/09/2014
Delivery Units,Adults and Communities,Other Agencies - Third Party Payment,30036961,AREA 51 EDUCATION LTD,"1,580.00",25/09/2014
Delivery Units,Adults and Communities,Other Agencies - Third Party Payment,30033562,ARUNDEL CARE SERVICES LTD,"4,256.00",04/09/2014
Delivery Units,Adults and Communities,Other Agencies - Third Party Payment,30032498,ASHBROOKE CARE HOME,"2,435.71",02/09/2014
Delivery Units,Adults and Communities,Other Agencies - Third Party Payment,30037811,ASHDOWN RESIDENTIAL HOME,-495.80,29/09/2014
Delivery Units,Adults and Communities,Other Agencies - Third Party Payment,30037810,ASHDOWN RESIDENTIAL HOME,"4,156.00",29/09/2014
Delivery Units,Adults and Communities,Other Agencies - Third Party Payment,30033289,ASHFIELDS RESIDENTIAL CARE HOME,"1,143.95",03/09/2014
Delivery Units,Adults and Communities,Other Agencies - Third Party Payment,30032024,ASHGALE HOUSE,-401.76,01/09/2014
Delivery Units,Adults and Communities,Other Agencies - Third Party Payment,30032023,ASHGALE HOUSE,"4,729.98",01/09/2014
Delivery Units,Adults and Communities,Other Agencies - Third Party Payment,30032537,ASHTON LODGE CARE CENTRE,-738.38,02/09/2014
Delivery Units,Adults and Communities,Other Agencies - Third Party Payment,30032542,ASHTON LODGE CARE CENTRE,-572.70,02/09/2014
Delivery Units,Adults and Communities,Other Agencies - Third Party Payment,30032525,ASHTON LODGE CARE CENTRE,-353.62,02/09/2014
Delivery Units,Adults and Communities,Other Agencies - Third Party Payment,30036405,ASHTON LODGE CARE CENTRE,"2,082.03",17/09/2014
Delivery Units,Adults and Communities,Other Agencies - Third Party Payment,30032536,ASHTON LODGE CARE CENTRE,"2,318.94",02/09/2014
Delivery Units,Adults and Communities,Other Agencies - Third Party Payment,30032541,ASHTON LODGE CARE CENTRE,"2,320.52",02/09/2014
Delivery Units,Adults and Communities,Other Agencies - Third Party Payment,30032533,ASHTON LODGE CARE CENTRE,"2,320.53",02/09/2014
Delivery Units,Adults and Communities,Other Agencies - Third Party Payment,30032523,ASHTON LODGE CARE CENTRE,"2,367.07",02/09/2014
Delivery Units,Adults and Communities,Other Agencies - Third Party Payment,30032501,ASHTON LODGE CARE CENTRE,"2,418.04",02/09/2014
Delivery Units,Adults and Communities,Other Agencies - Third Party Payment,30032593,ASHTON LODGE CARE CENTRE,"2,418.04",02/09/2014
Delivery Units,Adults and Communities,Other Agencies - Third Party Payment,30032524,ASHTON LODGE CARE CENTRE,"2,489.74",02/09/2014
Delivery Units,Adults and Communities,Other Agencies - Third Party Payment,30032521,ASHTON LODGE CARE CENTRE,"2,570.70",02/09/2014
Delivery Units,Adults and Communities,Other Agencies - Third Party Payment,30032532,ASPEN VILLAGES LTD,-353.62,02/09/2014
Delivery Units,Adults and Communities,Other Agencies - Third Party Payment,30032528,ASPEN VILLAGES LTD,"2,216.41",02/09/2014
Delivery Units,Adults and Communities,Other Agencies - Third Party Payment,30032529,ASPEN VILLAGES LTD,"2,570.70",02/09/2014
Delivery Units,Adults and Communities,Other Agencies - Third Party Payment,30032530,ASPEN VILLAGES LTD,"3,321.43",02/09/2014
Delivery Units,Adults and Communities,Other Agencies - Third Party Payment,30032531,ASPEN VILLAGES LTD,"3,824.11",02/09/2014
Delivery Units,Adults and Communities,Other Agencies - Third Party Payment,30036050,AUTUMN GARDENS,715.00,18/09/2014
Delivery Units,Adults and Communities,Other Agencies - Third Party Payment,30036049,AUTUMN GARDENS,"2,184.04",17/09/2014
Delivery Units,Adults and Communities,Other Agencies - Third Party Payment,30036048,AUTUMN GARDENS,"2,800.00",17/09/2014
Delivery Units,Adults and Communities,Other Agencies - Third Party Payment,30038976,AVERY LODGE,-531.21,30/09/2014
Delivery Units,Adults and Communities,Other Agencies - Third Party Payment,30038975,AVERY LODGE,"2,144.91",30/09/2014
Delivery Units,Adults and Communities,Other Agencies - Third Party Payment,30032213,B & M CARE,-571.91,01/09/2014
Delivery Units,Adults and Communities,Other Agencies - Third Party Payment,30032211,B & M CARE,-405.79,01/09/2014
Delivery Units,Adults and Communities,Other Agencies - Third Party Payment,30038616,B & M CARE,312.01,30/09/2014
Delivery Units,Adults and Communities,Other Agencies - Third Party Payment,30037161,B & M CARE,"1,326.02",23/09/2014
Delivery Units,Adults and Communities,Other Agencies - Third Party Payment,30032212,B & M CARE,"2,418.00",01/09/2014
Delivery Units,Adults and Communities,Other Agencies - Third Party Payment,30032210,B & M CARE,"2,622.20",01/09/2014
Delivery Units,Adults and Communities,Other Agencies - Third Party Payment,20011205,BARNET ENFIELD & HARINGEY MENTAL,"10,339.85",05/09/2014
Delivery Units,Adults and Communities,Other Agencies - Third Party Payment,30036489,BARNET HOMES LIMITED,"13,633.42",18/09/2014
Delivery Units,Adults and Communities,Other Agencies - Third Party Payment,30032276,BARNET MENCAP,"17,935.19",01/09/2014
Delivery Units,Adults and Communities,Other Agencies - Third Party Payment,30032075,BENSLOW MANAGEMENT COMPANY LIMITED,"2,418.04",01/09/2014
Delivery Units,Adults and Communities,Other Agencies - Third Party Payment,30033277,BRADBURY HOUSE ORGANISATION,-353.62,03/09/2014
Delivery Units,Adults and Communities,Other Agencies - Third Party Payment,30033276,BRADBURY HOUSE ORGANISATION,"3,460.71",03/09/2014
Delivery Units,Adults and Communities,Other Agencies - Third Party Payment,30034108,BROADREACH HOUSE,"3,077.86",11/09/2014
Delivery Units,Adults and Communities,Other Agencies - Third Party Payment,30036520,BROOKDALE HEALTHCARE,"4,699.40",18/09/2014
Delivery Units,Adults and Communities,Other Agencies - Third Party Payment,30032004,BROOKDALE HEALTHCARE,"7,806.73",01/09/2014
Delivery Units,Adults and Communities,Other Agencies - Third Party Payment,30032021,BROOKDALE HEALTHCARE,"8,864.52",01/09/2014
Delivery Units,Adults and Communities,Other Agencies - Third Party Payment,30032002,BROOKDALE HEALTHCARE,"9,300.00",01/09/2014
Delivery Units,Adults and Communities,Other Agencies - Third Party Payment,30032003,BROOKDALE HEALTHCARE,"9,610.00",01/09/2014
Delivery Units,Adults and Communities,Other Agencies - Third Party Payment,30033613,BRUNSWICK SUPPORTED LIVING SERVICES,"1,321.60",04/09/2014
Delivery Units,Adults and Communities,Other Agencies - Third Party Payment,30033631,BRUNSWICK SUPPORTED LIVING SERVICES,"1,400.00",04/09/2014
Delivery Units,Adults and Communities,Other Agencies - Third Party Payment,30033619,BRUNSWICK SUPPORTED LIVING SERVICES,"1,412.68",04/09/2014
Delivery Units,Adults and Communities,Other Agencies - Third Party Payment,30033620,BRUNSWICK SUPPORTED LIVING SERVICES,"1,942.84",04/09/2014
Delivery Units,Adults and Communities,Other Agencies - Third Party Payment,30033580,BRUNSWICK SUPPORTED LIVING SERVICES,"2,372.12",04/09/2014
Delivery Units,Adults and Communities,Other Agencies - Third Party Payment,30032194,BUPA CARE HOMES,-526.78,01/09/2014
Delivery Units,Adults and Communities,Other Agencies - Third Party Payment,30033294,BUPA CARE HOMES,"1,716.03",03/09/2014
Delivery Units,Adults and Communities,Other Agencies - Third Party Payment,30032193,BUPA CARE HOMES,"2,216.41",01/09/2014
Delivery Units,Adults and Communities,Other Agencies - Third Party Payment,30032231,BUPA CARE HOMES,"2,216.41",01/09/2014
Delivery Units,Adults and Communities,Other Agencies - Third Party Payment,30032534,BUPA CARE HOMES,"2,216.41",02/09/2014
Delivery Units,Adults and Communities,Other Agencies - Third Party Payment,30036867,BUPA CARE HOMES,"2,302.06",22/09/2014
Delivery Units,Adults and Communities,Other Agencies - Third Party Payment,30032195,BUPA CARE HOMES,"2,318.18",01/09/2014
Delivery Units,Adults and Communities,Other Agencies - Third Party Payment,30032221,BUPA CARE HOMES,"2,318.93",01/09/2014
Delivery Units,Adults and Communities,Other Agencies - Third Party Payment,30032590,BUPA CARE HOMES,"2,318.93",02/09/2014
Delivery Units,Adults and Communities,Other Agencies - Third Party Payment,30032591,BUPA CARE HOMES,"2,318.93",02/09/2014
Delivery Units,Adults and Communities,Other Agencies - Third Party Payment,30033616,BUPA CARE HOMES,"2,318.93",04/09/2014
Delivery Units,Adults and Communities,Other Agencies - Third Party Payment,30034865,BUPA CARE HOMES,"2,318.93",11/09/2014
Delivery Units,Adults and Communities,Other Agencies - Third Party Payment,30034866,BUPA CARE HOMES,"2,318.93",11/09/2014
Delivery Units,Adults and Communities,Other Agencies - Third Party Payment,30034867,BUPA CARE HOMES,"2,318.93",11/09/2014
Delivery Units,Adults and Communities,Other Agencies - Third Party Payment,30036865,BUPA CARE HOMES,"2,318.93",22/09/2014
Delivery Units,Adults and Communities,Other Agencies - Third Party Payment,30032224,BUPA CARE HOMES,"2,325.66",01/09/2014
Delivery Units,Adults and Communities,Other Agencies - Third Party Payment,30032219,BUPA CARE HOMES,"2,418.04",01/09/2014
Delivery Units,Adults and Communities,Other Agencies - Third Party Payment,30032230,BUPA CARE HOMES,"2,418.04",01/09/2014
Delivery Units,Adults and Communities,Other Agencies - Third Party Payment,30032196,BUPA CARE HOMES,"2,442.67",01/09/2014
Delivery Units,Adults and Communities,Other Agencies - Third Party Payment,30032197,BUPA CARE HOMES,"2,570.70",01/09/2014
Delivery Units,Adults and Communities,Other Agencies - Third Party Payment,30032198,BUPA CARE HOMES,"2,570.70",01/09/2014
Delivery Units,Adults and Communities,Other Agencies - Third Party Payment,30032222,BUPA CARE HOMES,"2,570.70",01/09/2014
Delivery Units,Adults and Communities,Other Agencies - Third Party Payment,30036866,BUPA CARE HOMES,"2,924.05",22/09/2014
Delivery Units,Adults and Communities,Other Agencies - Third Party Payment,30032226,BUPA CARE HOMES,"3,258.81",01/09/2014
Delivery Units,Adults and Communities,Other Agencies - Third Party Payment,30032227,BUPA CARE HOMES,"3,258.81",01/09/2014
Delivery Units,Adults and Communities,Other Agencies - Third Party Payment,30032228,BUPA CARE HOMES,"3,321.43",01/09/2014
Delivery Units,Adults and Communities,Other Agencies - Third Party Payment,30032229,BUPA CARE HOMES,"3,321.43",01/09/2014
Delivery Units,Adults and Communities,Other Agencies - Third Party Payment,30039127,BUPA CARE HOMES,"4,686.43",30/09/2014
Delivery Units,Adults and Communities,Other Agencies - Third Party Payment,30032223,BUPA CARE HOMES,"5,535.71",01/09/2014
Delivery Units,Adults and Communities,Other Agencies - Third Party Payment,30033582,BUPA NURSING HOMES LTD - ARKLEY,-490.00,04/09/2014
Delivery Units,Adults and Communities,Other Agencies - Third Party Payment,30034000,BUPA NURSING HOMES LTD - ARKLEY,-490.00,08/09/2014
Delivery Units,Adults and Communities,Other Agencies - Third Party Payment,30038603,BUPA NURSING HOMES LTD - ARKLEY,-490.00,30/09/2014
Delivery Units,Adults and Communities,Other Agencies - Third Party Payment,30033587,BUPA NURSING HOMES LTD - ARKLEY,-475.80,04/09/2014
Delivery Units,Adults and Communities,Other Agencies - Third Party Payment,30034004,BUPA NURSING HOMES LTD - ARKLEY,-475.80,08/09/2014
Delivery Units,Adults and Communities,Other Agencies - Third Party Payment,30038607,BUPA NURSING HOMES LTD - ARKLEY,-475.80,30/09/2014
Delivery Units,Adults and Communities,Other Agencies - Third Party Payment,30038611,BUPA NURSING HOMES LTD - ARKLEY,571.98,30/09/2014
Delivery Units,Adults and Communities,Other Agencies - Third Party Payment,30033585,BUPA NURSING HOMES LTD - ARKLEY,897.65,04/09/2014
Delivery Units,Adults and Communities,Other Agencies - Third Party Payment,30034007,BUPA NURSING HOMES LTD - ARKLEY,"1,143.95",08/09/2014
Delivery Units,Adults and Communities,Other Agencies - Third Party Payment,30033591,BUPA NURSING HOMES LTD - ARKLEY,"2,001.92",04/09/2014
Delivery Units,Adults and Communities,Other Agencies - Third Party Payment,30033592,BUPA NURSING HOMES LTD - ARKLEY,"2,001.92",04/09/2014
Delivery Units,Adults and Communities,Other Agencies - Third Party Payment,30033581,BUPA NURSING HOMES LTD - ARKLEY,"2,094.52",04/09/2014
Delivery Units,Adults and Communities,Other Agencies - Third Party Payment,30033583,BUPA NURSING HOMES LTD - ARKLEY,"2,094.52",04/09/2014
Delivery Units,Adults and Communities,Other Agencies - Third Party Payment,30033584,BUPA NURSING HOMES LTD - ARKLEY,"2,094.52",04/09/2014
Delivery Units,Adults and Communities,Other Agencies - Third Party Payment,30033586,BUPA NURSING HOMES LTD - ARKLEY,"2,094.52",04/09/2014
Delivery Units,Adults and Communities,Other Agencies - Third Party Payment,30033589,BUPA NURSING HOMES LTD - ARKLEY,"2,094.52",04/09/2014
Delivery Units,Adults and Communities,Other Agencies - Third Party Payment,30033590,BUPA NURSING HOMES LTD - ARKLEY,"2,094.52",04/09/2014
Delivery Units,Adults and Communities,Other Agencies - Third Party Payment,30033999,BUPA NURSING HOMES LTD - ARKLEY,"2,094.52",08/09/2014
Delivery Units,Adults and Communities,Other Agencies - Third Party Payment,30034001,BUPA NURSING HOMES LTD - ARKLEY,"2,094.52",08/09/2014
Delivery Units,Adults and Communities,Other Agencies - Third Party Payment,30034002,BUPA NURSING HOMES LTD - ARKLEY,"2,094.52",08/09/2014
Delivery Units,Adults and Communities,Other Agencies - Third Party Payment,30034003,BUPA NURSING HOMES LTD - ARKLEY,"2,094.52",08/09/2014
Delivery Units,Adults and Communities,Other Agencies - Third Party Payment,30034006,BUPA NURSING HOMES LTD - ARKLEY,"2,094.52",08/09/2014
Delivery Units,Adults and Communities,Other Agencies - Third Party Payment,30038602,BUPA NURSING HOMES LTD - ARKLEY,"2,094.52",30/09/2014
Delivery Units,Adults and Communities,Other Agencies - Third Party Payment,30038604,BUPA NURSING HOMES LTD - ARKLEY,"2,094.52",30/09/2014
Delivery Units,Adults and Communities,Other Agencies - Third Party Payment,30038605,BUPA NURSING HOMES LTD - ARKLEY,"2,094.52",30/09/2014
Delivery Units,Adults and Communities,Other Agencies - Third Party Payment,30038606,BUPA NURSING HOMES LTD - ARKLEY,"2,094.52",30/09/2014
Delivery Units,Adults and Communities,Other Agencies - Third Party Payment,30038609,BUPA NURSING HOMES LTD - ARKLEY,"2,094.52",30/09/2014
Delivery Units,Adults and Communities,Other Agencies - Third Party Payment,30038610,BUPA NURSING HOMES LTD - ARKLEY,"2,094.52",30/09/2014
Delivery Units,Adults and Communities,Other Agencies - Third Party Payment,30033588,BUPA NURSING HOMES LTD - ARKLEY,"2,600.00",04/09/2014
Delivery Units,Adults and Communities,Other Agencies - Third Party Payment,30034005,BUPA NURSING HOMES LTD - ARKLEY,"2,600.00",08/09/2014
Delivery Units,Adults and Communities,Other Agencies - Third Party Payment,30038608,BUPA NURSING HOMES LTD - ARKLEY,"2,600.00",30/09/2014
Delivery Units,Adults and Communities,Other Agencies - Third Party Payment,30032535,BY THE BRIDGE LTD,"3,321.43",02/09/2014
Delivery Units,Adults and Communities,Other Agencies - Third Party Payment,30032185,CAMBIAN BEECHES,"-1,298.97",01/09/2014
Delivery Units,Adults and Communities,Other Agencies - Third Party Payment,30032186,CAMBIAN BEECHES,"-1,298.97",01/09/2014
Delivery Units,Adults and Communities,Other Agencies - Third Party Payment,30036380,CAMBIAN BEECHES,"-1,298.97",17/09/2014
Delivery Units,Adults and Communities,Other Agencies - Third Party Payment,30038621,CAMBIAN BEECHES,-254.70,30/09/2014
Delivery Units,Adults and Communities,Other Agencies - Third Party Payment,30038625,CAMBIAN BEECHES,-254.70,30/09/2014
Delivery Units,Adults and Communities,Other Agencies - Third Party Payment,30038620,CAMBIAN BEECHES,"12,994.50",30/09/2014
Delivery Units,Adults and Communities,Other Agencies - Third Party Payment,30038622,CAMBIAN BEECHES,"12,994.50",30/09/2014
Delivery Units,Adults and Communities,Other Agencies - Third Party Payment,30038624,CAMBIAN BEECHES,"12,994.50",30/09/2014
Delivery Units,Adults and Communities,Other Agencies - Third Party Payment,30032005,CAMBIAN BEECHES,"13,427.65",01/09/2014
Delivery Units,Adults and Communities,Other Agencies - Third Party Payment,30032006,CAMBIAN BEECHES,"13,427.65",01/09/2014
Delivery Units,Adults and Communities,Other Agencies - Third Party Payment,30036464,CAMBIAN BEECHES,"13,427.65",17/09/2014
Delivery Units,Adults and Communities,Other Agencies - Third Party Payment,30036540,CAMPHILL DEVON COMMUNITY LIMITED,"4,508.00",18/09/2014
Delivery Units,Adults and Communities,Other Agencies - Third Party Payment,30038572,CANDLE COURT NURSING HOME,"3,642.86",30/09/2014
Delivery Units,Adults and Communities,Other Agencies - Third Party Payment,30032035,CANDLE COURT NURSING HOME,"3,764.29",01/09/2014
Delivery Units,Adults and Communities,Other Agencies - Third Party Payment,20011198,CARE ASSIST LIMITED,"4,207.14",04/09/2014
Delivery Units,Adults and Communities,Other Agencies - Third Party Payment,20011199,CARE ASSIST LIMITED,"4,207.14",04/09/2014
Delivery Units,Adults and Communities,Other Agencies - Third Party Payment,30033575,CARE WORLDWIDE (LONDON) LTD,"1,896.14",04/09/2014
Delivery Units,Adults and Communities,Other Agencies - Third Party Payment,30037929,CARE WORLDWIDE (LONDON) LTD,"2,680.88",25/09/2014
Delivery Units,Adults and Communities,Other Agencies - Third Party Payment,30037932,CARE WORLDWIDE (LONDON) LTD,"2,685.98",25/09/2014
Delivery Units,Adults and Communities,Other Agencies - Third Party Payment,30034062,CARE WORLDWIDE (LONDON) LTD,"2,794.44",09/09/2014
Delivery Units,Adults and Communities,Other Agencies - Third Party Payment,30037933,CARE WORLDWIDE (LONDON) LTD,"2,794.44",25/09/2014
Delivery Units,Adults and Communities,Other Agencies - Third Party Payment,30037930,CARE WORLDWIDE (LONDON) LTD,"3,936.46",25/09/2014
Delivery Units,Adults and Communities,Other Agencies - Third Party Payment,30037931,CARE WORLDWIDE (LONDON) LTD,"4,246.53",25/09/2014
Delivery Units,Adults and Communities,Other Agencies - Third Party Payment,30037818,CAREBASE BURNT OAK 2006 LIMITED,580.48,24/09/2014
Delivery Units,Adults and Communities,Other Agencies - Third Party Payment,30032116,CAREBASE BURNT OAK 2006 LIMITED,"2,302.06",01/09/2014
Delivery Units,Adults and Communities,Other Agencies - Third Party Payment,30032110,CAREBASE BURNT OAK 2006 LIMITED,"2,318.93",01/09/2014
Delivery Units,Adults and Communities,Other Agencies - Third Party Payment,30032115,CAREBASE BURNT OAK 2006 LIMITED,"2,318.93",01/09/2014
Delivery Units,Adults and Communities,Other Agencies - Third Party Payment,30032117,CAREBASE BURNT OAK 2006 LIMITED,"2,320.53",01/09/2014
Delivery Units,Adults and Communities,Other Agencies - Third Party Payment,30032118,CAREBASE BURNT OAK 2006 LIMITED,"2,418.04",01/09/2014
Delivery Units,Adults and Communities,Other Agencies - Third Party Payment,30032120,CAREBASE BURNT OAK 2006 LIMITED,"2,418.04",01/09/2014
Delivery Units,Adults and Communities,Other Agencies - Third Party Payment,30032111,CAREBASE BURNT OAK 2006 LIMITED,"2,570.70",01/09/2014
Delivery Units,Adults and Communities,Other Agencies - Third Party Payment,30032112,CAREBASE BURNT OAK 2006 LIMITED,"2,570.70",01/09/2014
Delivery Units,Adults and Communities,Other Agencies - Third Party Payment,30032114,CAREBASE BURNT OAK 2006 LIMITED,"2,570.70",01/09/2014
Delivery Units,Adults and Communities,Other Agencies - Third Party Payment,30032119,CAREBASE BURNT OAK 2006 LIMITED,"2,570.70",01/09/2014
Delivery Units,Adults and Communities,Other Agencies - Third Party Payment,30032113,CAREBASE BURNT OAK 2006 LIMITED,"2,588.50",01/09/2014
Delivery Units,Adults and Communities,Other Agencies - Third Party Payment,30032552,CARETECH COMMUNITY SERVICES LTD,-548.92,02/09/2014
Delivery Units,Adults and Communities,Other Agencies - Third Party Payment,30032559,CARETECH COMMUNITY SERVICES LTD,-548.92,02/09/2014
Delivery Units,Adults and Communities,Other Agencies - Third Party Payment,30033317,CARETECH COMMUNITY SERVICES LTD,-548.92,03/09/2014
Delivery Units,Adults and Communities,Other Agencies - Third Party Payment,30032575,CARETECH COMMUNITY SERVICES LTD,-485.37,02/09/2014
Delivery Units,Adults and Communities,Other Agencies - Third Party Payment,30032587,CARETECH COMMUNITY SERVICES LTD,-401.67,02/09/2014
Delivery Units,Adults and Communities,Other Agencies - Third Party Payment,30032549,CARETECH COMMUNITY SERVICES LTD,-353.62,02/09/2014
Delivery Units,Adults and Communities,Other Agencies - Third Party Payment,30032556,CARETECH COMMUNITY SERVICES LTD,-353.62,02/09/2014
Delivery Units,Adults and Communities,Other Agencies - Third Party Payment,30032563,CARETECH COMMUNITY SERVICES LTD,-353.62,02/09/2014
Delivery Units,Adults and Communities,Other Agencies - Third Party Payment,30032565,CARETECH COMMUNITY SERVICES LTD,-353.62,02/09/2014
Delivery Units,Adults and Communities,Other Agencies - Third Party Payment,30032568,CARETECH COMMUNITY SERVICES LTD,-353.62,02/09/2014
Delivery Units,Adults and Communities,Other Agencies - Third Party Payment,30032570,CARETECH COMMUNITY SERVICES LTD,-353.62,02/09/2014
Delivery Units,Adults and Communities,Other Agencies - Third Party Payment,30032573,CARETECH COMMUNITY SERVICES LTD,-353.62,02/09/2014
Delivery Units,Adults and Communities,Other Agencies - Third Party Payment,30032577,CARETECH COMMUNITY SERVICES LTD,-353.62,02/09/2014
Delivery Units,Adults and Communities,Other Agencies - Third Party Payment,30032580,CARETECH COMMUNITY SERVICES LTD,-353.62,02/09/2014
Delivery Units,Adults and Communities,Other Agencies - Third Party Payment,30032582,CARETECH COMMUNITY SERVICES LTD,-353.62,02/09/2014
Delivery Units,Adults and Communities,Other Agencies - Third Party Payment,30033312,CARETECH COMMUNITY SERVICES LTD,-353.62,03/09/2014
Delivery Units,Adults and Communities,Other Agencies - Third Party Payment,30033315,CARETECH COMMUNITY SERVICES LTD,-353.62,03/09/2014
Delivery Units,Adults and Communities,Other Agencies - Third Party Payment,30038655,CARETECH COMMUNITY SERVICES LTD,-353.62,30/09/2014
Delivery Units,Adults and Communities,Other Agencies - Third Party Payment,30032283,CARETECH COMMUNITY SERVICES LTD,722.61,01/09/2014
Delivery Units,Adults and Communities,Other Agencies - Third Party Payment,30032553,CARETECH COMMUNITY SERVICES LTD,816.14,02/09/2014
Delivery Units,Adults and Communities,Other Agencies - Third Party Payment,30032560,CARETECH COMMUNITY SERVICES LTD,816.14,02/09/2014
Delivery Units,Adults and Communities,Other Agencies - Third Party Payment,30032287,CARETECH COMMUNITY SERVICES LTD,919.15,01/09/2014
Delivery Units,Adults and Communities,Other Agencies - Third Party Payment,30032571,CARETECH COMMUNITY SERVICES LTD,"1,088.14",02/09/2014
Delivery Units,Adults and Communities,Other Agencies - Third Party Payment,30032578,CARETECH COMMUNITY SERVICES LTD,"1,088.14",02/09/2014
Delivery Units,Adults and Communities,Other Agencies - Third Party Payment,30032583,CARETECH COMMUNITY SERVICES LTD,"1,088.14",02/09/2014
Delivery Units,Adults and Communities,Other Agencies - Third Party Payment,30032286,CARETECH COMMUNITY SERVICES LTD,"1,527.86",01/09/2014
Delivery Units,Adults and Communities,Other Agencies - Third Party Payment,30032285,CARETECH COMMUNITY SERVICES LTD,"2,149.94",01/09/2014
Delivery Units,Adults and Communities,Other Agencies - Third Party Payment,30032284,CARETECH COMMUNITY SERVICES LTD,"2,589.74",01/09/2014
Delivery Units,Adults and Communities,Other Agencies - Third Party Payment,30032579,CARETECH COMMUNITY SERVICES LTD,"4,377.11",02/09/2014
Delivery Units,Adults and Communities,Other Agencies - Third Party Payment,30032281,CARETECH COMMUNITY SERVICES LTD,"4,627.86",01/09/2014
Delivery Units,Adults and Communities,Other Agencies - Third Party Payment,30032550,CARETECH COMMUNITY SERVICES LTD,"4,627.86",02/09/2014
Delivery Units,Adults and Communities,Other Agencies - Third Party Payment,30032561,CARETECH COMMUNITY SERVICES LTD,"4,627.86",02/09/2014
Delivery Units,Adults and Communities,Other Agencies - Third Party Payment,30032566,CARETECH COMMUNITY SERVICES LTD,"4,627.86",02/09/2014
Delivery Units,Adults and Communities,Other Agencies - Third Party Payment,30036424,CARETECH COMMUNITY SERVICES LTD,"4,627.86",17/09/2014
Delivery Units,Adults and Communities,Other Agencies - Third Party Payment,30038653,CARETECH COMMUNITY SERVICES LTD,"4,627.86",30/09/2014
Delivery Units,Adults and Communities,Other Agencies - Third Party Payment,30038656,CARETECH COMMUNITY SERVICES LTD,"4,627.86",30/09/2014
Delivery Units,Adults and Communities,Other Agencies - Third Party Payment,30038657,CARETECH COMMUNITY SERVICES LTD,"4,627.86",30/09/2014
Delivery Units,Adults and Communities,Other Agencies - Third Party Payment,30032554,CARETECH COMMUNITY SERVICES LTD,"4,646.55",02/09/2014
Delivery Units,Adults and Communities,Other Agencies - Third Party Payment,30038654,CARETECH COMMUNITY SERVICES LTD,"4,774.00",30/09/2014
Delivery Units,Adults and Communities,Other Agencies - Third Party Payment,30032584,CARETECH COMMUNITY SERVICES LTD,"4,782.86",02/09/2014
Delivery Units,Adults and Communities,Other Agencies - Third Party Payment,30032555,CARETECH COMMUNITY SERVICES LTD,"4,817.18",02/09/2014
Delivery Units,Adults and Communities,Other Agencies - Third Party Payment,30032282,CARETECH COMMUNITY SERVICES LTD,"4,926.43",01/09/2014
Delivery Units,Adults and Communities,Other Agencies - Third Party Payment,30032569,CARETECH COMMUNITY SERVICES LTD,"5,059.38",02/09/2014
Delivery Units,Adults and Communities,Other Agencies - Third Party Payment,30033316,CARETECH COMMUNITY SERVICES LTD,"5,059.38",03/09/2014
Delivery Units,Adults and Communities,Other Agencies - Third Party Payment,30032576,CARETECH COMMUNITY SERVICES LTD,"5,468.93",02/09/2014
Delivery Units,Adults and Communities,Other Agencies - Third Party Payment,30033314,CARETECH COMMUNITY SERVICES LTD,"5,468.93",03/09/2014
Delivery Units,Adults and Communities,Other Agencies - Third Party Payment,30032574,CARETECH COMMUNITY SERVICES LTD,"5,823.57",02/09/2014
Delivery Units,Adults and Communities,Other Agencies - Third Party Payment,30033311,CARETECH COMMUNITY SERVICES LTD,"5,890.00",03/09/2014
Delivery Units,Adults and Communities,Other Agencies - Third Party Payment,30036423,CARETECH COMMUNITY SERVICES LTD,"5,971.33",17/09/2014
Delivery Units,Adults and Communities,Other Agencies - Third Party Payment,30032581,CARETECH COMMUNITY SERVICES LTD,"5,987.43",02/09/2014
Delivery Units,Adults and Communities,Other Agencies - Third Party Payment,30032572,CARETECH COMMUNITY SERVICES LTD,"6,328.43",02/09/2014
Delivery Units,Adults and Communities,Other Agencies - Third Party Payment,30032551,CARETECH COMMUNITY SERVICES LTD,"6,551.23",02/09/2014
Delivery Units,Adults and Communities,Other Agencies - Third Party Payment,30032558,CARETECH COMMUNITY SERVICES LTD,"6,551.23",02/09/2014
Delivery Units,Adults and Communities,Other Agencies - Third Party Payment,30032548,CARETECH COMMUNITY SERVICES LTD,"6,653.80",02/09/2014
Delivery Units,Adults and Communities,Other Agencies - Third Party Payment,30032562,CARETECH COMMUNITY SERVICES LTD,"6,653.80",02/09/2014
Delivery Units,Adults and Communities,Other Agencies - Third Party Payment,30032567,CARETECH COMMUNITY SERVICES LTD,"6,952.37",02/09/2014
Delivery Units,Adults and Communities,Other Agencies - Third Party Payment,30032586,CARETECH COMMUNITY SERVICES LTD,"7,072.43",02/09/2014
Delivery Units,Adults and Communities,Other Agencies - Third Party Payment,30032564,CARETECH COMMUNITY SERVICES LTD,"7,287.66",02/09/2014
Delivery Units,Adults and Communities,Other Agencies - Third Party Payment,30032557,CARETECH COMMUNITY SERVICES LTD,"7,621.57",02/09/2014
Delivery Units,Adults and Communities,Other Agencies - Third Party Payment,30033313,CARETECH COMMUNITY SERVICES LTD,"8,431.42",03/09/2014
Delivery Units,Adults and Communities,Other Agencies - Third Party Payment,30038165,CAREWATCH (BARNET),304.43,26/09/2014
Delivery Units,Adults and Communities,Other Agencies - Third Party Payment,30038166,CAREWATCH (BARNET),304.43,26/09/2014
Delivery Units,Adults and Communities,Other Agencies - Third Party Payment,30038167,CAREWATCH (BARNET),304.43,26/09/2014
Delivery Units,Adults and Communities,Other Agencies - Third Party Payment,30038576,CAREWATCH (BARNET),387.77,30/09/2014
Delivery Units,Adults and Communities,Other Agencies - Third Party Payment,30037955,CAREWATCH (BARNET),456.68,25/09/2014
Delivery Units,Adults and Communities,Other Agencies - Third Party Payment,30032152,CARLTON COURT (TLC GROUP),-883.94,01/09/2014
Delivery Units,Adults and Communities,Other Agencies - Third Party Payment,30038600,CARLTON COURT (TLC GROUP),-855.43,30/09/2014
Delivery Units,Adults and Communities,Other Agencies - Third Party Payment,30032136,CARLTON COURT (TLC GROUP),-630.45,01/09/2014
Delivery Units,Adults and Communities,Other Agencies - Third Party Payment,30038588,CARLTON COURT (TLC GROUP),-610.11,30/09/2014
Delivery Units,Adults and Communities,Other Agencies - Third Party Payment,30032134,CARLTON COURT (TLC GROUP),-557.16,01/09/2014
Delivery Units,Adults and Communities,Other Agencies - Third Party Payment,30032132,CARLTON COURT (TLC GROUP),-548.92,01/09/2014
Delivery Units,Adults and Communities,Other Agencies - Third Party Payment,30032154,CARLTON COURT (TLC GROUP),-351.67,01/09/2014
Delivery Units,Adults and Communities,Other Agencies - Third Party Payment,30032127,CARLTON COURT (TLC GROUP),"2,216.41",01/09/2014
Delivery Units,Adults and Communities,Other Agencies - Third Party Payment,30032129,CARLTON COURT (TLC GROUP),"2,216.41",01/09/2014
Delivery Units,Adults and Communities,Other Agencies - Third Party Payment,30032146,CARLTON COURT (TLC GROUP),"2,216.41",01/09/2014
Delivery Units,Adults and Communities,Other Agencies - Third Party Payment,30038587,CARLTON COURT (TLC GROUP),"2,244.12",30/09/2014
Delivery Units,Adults and Communities,Other Agencies - Third Party Payment,30038593,CARLTON COURT (TLC GROUP),"2,244.13",30/09/2014
Delivery Units,Adults and Communities,Other Agencies - Third Party Payment,30038596,CARLTON COURT (TLC GROUP),"2,244.13",30/09/2014
Delivery Units,Adults and Communities,Other Agencies - Third Party Payment,30038598,CARLTON COURT (TLC GROUP),"2,244.13",30/09/2014
Delivery Units,Adults and Communities,Other Agencies - Third Party Payment,30032130,CARLTON COURT (TLC GROUP),"2,318.93",01/09/2014
Delivery Units,Adults and Communities,Other Agencies - Third Party Payment,30032135,CARLTON COURT (TLC GROUP),"2,318.93",01/09/2014
Delivery Units,Adults and Communities,Other Agencies - Third Party Payment,30032142,CARLTON COURT (TLC GROUP),"2,318.93",01/09/2014
Delivery Units,Adults and Communities,Other Agencies - Third Party Payment,30032148,CARLTON COURT (TLC GROUP),"2,318.93",01/09/2014
Delivery Units,Adults and Communities,Other Agencies - Third Party Payment,30032150,CARLTON COURT (TLC GROUP),"2,318.93",01/09/2014
Delivery Units,Adults and Communities,Other Agencies - Third Party Payment,30038595,CARLTON COURT (TLC GROUP),"2,340.04",30/09/2014
Delivery Units,Adults and Communities,Other Agencies - Third Party Payment,30032128,CARLTON COURT (TLC GROUP),"2,418.04",01/09/2014
Delivery Units,Adults and Communities,Other Agencies - Third Party Payment,30032131,CARLTON COURT (TLC GROUP),"2,418.04",01/09/2014
Delivery Units,Adults and Communities,Other Agencies - Third Party Payment,30032147,CARLTON COURT (TLC GROUP),"2,418.04",01/09/2014
Delivery Units,Adults and Communities,Other Agencies - Third Party Payment,30038589,CARLTON COURT (TLC GROUP),"2,487.77",30/09/2014
Delivery Units,Adults and Communities,Other Agencies - Third Party Payment,30038590,CARLTON COURT (TLC GROUP),"2,487.77",30/09/2014
Delivery Units,Adults and Communities,Other Agencies - Third Party Payment,30038591,CARLTON COURT (TLC GROUP),"2,487.77",30/09/2014
Delivery Units,Adults and Communities,Other Agencies - Third Party Payment,30038592,CARLTON COURT (TLC GROUP),"2,487.77",30/09/2014
Delivery Units,Adults and Communities,Other Agencies - Third Party Payment,30038594,CARLTON COURT (TLC GROUP),"2,487.77",30/09/2014
Delivery Units,Adults and Communities,Other Agencies - Third Party Payment,30038597,CARLTON COURT (TLC GROUP),"2,487.77",30/09/2014
Delivery Units,Adults and Communities,Other Agencies - Third Party Payment,30038599,CARLTON COURT (TLC GROUP),"2,487.77",30/09/2014
Delivery Units,Adults and Communities,Other Agencies - Third Party Payment,30032151,CARLTON COURT (TLC GROUP),"2,570.69",01/09/2014
Delivery Units,Adults and Communities,Other Agencies - Third Party Payment,30032133,CARLTON COURT (TLC GROUP),"2,570.70",01/09/2014
Delivery Units,Adults and Communities,Other Agencies - Third Party Payment,30032137,CARLTON COURT (TLC GROUP),"2,570.70",01/09/2014
Delivery Units,Adults and Communities,Other Agencies - Third Party Payment,30032138,CARLTON COURT (TLC GROUP),"2,570.70",01/09/2014
Delivery Units,Adults and Communities,Other Agencies - Third Party Payment,30032139,CARLTON COURT (TLC GROUP),"2,570.70",01/09/2014
Delivery Units,Adults and Communities,Other Agencies - Third Party Payment,30032140,CARLTON COURT (TLC GROUP),"2,570.70",01/09/2014
Delivery Units,Adults and Communities,Other Agencies - Third Party Payment,30032141,CARLTON COURT (TLC GROUP),"2,570.70",01/09/2014
Delivery Units,Adults and Communities,Other Agencies - Third Party Payment,30032143,CARLTON COURT (TLC GROUP),"2,570.70",01/09/2014
Delivery Units,Adults and Communities,Other Agencies - Third Party Payment,30032144,CARLTON COURT (TLC GROUP),"2,570.70",01/09/2014
Delivery Units,Adults and Communities,Other Agencies - Third Party Payment,30032145,CARLTON COURT (TLC GROUP),"2,570.70",01/09/2014
Delivery Units,Adults and Communities,Other Agencies - Third Party Payment,30032149,CARLTON COURT (TLC GROUP),"2,570.70",01/09/2014
Delivery Units,Adults and Communities,Other Agencies - Third Party Payment,30033578,CARLTON COURT (TLC GROUP),"2,570.70",04/09/2014
Delivery Units,Adults and Communities,Other Agencies - Third Party Payment,30032153,CARLTON COURT (TLC GROUP),"2,670.60",01/09/2014
Delivery Units,Adults and Communities,Other Agencies - Third Party Payment,30038586,CARLTON COURT (TLC GROUP),"4,071.43",30/09/2014
Delivery Units,Adults and Communities,Other Agencies - Third Party Payment,30032126,CARLTON COURT (TLC GROUP),"4,207.14",01/09/2014
Delivery Units,Adults and Communities,Other Agencies - Third Party Payment,30032422,CARMEN LODGE RESIDENTIAL HOME,"2,739.47",02/09/2014
Delivery Units,Adults and Communities,Other Agencies - Third Party Payment,30033789,CARTREF CARE HOME,"2,001.92",05/09/2014
Delivery Units,Adults and Communities,Other Agencies - Third Party Payment,30032070,CARTREF CARE HOME,"2,001.98",01/09/2014
Delivery Units,Adults and Communities,Other Agencies - Third Party Payment,30032411,CATHERINE LODGE,"2,184.04",02/09/2014
Delivery Units,Adults and Communities,Other Agencies - Third Party Payment,30032412,CATHERINE LODGE,"2,184.04",02/09/2014
Delivery Units,Adults and Communities,Other Agencies - Third Party Payment,30035893,CATHERINE LODGE,"2,184.04",17/09/2014
Delivery Units,Adults and Communities,Other Agencies - Third Party Payment,30035896,CATHERINE LODGE,"2,184.04",17/09/2014
Delivery Units,Adults and Communities,Other Agencies - Third Party Payment,30035895,CATHERINE LODGE,"2,660.00",17/09/2014
Delivery Units,Adults and Communities,Other Agencies - Third Party Payment,30036993,CAVENDISH RADIO CARS,901.40,23/09/2014
Delivery Units,Adults and Communities,Other Agencies - Third Party Payment,30036994,CAVENDISH RADIO CARS,901.40,23/09/2014
Delivery Units,Adults and Communities,Other Agencies - Third Party Payment,30036995,CAVENDISH RADIO CARS,901.40,23/09/2014
Delivery Units,Adults and Communities,Other Agencies - Third Party Payment,30032505,CEDARS NURSING HOME,"2,318.93",02/09/2014
Delivery Units,Adults and Communities,Other Agencies - Third Party Payment,30032510,CEDARS NURSING HOME,"2,318.93",02/09/2014
Delivery Units,Adults and Communities,Other Agencies - Third Party Payment,30032506,CEDARS NURSING HOME,"2,358.17",02/09/2014
Delivery Units,Adults and Communities,Other Agencies - Third Party Payment,30032513,CEDARS NURSING HOME,"2,358.17",02/09/2014
Delivery Units,Adults and Communities,Other Agencies - Third Party Payment,30032514,CEDARS NURSING HOME,"2,418.04",02/09/2014
Delivery Units,Adults and Communities,Other Agencies - Third Party Payment,30032502,CEDARS NURSING HOME,"2,570.70",02/09/2014
Delivery Units,Adults and Communities,Other Agencies - Third Party Payment,30032503,CEDARS NURSING HOME,"2,570.70",02/09/2014
Delivery Units,Adults and Communities,Other Agencies - Third Party Payment,30032504,CEDARS NURSING HOME,"2,570.70",02/09/2014
Delivery Units,Adults and Communities,Other Agencies - Third Party Payment,30032507,CEDARS NURSING HOME,"2,570.70",02/09/2014
Delivery Units,Adults and Communities,Other Agencies - Third Party Payment,30032508,CEDARS NURSING HOME,"2,570.70",02/09/2014
Delivery Units,Adults and Communities,Other Agencies - Third Party Payment,30032509,CEDARS NURSING HOME,"2,570.70",02/09/2014
Delivery Units,Adults and Communities,Other Agencies - Third Party Payment,30032511,CEDARS NURSING HOME,"2,570.70",02/09/2014
Delivery Units,Adults and Communities,Other Agencies - Third Party Payment,30033594,CEDARS NURSING HOME,"2,570.70",04/09/2014
Delivery Units,Adults and Communities,Other Agencies - Third Party Payment,30032512,CEDARS NURSING HOME,"3,942.36",02/09/2014
Delivery Units,Adults and Communities,Other Agencies - Third Party Payment,30032022,CHARING GARDENS LTD,"2,124.61",01/09/2014
Delivery Units,Adults and Communities,Other Agencies - Third Party Payment,30032062,CHATSWORTH CARE,"10,606.43",01/09/2014
Delivery Units,Adults and Communities,Other Agencies - Third Party Payment,30034819,CHEQUERS TRANSPORT LIMITED,480.00,11/09/2014
Delivery Units,Adults and Communities,Other Agencies - Third Party Payment,30033946,CHEQUERS TRANSPORT LIMITED,953.04,08/09/2014
Delivery Units,Adults and Communities,Other Agencies - Third Party Payment,30037158,CLARE HOUSE NURSING HOME,"2,094.52",23/09/2014
Delivery Units,Adults and Communities,Other Agencies - Third Party Payment,20011287,CLAREMONT HOUSE,"3,321.65",08/09/2014
Delivery Units,Adults and Communities,Other Agencies - Third Party Payment,30032183,CLOVELLY HOUSE RESID. HOME LTD,-713.04,01/09/2014
Delivery Units,Adults and Communities,Other Agencies - Third Party Payment,30036379,CLOVELLY HOUSE RESID. HOME LTD,-311.40,17/09/2014
Delivery Units,Adults and Communities,Other Agencies - Third Party Payment,30032520,CLOVELLY HOUSE RESID. HOME LTD,468.01,08/09/2014
Delivery Units,Adults and Communities,Other Agencies - Third Party Payment,30032515,CLOVELLY HOUSE RESID. HOME LTD,"1,114.29",04/09/2014
Delivery Units,Adults and Communities,Other Agencies - Third Party Payment,30032178,CLOVELLY HOUSE RESID. HOME LTD,"2,184.04",01/09/2014
Delivery Units,Adults and Communities,Other Agencies - Third Party Payment,30032179,CLOVELLY HOUSE RESID. HOME LTD,"2,184.04",01/09/2014
Delivery Units,Adults and Communities,Other Agencies - Third Party Payment,30032180,CLOVELLY HOUSE RESID. HOME LTD,"2,184.04",01/09/2014
Delivery Units,Adults and Communities,Other Agencies - Third Party Payment,30036378,CLOVELLY HOUSE RESID. HOME LTD,"2,184.04",17/09/2014
Delivery Units,Adults and Communities,Other Agencies - Third Party Payment,30036862,CLOVELLY HOUSE RESID. HOME LTD,"2,184.04",22/09/2014
Delivery Units,Adults and Communities,Other Agencies - Third Party Payment,30038613,CLOVELLY HOUSE RESID. HOME LTD,"2,184.04",30/09/2014
Delivery Units,Adults and Communities,Other Agencies - Third Party Payment,30032181,CLOVELLY HOUSE RESID. HOME LTD,"2,380.00",01/09/2014
Delivery Units,Adults and Communities,Other Agencies - Third Party Payment,30032177,CLOVELLY HOUSE RESID. HOME LTD,"2,600.00",01/09/2014
Delivery Units,Adults and Communities,Other Agencies - Third Party Payment,30032516,CLOVELLY HOUSE RESID. HOME LTD,"2,600.00",04/09/2014
Delivery Units,Adults and Communities,Other Agencies - Third Party Payment,30032517,CLOVELLY HOUSE RESID. HOME LTD,"2,600.00",04/09/2014
Delivery Units,Adults and Communities,Other Agencies - Third Party Payment,30032518,CLOVELLY HOUSE RESID. HOME LTD,"2,600.00",04/09/2014
Delivery Units,Adults and Communities,Other Agencies - Third Party Payment,30032519,CLOVELLY HOUSE RESID. HOME LTD,"2,600.00",04/09/2014
Delivery Units,Adults and Communities,Other Agencies - Third Party Payment,30032026,CMG HOMES LTD,-495.80,01/09/2014
Delivery Units,Adults and Communities,Other Agencies - Third Party Payment,30032028,CMG HOMES LTD,-495.80,01/09/2014
Delivery Units,Adults and Communities,Other Agencies - Third Party Payment,30032030,CMG HOMES LTD,-495.80,01/09/2014
Delivery Units,Adults and Communities,Other Agencies - Third Party Payment,30036946,CMG HOMES LTD,-495.80,23/09/2014
Delivery Units,Adults and Communities,Other Agencies - Third Party Payment,30036949,CMG HOMES LTD,-495.80,23/09/2014
Delivery Units,Adults and Communities,Other Agencies - Third Party Payment,30036957,CMG HOMES LTD,-495.80,23/09/2014
Delivery Units,Adults and Communities,Other Agencies - Third Party Payment,30036947,CMG HOMES LTD,592.40,23/09/2014
Delivery Units,Adults and Communities,Other Agencies - Third Party Payment,30032025,CMG HOMES LTD,"2,097.96",01/09/2014
Delivery Units,Adults and Communities,Other Agencies - Third Party Payment,30032027,CMG HOMES LTD,"2,097.96",01/09/2014
Delivery Units,Adults and Communities,Other Agencies - Third Party Payment,30036945,CMG HOMES LTD,"2,097.96",23/09/2014
Delivery Units,Adults and Communities,Other Agencies - Third Party Payment,30036948,CMG HOMES LTD,"2,097.96",23/09/2014
Delivery Units,Adults and Communities,Other Agencies - Third Party Payment,30037977,CMG HOMES LTD,"3,086.84",25/09/2014
Delivery Units,Adults and Communities,Other Agencies - Third Party Payment,30032029,CMG HOMES LTD,"3,990.12",01/09/2014
Delivery Units,Adults and Communities,Other Agencies - Third Party Payment,30036956,CMG HOMES LTD,"3,990.12",23/09/2014
Delivery Units,Adults and Communities,Other Agencies - Third Party Payment,30037981,CMG HOMES LTD,"4,800.00",25/09/2014
Delivery Units,Adults and Communities,Other Agencies - Third Party Payment,30032036,COMPLETE CARE SERVICES LTD,"5,426.86",01/09/2014
Delivery Units,Adults and Communities,Other Agencies - Third Party Payment,30033306,CONNIFERS CARE LTD,"8,546.43",03/09/2014
Delivery Units,Adults and Communities,Other Agencies - Third Party Payment,20011917,COURT OF PROTECTION,400.00,30/09/2014
Delivery Units,Adults and Communities,Other Agencies - Third Party Payment,30033242,CRAEGMOOR,-278.34,03/09/2014
Delivery Units,Adults and Communities,Other Agencies - Third Party Payment,30033241,CRAEGMOOR,"3,787.36",03/09/2014
Delivery Units,Adults and Communities,Other Agencies - Third Party Payment,30036922,CREATIVE SUPPORT LTD,349.60,23/09/2014
Delivery Units,Adults and Communities,Other Agencies - Third Party Payment,30033549,CRESWICK HOUSE,-319.40,04/09/2014
Delivery Units,Adults and Communities,Other Agencies - Third Party Payment,30033551,CRESWICK HOUSE,-319.40,04/09/2014
Delivery Units,Adults and Communities,Other Agencies - Third Party Payment,30037015,CRESWICK HOUSE,-319.40,25/09/2014
Delivery Units,Adults and Communities,Other Agencies - Third Party Payment,30037017,CRESWICK HOUSE,-319.40,25/09/2014
Delivery Units,Adults and Communities,Other Agencies - Third Party Payment,30033548,CRESWICK HOUSE,"3,608.24",04/09/2014
Delivery Units,Adults and Communities,Other Agencies - Third Party Payment,30037014,CRESWICK HOUSE,"3,608.24",25/09/2014
Delivery Units,Adults and Communities,Other Agencies - Third Party Payment,30033550,CRESWICK HOUSE,"6,091.28",04/09/2014
Delivery Units,Adults and Communities,Other Agencies - Third Party Payment,30037016,CRESWICK HOUSE,"6,091.28",25/09/2014
Delivery Units,Adults and Communities,Other Agencies - Third Party Payment,30033552,CRESWICK HOUSE,"7,123.12",04/09/2014
Delivery Units,Adults and Communities,Other Agencies - Third Party Payment,30037018,CRESWICK HOUSE,"7,123.12",25/09/2014
Delivery Units,Adults and Communities,Other Agencies - Third Party Payment,30034095,CYGNET HEALTH CARE,-362.80,25/09/2014
Delivery Units,Adults and Communities,Other Agencies - Third Party Payment,30034094,CYGNET HEALTH CARE,"6,485.04",25/09/2014
Delivery Units,Adults and Communities,Other Agencies - Third Party Payment,30035049,DABB PAA,"1,140.48",15/09/2014
Delivery Units,Adults and Communities,Other Agencies - Third Party Payment,30033526,DANA CARE LIMITED,-353.62,04/09/2014
Delivery Units,Adults and Communities,Other Agencies - Third Party Payment,30033532,DANA CARE LIMITED,-353.62,04/09/2014
Delivery Units,Adults and Communities,Other Agencies - Third Party Payment,30033564,DANA CARE LIMITED,-353.62,04/09/2014
Delivery Units,Adults and Communities,Other Agencies - Third Party Payment,30038569,DANA CARE LIMITED,-342.21,30/09/2014
Delivery Units,Adults and Communities,Other Agencies - Third Party Payment,30038571,DANA CARE LIMITED,-342.21,30/09/2014
Delivery Units,Adults and Communities,Other Agencies - Third Party Payment,30038581,DANA CARE LIMITED,-342.21,30/09/2014
Delivery Units,Adults and Communities,Other Agencies - Third Party Payment,30038568,DANA CARE LIMITED,"4,791.55",30/09/2014
Delivery Units,Adults and Communities,Other Agencies - Third Party Payment,30033525,DANA CARE LIMITED,"4,951.27",04/09/2014
Delivery Units,Adults and Communities,Other Agencies - Third Party Payment,30038580,DANA CARE LIMITED,"7,912.32",30/09/2014
Delivery Units,Adults and Communities,Other Agencies - Third Party Payment,30033563,DANA CARE LIMITED,"8,176.07",04/09/2014
Delivery Units,Adults and Communities,Other Agencies - Third Party Payment,30038585,DANA CARE LIMITED,"9,582.86",30/09/2014
Delivery Units,Adults and Communities,Other Agencies - Third Party Payment,30038570,DANA CARE LIMITED,"9,775.71",30/09/2014
Delivery Units,Adults and Communities,Other Agencies - Third Party Payment,30033788,DANA CARE LIMITED,"9,902.29",05/09/2014
Delivery Units,Adults and Communities,Other Agencies - Third Party Payment,30033531,DANA CARE LIMITED,"10,101.57",04/09/2014
Delivery Units,Adults and Communities,Other Agencies - Third Party Payment,30034825,DEVELOPMENT AND LEARNING OPPORTUNIT,306.00,11/09/2014
Delivery Units,Adults and Communities,Other Agencies - Third Party Payment,30034834,DEVELOPMENT AND LEARNING OPPORTUNIT,306.00,11/09/2014
Delivery Units,Adults and Communities,Other Agencies - Third Party Payment,30034827,DEVELOPMENT AND LEARNING OPPORTUNIT,500.00,11/09/2014
Delivery Units,Adults and Communities,Other Agencies - Third Party Payment,30034832,DEVELOPMENT AND LEARNING OPPORTUNIT,500.00,11/09/2014
Delivery Units,Adults and Communities,Other Agencies - Third Party Payment,30034826,DEVELOPMENT AND LEARNING OPPORTUNIT,652.40,11/09/2014
Delivery Units,Adults and Communities,Other Agencies - Third Party Payment,30034831,DEVELOPMENT AND LEARNING OPPORTUNIT,652.40,11/09/2014
Delivery Units,Adults and Communities,Other Agencies - Third Party Payment,30034828,DEVELOPMENT AND LEARNING OPPORTUNIT,908.28,11/09/2014
Delivery Units,Adults and Communities,Other Agencies - Third Party Payment,30034830,DEVELOPMENT AND LEARNING OPPORTUNIT,908.28,11/09/2014
Delivery Units,Adults and Communities,Other Agencies - Third Party Payment,30034829,DEVELOPMENT AND LEARNING OPPORTUNIT,"1,056.00",11/09/2014
Delivery Units,Adults and Communities,Other Agencies - Third Party Payment,30034833,DEVELOPMENT AND LEARNING OPPORTUNIT,"1,056.00",11/09/2014
Delivery Units,Adults and Communities,Other Agencies - Third Party Payment,30034146,DILLON CARE LTD,"3,900.00",10/09/2014
Delivery Units,Adults and Communities,Other Agencies - Third Party Payment,30037180,DIMENSIONS UK,965.60,23/09/2014
Delivery Units,Adults and Communities,Other Agencies - Third Party Payment,30036584,DIMENSIONS UK,"1,541.00",18/09/2014
Delivery Units,Adults and Communities,Other Agencies - Third Party Payment,30036580,DIMENSIONS UK,"2,128.00",18/09/2014
Delivery Units,Adults and Communities,Other Agencies - Third Party Payment,30037188,DIMENSIONS UK,"4,495.76",23/09/2014
Delivery Units,Adults and Communities,Other Agencies - Third Party Payment,30037189,DIMENSIONS UK,"4,495.76",23/09/2014
Delivery Units,Adults and Communities,Other Agencies - Third Party Payment,30037187,DIMENSIONS UK,"6,025.32",23/09/2014
Delivery Units,Adults and Communities,Other Agencies - Third Party Payment,30034087,DIMENSIONS UK,"7,950.68",09/09/2014
Delivery Units,Adults and Communities,Other Agencies - Third Party Payment,30033290,DR FRENCH MEMORIAL HOME LTD,546.01,03/09/2014
Delivery Units,Adults and Communities,Other Agencies - Third Party Payment,30036383,DR FRENCH MEMORIAL HOME LTD,"2,418.04",17/09/2014
Delivery Units,Adults and Communities,Other Agencies - Third Party Payment,30035073,DYNAMIC PEOPLE LTD,310.00,16/09/2014
Delivery Units,Adults and Communities,Other Agencies - Third Party Payment,30038080,DYNAMIC PEOPLE LTD,527.50,25/09/2014
Delivery Units,Adults and Communities,Other Agencies - Third Party Payment,30036854,DYNAMIC PEOPLE LTD,730.00,22/09/2014
Delivery Units,Adults and Communities,Other Agencies - Third Party Payment,30036855,DYNAMIC PEOPLE LTD,"1,990.00",22/09/2014
Delivery Units,Adults and Communities,Other Agencies - Third Party Payment,30033785,EASTSIDE HOUSE RESIDENTIAL CARE HOM,"1,092.00",05/09/2014
Delivery Units,Adults and Communities,Other Agencies - Third Party Payment,30036569,EASTSIDE HOUSE RESIDENTIAL CARE HOM,"2,001.92",19/09/2014
Delivery Units,Adults and Communities,Other Agencies - Third Party Payment,30038565,EASTSIDE HOUSE RESIDENTIAL CARE HOM,"2,184.04",30/09/2014
Delivery Units,Adults and Communities,Other Agencies - Third Party Payment,30033943,ELIZA HOUSE,"2,216.41",08/09/2014
Delivery Units,Adults and Communities,Other Agencies - Third Party Payment,30033231,ELIZABETH FITZROY SUPPORT,-353.62,03/09/2014
Delivery Units,Adults and Communities,Other Agencies - Third Party Payment,30033260,ELIZABETH FITZROY SUPPORT,-353.62,03/09/2014
Delivery Units,Adults and Communities,Other Agencies - Third Party Payment,30038618,ELIZABETH HOUSE,"2,340.04",30/09/2014
Delivery Units,Adults and Communities,Other Agencies - Third Party Payment,30032233,ELIZABETH HOUSE,"2,418.04",01/09/2014
Delivery Units,Adults and Communities,Other Agencies - Third Party Payment,30033855,ELM PARK LODGE,-548.92,05/09/2014
Delivery Units,Adults and Communities,Other Agencies - Third Party Payment,30033875,ELM PARK LODGE,-548.92,05/09/2014
Delivery Units,Adults and Communities,Other Agencies - Third Party Payment,30033860,ELM PARK LODGE,-353.58,05/09/2014
Delivery Units,Adults and Communities,Other Agencies - Third Party Payment,30032539,ELM PARK LODGE,-342.17,02/09/2014
Delivery Units,Adults and Communities,Other Agencies - Third Party Payment,30032538,ELM PARK LODGE,"2,035.46",02/09/2014
Delivery Units,Adults and Communities,Other Agencies - Third Party Payment,30033859,ELM PARK LODGE,"2,103.31",05/09/2014
Delivery Units,Adults and Communities,Other Agencies - Third Party Payment,30033874,ELM PARK LODGE,"2,103.31",05/09/2014
Delivery Units,Adults and Communities,Other Agencies - Third Party Payment,30033865,ELM PARK LODGE,"2,161.85",05/09/2014
Delivery Units,Adults and Communities,Other Agencies - Third Party Payment,30033861,ELM PARK LODGE,"3,100.00",05/09/2014
Delivery Units,Adults and Communities,Other Agencies - Third Party Payment,30033854,ELM PARK LODGE,"3,166.43",05/09/2014
Delivery Units,Adults and Communities,Other Agencies - Third Party Payment,30033872,ELM PARK LODGE,"3,210.71",05/09/2014
Delivery Units,Adults and Communities,Other Agencies - Third Party Payment,30033866,ELM PARK LODGE,"3,299.29",05/09/2014
Delivery Units,Adults and Communities,Other Agencies - Third Party Payment,30033869,ELM PARK LODGE,"3,387.86",05/09/2014
Delivery Units,Adults and Communities,Other Agencies - Third Party Payment,30033873,ELM PARK LODGE,"3,387.86",05/09/2014
Delivery Units,Adults and Communities,Other Agencies - Third Party Payment,30033876,ELM PARK LODGE,"3,455.61",05/09/2014
Delivery Units,Adults and Communities,Other Agencies - Third Party Payment,30033856,ELM PARK LODGE,"3,520.71",05/09/2014
Delivery Units,Adults and Communities,Other Agencies - Third Party Payment,30033858,ELM PARK LODGE,"3,612.87",05/09/2014
Delivery Units,Adults and Communities,Other Agencies - Third Party Payment,30033877,ELM PARK LODGE,"3,612.87",05/09/2014
Delivery Units,Adults and Communities,Other Agencies - Third Party Payment,30033852,ELM PARK LODGE,"3,652.91",05/09/2014
Delivery Units,Adults and Communities,Other Agencies - Third Party Payment,30036567,EMMAUS HOUSE,"2,184.04",18/09/2014
Delivery Units,Adults and Communities,Other Agencies - Third Party Payment,30033853,EVE HERSOV & CO,262.00,05/09/2014
Delivery Units,Adults and Communities,Other Agencies - Third Party Payment,20011200,FERNBANK NURSING HOME.,"2,318.80",04/09/2014
Delivery Units,Adults and Communities,Other Agencies - Third Party Payment,30032085,FERNBANK NURSING HOME.,"2,318.80",01/09/2014
Delivery Units,Adults and Communities,Other Agencies - Third Party Payment,30032086,FERNBANK NURSING HOME.,"2,318.80",01/09/2014
Delivery Units,Adults and Communities,Other Agencies - Third Party Payment,30032087,FERNBANK NURSING HOME.,"2,318.80",01/09/2014
Delivery Units,Adults and Communities,Other Agencies - Third Party Payment,30032088,FERNBANK NURSING HOME.,"2,318.80",01/09/2014
Delivery Units,Adults and Communities,Other Agencies - Third Party Payment,30032089,FERNBANK NURSING HOME.,"2,318.80",01/09/2014
Delivery Units,Adults and Communities,Other Agencies - Third Party Payment,30032091,FERNBANK NURSING HOME.,"2,318.80",01/09/2014
Delivery Units,Adults and Communities,Other Agencies - Third Party Payment,30032092,FERNBANK NURSING HOME.,"2,318.80",01/09/2014
Delivery Units,Adults and Communities,Other Agencies - Third Party Payment,30033263,FERNBANK NURSING HOME.,"2,318.80",03/09/2014
Delivery Units,Adults and Communities,Other Agencies - Third Party Payment,30032093,FERNBANK NURSING HOME.,"2,570.52",01/09/2014
Delivery Units,Adults and Communities,Other Agencies - Third Party Payment,30038584,FINBOND LIMITED,"2,144.91",30/09/2014
Delivery Units,Adults and Communities,Other Agencies - Third Party Payment,30032454,FINBOND LIMITED,"2,216.41",02/09/2014
Delivery Units,Adults and Communities,Other Agencies - Third Party Payment,30032455,FINBOND LIMITED,"2,216.41",02/09/2014
Delivery Units,Adults and Communities,Other Agencies - Third Party Payment,30037175,FLAGSWAN TWO LTD,-256.84,23/09/2014
Delivery Units,Adults and Communities,Other Agencies - Third Party Payment,30036872,FLAGSWAN TWO LTD,"2,418.04",22/09/2014
Delivery Units,Adults and Communities,Other Agencies - Third Party Payment,30038648,FLAGSWAN TWO LTD,"2,498.57",30/09/2014
Delivery Units,Adults and Communities,Other Agencies - Third Party Payment,30037174,FLAGSWAN TWO LTD,"4,651.84",23/09/2014
Delivery Units,Adults and Communities,Other Agencies - Third Party Payment,30038649,FLAGSWAN TWO LTD,"4,937.85",30/09/2014
Delivery Units,Adults and Communities,Other Agencies - Third Party Payment,30038614,FOUR SEASONS HEALTH CARE,-411.88,30/09/2014
Delivery Units,Adults and Communities,Other Agencies - Third Party Payment,30038642,FOUR SEASONS HEALTH CARE,"1,075.99",30/09/2014
Delivery Units,Adults and Communities,Other Agencies - Third Party Payment,30038643,FOUR SEASONS HEALTH CARE,"1,346.47",30/09/2014
Delivery Units,Adults and Communities,Other Agencies - Third Party Payment,30038633,FOUR SEASONS HEALTH CARE,"2,090.12",30/09/2014
Delivery Units,Adults and Communities,Other Agencies - Third Party Payment,30038634,FOUR SEASONS HEALTH CARE,"2,090.12",30/09/2014
Delivery Units,Adults and Communities,Other Agencies - Third Party Payment,30038637,FOUR SEASONS HEALTH CARE,"2,090.12",30/09/2014
Delivery Units,Adults and Communities,Other Agencies - Third Party Payment,30038638,FOUR SEASONS HEALTH CARE,"2,090.12",30/09/2014
Delivery Units,Adults and Communities,Other Agencies - Third Party Payment,30038641,FOUR SEASONS HEALTH CARE,"2,090.12",30/09/2014
Delivery Units,Adults and Communities,Other Agencies - Third Party Payment,30038646,FOUR SEASONS HEALTH CARE,"2,090.12",30/09/2014
Delivery Units,Adults and Communities,Other Agencies - Third Party Payment,30032252,FOUR SEASONS HEALTH CARE,"2,090.16",01/09/2014
Delivery Units,Adults and Communities,Other Agencies - Third Party Payment,30038639,FOUR SEASONS HEALTH CARE,"2,090.16",30/09/2014
Delivery Units,Adults and Communities,Other Agencies - Third Party Payment,30032253,FOUR SEASONS HEALTH CARE,"2,127.92",01/09/2014
Delivery Units,Adults and Communities,Other Agencies - Third Party Payment,30038635,FOUR SEASONS HEALTH CARE,"2,127.92",30/09/2014
Delivery Units,Adults and Communities,Other Agencies - Third Party Payment,30038644,FOUR SEASONS HEALTH CARE,"2,127.92",30/09/2014
Delivery Units,Adults and Communities,Other Agencies - Third Party Payment,30038636,FOUR SEASONS HEALTH CARE,"2,317.52",30/09/2014
Delivery Units,Adults and Communities,Other Agencies - Third Party Payment,30038640,FOUR SEASONS HEALTH CARE,"2,317.52",30/09/2014
Delivery Units,Adults and Communities,Other Agencies - Third Party Payment,30038632,FOUR SEASONS HEALTH CARE,"2,447.76",30/09/2014
Delivery Units,Adults and Communities,Other Agencies - Third Party Payment,30038645,FOUR SEASONS HEALTH CARE,"2,486.76",30/09/2014
Delivery Units,Adults and Communities,Other Agencies - Third Party Payment,30034014,FREEWAYS TRUST LIMITED,-890.20,08/09/2014
Delivery Units,Adults and Communities,Other Agencies - Third Party Payment,30034017,FREEWAYS TRUST LIMITED,-890.20,25/09/2014
Delivery Units,Adults and Communities,Other Agencies - Third Party Payment,30034015,FREEWAYS TRUST LIMITED,829.80,08/09/2014
Delivery Units,Adults and Communities,Other Agencies - Third Party Payment,30034021,FREEWAYS TRUST LIMITED,829.80,25/09/2014
Delivery Units,Adults and Communities,Other Agencies - Third Party Payment,30034013,FREEWAYS TRUST LIMITED,"2,979.76",08/09/2014
Delivery Units,Adults and Communities,Other Agencies - Third Party Payment,30034016,FREEWAYS TRUST LIMITED,"2,979.76",25/09/2014
Delivery Units,Adults and Communities,Other Agencies - Third Party Payment,30033305,FREMANTLE TRUST,"-2,475.50",03/09/2014
Delivery Units,Adults and Communities,Other Agencies - Third Party Payment,30038413,FREMANTLE TRUST,"-2,043.60",26/09/2014
Delivery Units,Adults and Communities,Other Agencies - Third Party Payment,30038411,FREMANTLE TRUST,"-1,829.60",26/09/2014
Delivery Units,Adults and Communities,Other Agencies - Third Party Payment,30033303,FREMANTLE TRUST,"-1,258.10",03/09/2014
Delivery Units,Adults and Communities,Other Agencies - Third Party Payment,30038409,FREMANTLE TRUST,-516.60,26/09/2014
Delivery Units,Adults and Communities,Other Agencies - Third Party Payment,30035075,FREMANTLE TRUST,-345.61,16/09/2014
Delivery Units,Adults and Communities,Other Agencies - Third Party Payment,30037171,FREMANTLE TRUST,"2,236.44",23/09/2014
Delivery Units,Adults and Communities,Other Agencies - Third Party Payment,30037172,FREMANTLE TRUST,"2,236.44",23/09/2014
Delivery Units,Adults and Communities,Other Agencies - Third Party Payment,30038408,FREMANTLE TRUST,"3,227.39",26/09/2014
Delivery Units,Adults and Communities,Other Agencies - Third Party Payment,30033300,FREMANTLE TRUST,"3,949.94",03/09/2014
Delivery Units,Adults and Communities,Other Agencies - Third Party Payment,30035077,FREMANTLE TRUST,"9,677.20",16/09/2014
Delivery Units,Adults and Communities,Other Agencies - Third Party Payment,30033302,FREMANTLE TRUST,"21,917.35",03/09/2014
Delivery Units,Adults and Communities,Other Agencies - Third Party Payment,30038410,FREMANTLE TRUST,"23,073.43",26/09/2014
Delivery Units,Adults and Communities,Other Agencies - Third Party Payment,30038412,FREMANTLE TRUST,"33,381.81",26/09/2014
Delivery Units,Adults and Communities,Other Agencies - Third Party Payment,30033304,FREMANTLE TRUST,"33,767.17",03/09/2014
Delivery Units,Adults and Communities,Other Agencies - Third Party Payment,30032068,FRIARY LODGE,"2,216.41",01/09/2014
Delivery Units,Adults and Communities,Other Agencies - Third Party Payment,30032083,FRIARY LODGE,"2,216.41",01/09/2014
Delivery Units,Adults and Communities,Other Agencies - Third Party Payment,30032052,FRIARY LODGE,"2,418.04",01/09/2014
Delivery Units,Adults and Communities,Other Agencies - Third Party Payment,30032076,FRIARY LODGE,"2,418.04",01/09/2014
Delivery Units,Adults and Communities,Other Agencies - Third Party Payment,30034068,FRIERN RESIDENTIAL CARE HOME,-548.92,09/09/2014
Delivery Units,Adults and Communities,Other Agencies - Third Party Payment,30034076,FRIERN RESIDENTIAL CARE HOME,-548.92,09/09/2014
Delivery Units,Adults and Communities,Other Agencies - Third Party Payment,30034097,FRIERN RESIDENTIAL CARE HOME,-548.92,09/09/2014
Delivery Units,Adults and Communities,Other Agencies - Third Party Payment,30034086,FRIERN RESIDENTIAL CARE HOME,-401.87,09/09/2014
Delivery Units,Adults and Communities,Other Agencies - Third Party Payment,30034082,FRIERN RESIDENTIAL CARE HOME,-353.62,09/09/2014
Delivery Units,Adults and Communities,Other Agencies - Third Party Payment,30034067,FRIERN RESIDENTIAL CARE HOME,"1,260.37",09/09/2014
Delivery Units,Adults and Communities,Other Agencies - Third Party Payment,30034085,FRIERN RESIDENTIAL CARE HOME,"1,366.94",09/09/2014
Delivery Units,Adults and Communities,Other Agencies - Third Party Payment,30034081,FRIERN RESIDENTIAL CARE HOME,"2,103.30",09/09/2014
Delivery Units,Adults and Communities,Other Agencies - Third Party Payment,30034064,FRIERN RESIDENTIAL CARE HOME,"2,103.31",09/09/2014
Delivery Units,Adults and Communities,Other Agencies - Third Party Payment,30034075,FRIERN RESIDENTIAL CARE HOME,"2,216.41",09/09/2014
Delivery Units,Adults and Communities,Other Agencies - Third Party Payment,30034096,FRIERN RESIDENTIAL CARE HOME,"2,216.41",09/09/2014
Delivery Units,Adults and Communities,Other Agencies - Third Party Payment,20011831,G SAVILLE & SONS LTD,"1,000.00",23/09/2014
Delivery Units,Adults and Communities,Other Agencies - Third Party Payment,30033258,GABRIEL COURT RESIDENTIAL HOME,-610.30,03/09/2014
Delivery Units,Adults and Communities,Other Agencies - Third Party Payment,30033257,GABRIEL COURT RESIDENTIAL HOME,"2,793.23",03/09/2014
Delivery Units,Adults and Communities,Other Agencies - Third Party Payment,30033937,GENTLE CARE,296.24,08/09/2014
Delivery Units,Adults and Communities,Other Agencies - Third Party Payment,30036392,GENTLE HANDS CARE AGENCY,"1,400.00",17/09/2014
Delivery Units,Adults and Communities,Other Agencies - Third Party Payment,30033935,GLEBELANDS,"12,000.00",08/09/2014
Delivery Units,Adults and Communities,Other Agencies - Third Party Payment,30032262,GLENHOLME PSYCHIATRIC AFTER CARE HO,"3,986.16",01/09/2014
Delivery Units,Adults and Communities,Other Agencies - Third Party Payment,30032187,GLENHOLME PSYCHIATRIC AFTER CARE HO,"4,097.05",01/09/2014
Delivery Units,Adults and Communities,Other Agencies - Third Party Payment,30032326,GLENHOLME PSYCHIATRIC AFTER CARE HO,"4,207.14",01/09/2014
Delivery Units,Adults and Communities,Other Agencies - Third Party Payment,30032067,GLOUCESTERSHIRE GROUP HOMES,-814.41,01/09/2014
Delivery Units,Adults and Communities,Other Agencies - Third Party Payment,30032066,GLOUCESTERSHIRE GROUP HOMES,"4,189.16",01/09/2014
Delivery Units,Adults and Communities,Other Agencies - Third Party Payment,30033252,GRATWICK HOUSE CARE HOME,-487.80,03/09/2014
Delivery Units,Adults and Communities,Other Agencies - Third Party Payment,30033254,GRATWICK HOUSE CARE HOME,-487.80,03/09/2014
Delivery Units,Adults and Communities,Other Agencies - Third Party Payment,30033256,GRATWICK HOUSE CARE HOME,-487.80,03/09/2014
Delivery Units,Adults and Communities,Other Agencies - Third Party Payment,30037038,GRATWICK HOUSE CARE HOME,-487.80,23/09/2014
Delivery Units,Adults and Communities,Other Agencies - Third Party Payment,30033251,GRATWICK HOUSE CARE HOME,"2,001.92",03/09/2014
Delivery Units,Adults and Communities,Other Agencies - Third Party Payment,30033253,GRATWICK HOUSE CARE HOME,"2,001.92",03/09/2014
Delivery Units,Adults and Communities,Other Agencies - Third Party Payment,30033255,GRATWICK HOUSE CARE HOME,"2,001.92",03/09/2014
Delivery Units,Adults and Communities,Other Agencies - Third Party Payment,30037037,GRATWICK HOUSE CARE HOME,"2,001.92",23/09/2014
Delivery Units,Adults and Communities,Other Agencies - Third Party Payment,30033870,GREEN TREES,"2,184.04",05/09/2014
Delivery Units,Adults and Communities,Other Agencies - Third Party Payment,30033871,GREEN TREES,"2,184.04",05/09/2014
Delivery Units,Adults and Communities,Other Agencies - Third Party Payment,30036417,GREEN TREES,"2,184.04",17/09/2014
Delivery Units,Adults and Communities,Other Agencies - Third Party Payment,30033229,H.C.S. (ENFIELD) LTD,-353.62,03/09/2014
Delivery Units,Adults and Communities,Other Agencies - Third Party Payment,30033228,H.C.S. (ENFIELD) LTD,"5,271.77",03/09/2014
Delivery Units,Adults and Communities,Other Agencies - Third Party Payment,30032209,HALLMARK CARE (KINGS LYNN) LTD,"2,890.31",01/09/2014
Delivery Units,Adults and Communities,Other Agencies - Third Party Payment,30036578,HARDEN,"4,343.12",18/09/2014
Delivery Units,Adults and Communities,Other Agencies - Third Party Payment,30037962,HARTWIG CARE LIMITED,254.60,25/09/2014
Delivery Units,Adults and Communities,Other Agencies - Third Party Payment,30032425,HARTWIG CARE LIMITED,266.60,02/09/2014
Delivery Units,Adults and Communities,Other Agencies - Third Party Payment,30034031,HARTWIG CARE LIMITED,268.32,09/09/2014
Delivery Units,Adults and Communities,Other Agencies - Third Party Payment,30036685,HARTWIG CARE LIMITED,269.97,19/09/2014
Delivery Units,Adults and Communities,Other Agencies - Third Party Payment,30038546,HARTWIG CARE LIMITED,272.80,29/09/2014
Delivery Units,Adults and Communities,Other Agencies - Third Party Payment,30036536,HARTWIG CARE LIMITED,276.30,18/09/2014
Delivery Units,Adults and Communities,Other Agencies - Third Party Payment,30038511,HARTWIG CARE LIMITED,280.59,29/09/2014
Delivery Units,Adults and Communities,Other Agencies - Third Party Payment,30036691,HARTWIG CARE LIMITED,293.12,19/09/2014
Delivery Units,Adults and Communities,Other Agencies - Third Party Payment,30037970,HARTWIG CARE LIMITED,297.60,25/09/2014
Delivery Units,Adults and Communities,Other Agencies - Third Party Payment,30038503,HARTWIG CARE LIMITED,297.60,29/09/2014
Delivery Units,Adults and Communities,Other Agencies - Third Party Payment,30038505,HARTWIG CARE LIMITED,334.80,29/09/2014
Delivery Units,Adults and Communities,Other Agencies - Third Party Payment,30037971,HARTWIG CARE LIMITED,335.66,25/09/2014
Delivery Units,Adults and Communities,Other Agencies - Third Party Payment,30034039,HARTWIG CARE LIMITED,344.04,09/09/2014
Delivery Units,Adults and Communities,Other Agencies - Third Party Payment,30038502,HARTWIG CARE LIMITED,345.36,29/09/2014
Delivery Units,Adults and Communities,Other Agencies - Third Party Payment,30038539,HARTWIG CARE LIMITED,345.36,29/09/2014
Delivery Units,Adults and Communities,Other Agencies - Third Party Payment,30032435,HARTWIG CARE LIMITED,357.76,02/09/2014
Delivery Units,Adults and Communities,Other Agencies - Third Party Payment,30034033,HARTWIG CARE LIMITED,357.76,09/09/2014
Delivery Units,Adults and Communities,Other Agencies - Third Party Payment,30034038,HARTWIG CARE LIMITED,357.76,09/09/2014
Delivery Units,Adults and Communities,Other Agencies - Third Party Payment,30038521,HARTWIG CARE LIMITED,357.76,29/09/2014
Delivery Units,Adults and Communities,Other Agencies - Third Party Payment,30038499,HARTWIG CARE LIMITED,382.30,29/09/2014
Delivery Units,Adults and Communities,Other Agencies - Third Party Payment,30032423,HARTWIG CARE LIMITED,425.50,02/09/2014
Delivery Units,Adults and Communities,Other Agencies - Third Party Payment,30038516,HARTWIG CARE LIMITED,434.00,29/09/2014
Delivery Units,Adults and Communities,Other Agencies - Third Party Payment,30038522,HARTWIG CARE LIMITED,452.60,29/09/2014
Delivery Units,Adults and Communities,Other Agencies - Third Party Payment,30038504,HARTWIG CARE LIMITED,480.44,29/09/2014
Delivery Units,Adults and Communities,Other Agencies - Third Party Payment,30032421,HARTWIG CARE LIMITED,491.92,02/09/2014
Delivery Units,Adults and Communities,Other Agencies - Third Party Payment,30038545,HARTWIG CARE LIMITED,523.90,29/09/2014
Delivery Units,Adults and Communities,Other Agencies - Third Party Payment,30038536,HARTWIG CARE LIMITED,526.35,29/09/2014
Delivery Units,Adults and Communities,Other Agencies - Third Party Payment,30038531,HARTWIG CARE LIMITED,536.64,29/09/2014
Delivery Units,Adults and Communities,Other Agencies - Third Party Payment,30038542,HARTWIG CARE LIMITED,578.06,29/09/2014
Delivery Units,Adults and Communities,Other Agencies - Third Party Payment,30038517,HARTWIG CARE LIMITED,586.24,29/09/2014
Delivery Units,Adults and Communities,Other Agencies - Third Party Payment,30034034,HARTWIG CARE LIMITED,604.38,09/09/2014
Delivery Units,Adults and Communities,Other Agencies - Third Party Payment,30034036,HARTWIG CARE LIMITED,613.68,09/09/2014
Delivery Units,Adults and Communities,Other Agencies - Third Party Payment,30038528,HARTWIG CARE LIMITED,626.08,29/09/2014
Delivery Units,Adults and Communities,Other Agencies - Third Party Payment,30034818,HARTWIG CARE LIMITED,653.98,11/09/2014
Delivery Units,Adults and Communities,Other Agencies - Third Party Payment,30033537,HARTWIG CARE LIMITED,708.40,04/09/2014
Delivery Units,Adults and Communities,Other Agencies - Third Party Payment,30038510,HARTWIG CARE LIMITED,708.40,29/09/2014
Delivery Units,Adults and Communities,Other Agencies - Third Party Payment,30033538,HARTWIG CARE LIMITED,714.86,04/09/2014
Delivery Units,Adults and Communities,Other Agencies - Third Party Payment,30034035,HARTWIG CARE LIMITED,715.52,09/09/2014
Delivery Units,Adults and Communities,Other Agencies - Third Party Payment,30034037,HARTWIG CARE LIMITED,735.84,09/09/2014
Delivery Units,Adults and Communities,Other Agencies - Third Party Payment,30038544,HARTWIG CARE LIMITED,750.08,29/09/2014
Delivery Units,Adults and Communities,Other Agencies - Third Party Payment,30038543,HARTWIG CARE LIMITED,763.80,29/09/2014
Delivery Units,Adults and Communities,Other Agencies - Third Party Payment,30038518,HARTWIG CARE LIMITED,777.06,29/09/2014
Delivery Units,Adults and Communities,Other Agencies - Third Party Payment,30037968,HARTWIG CARE LIMITED,793.60,25/09/2014
Delivery Units,Adults and Communities,Other Agencies - Third Party Payment,30037972,HARTWIG CARE LIMITED,793.60,25/09/2014
Delivery Units,Adults and Communities,Other Agencies - Third Party Payment,30032427,HARTWIG CARE LIMITED,804.96,02/09/2014
Delivery Units,Adults and Communities,Other Agencies - Third Party Payment,30037973,HARTWIG CARE LIMITED,826.33,25/09/2014
Delivery Units,Adults and Communities,Other Agencies - Third Party Payment,30036696,HARTWIG CARE LIMITED,857.20,19/09/2014
Delivery Units,Adults and Communities,Other Agencies - Third Party Payment,30038530,HARTWIG CARE LIMITED,874.08,29/09/2014
Delivery Units,Adults and Communities,Other Agencies - Third Party Payment,30032434,HARTWIG CARE LIMITED,885.10,02/09/2014
Delivery Units,Adults and Communities,Other Agencies - Third Party Payment,30033534,HARTWIG CARE LIMITED,894.40,04/09/2014
Delivery Units,Adults and Communities,Other Agencies - Third Party Payment,30033533,HARTWIG CARE LIMITED,925.40,04/09/2014
Delivery Units,Adults and Communities,Other Agencies - Third Party Payment,30038520,HARTWIG CARE LIMITED,977.64,29/09/2014
Delivery Units,Adults and Communities,Other Agencies - Third Party Payment,30038524,HARTWIG CARE LIMITED,983.84,29/09/2014
Delivery Units,Adults and Communities,Other Agencies - Third Party Payment,30038534,HARTWIG CARE LIMITED,993.60,29/09/2014
Delivery Units,Adults and Communities,Other Agencies - Third Party Payment,30038540,HARTWIG CARE LIMITED,"1,076.71",29/09/2014
Delivery Units,Adults and Communities,Other Agencies - Third Party Payment,30038519,HARTWIG CARE LIMITED,"1,146.10",29/09/2014
Delivery Units,Adults and Communities,Other Agencies - Third Party Payment,30032436,HARTWIG CARE LIMITED,"1,161.92",02/09/2014
Delivery Units,Adults and Communities,Other Agencies - Third Party Payment,30038507,HARTWIG CARE LIMITED,"1,205.90",29/09/2014
Delivery Units,Adults and Communities,Other Agencies - Third Party Payment,30038529,HARTWIG CARE LIMITED,"1,240.22",29/09/2014
Delivery Units,Adults and Communities,Other Agencies - Third Party Payment,30034040,HARTWIG CARE LIMITED,"1,290.15",09/09/2014
Delivery Units,Adults and Communities,Other Agencies - Third Party Payment,30032432,HARTWIG CARE LIMITED,"1,331.31",02/09/2014
Delivery Units,Adults and Communities,Other Agencies - Third Party Payment,30038500,HARTWIG CARE LIMITED,"1,405.52",29/09/2014
Delivery Units,Adults and Communities,Other Agencies - Third Party Payment,30038514,HARTWIG CARE LIMITED,"1,416.80",29/09/2014
Delivery Units,Adults and Communities,Other Agencies - Third Party Payment,30034032,HARTWIG CARE LIMITED,"1,550.49",09/09/2014
Delivery Units,Adults and Communities,Other Agencies - Third Party Payment,30038537,HARTWIG CARE LIMITED,"1,631.95",29/09/2014
Delivery Units,Adults and Communities,Other Agencies - Third Party Payment,30038512,HARTWIG CARE LIMITED,"1,750.28",29/09/2014
Delivery Units,Adults and Communities,Other Agencies - Third Party Payment,30036684,HARTWIG CARE LIMITED,"1,776.40",19/09/2014
Delivery Units,Adults and Communities,Other Agencies - Third Party Payment,30032429,HARTWIG CARE LIMITED,"1,993.27",02/09/2014
Delivery Units,Adults and Communities,Other Agencies - Third Party Payment,30038525,HARTWIG CARE LIMITED,"1,993.27",29/09/2014
Delivery Units,Adults and Communities,Other Agencies - Third Party Payment,30036539,HARTWIG CARE LIMITED,"2,096.43",18/09/2014
Delivery Units,Adults and Communities,Other Agencies - Third Party Payment,30038509,HARTWIG CARE LIMITED,"2,188.51",29/09/2014
Delivery Units,Adults and Communities,Other Agencies - Third Party Payment,20011278,HEBRON TRUST,310.71,05/09/2014
Delivery Units,Adults and Communities,Other Agencies - Third Party Payment,30033571,HENRY NIHILL HOUSE,-495.80,09/09/2014
Delivery Units,Adults and Communities,Other Agencies - Third Party Payment,30037123,HENRY NIHILL HOUSE,-495.80,23/09/2014
Delivery Units,Adults and Communities,Other Agencies - Third Party Payment,30033570,HENRY NIHILL HOUSE,"2,001.92",09/09/2014
Delivery Units,Adults and Communities,Other Agencies - Third Party Payment,30037122,HENRY NIHILL HOUSE,"2,001.92",23/09/2014
Delivery Units,Adults and Communities,Other Agencies - Third Party Payment,30034835,HENRY NIHILL HOUSE,"2,094.52",11/09/2014
Delivery Units,Adults and Communities,Other Agencies - Third Party Payment,30033572,HENRY NIHILL HOUSE,"2,321.92",09/09/2014
Delivery Units,Adults and Communities,Other Agencies - Third Party Payment,30033573,HENRY NIHILL HOUSE,"2,321.92",09/09/2014
Delivery Units,Adults and Communities,Other Agencies - Third Party Payment,30033950,HENRY NIHILL HOUSE,"2,321.92",11/09/2014
Delivery Units,Adults and Communities,Other Agencies - Third Party Payment,30037124,HENRY NIHILL HOUSE,"2,321.92",23/09/2014
Delivery Units,Adults and Communities,Other Agencies - Third Party Payment,30037125,HENRY NIHILL HOUSE,"2,321.92",23/09/2014
Delivery Units,Adults and Communities,Other Agencies - Third Party Payment,30038578,HILLGREEN CARE LTD,"6,864.42",30/09/2014
Delivery Units,Adults and Communities,Other Agencies - Third Party Payment,30032440,HILLGREEN CARE LTD,"7,093.24",02/09/2014
Delivery Units,Adults and Communities,Other Agencies - Third Party Payment,30037065,HILLVIEW COURT NURSING HOME,-319.40,23/09/2014
Delivery Units,Adults and Communities,Other Agencies - Third Party Payment,30037064,HILLVIEW COURT NURSING HOME,"4,200.00",23/09/2014
Delivery Units,Adults and Communities,Other Agencies - Third Party Payment,30036389,HILTON LODGE LTD.,-783.20,17/09/2014
Delivery Units,Adults and Communities,Other Agencies - Third Party Payment,30036387,HILTON LODGE LTD.,-581.32,17/09/2014
Delivery Units,Adults and Communities,Other Agencies - Third Party Payment,30036404,HILTON LODGE LTD.,"2,184.03",17/09/2014
Delivery Units,Adults and Communities,Other Agencies - Third Party Payment,30036386,HILTON LODGE LTD.,"2,184.04",17/09/2014
Delivery Units,Adults and Communities,Other Agencies - Third Party Payment,30036388,HILTON LODGE LTD.,"2,184.04",17/09/2014
Delivery Units,Adults and Communities,Other Agencies - Third Party Payment,30036418,HILTON LODGE LTD.,"2,184.04",17/09/2014
Delivery Units,Adults and Communities,Other Agencies - Third Party Payment,30036419,HILTON LODGE LTD.,"2,184.04",17/09/2014
Delivery Units,Adults and Communities,Other Agencies - Third Party Payment,30036451,HILTON LODGE LTD.,"2,184.04",17/09/2014
Delivery Units,Adults and Communities,Other Agencies - Third Party Payment,30036453,HILTON LODGE LTD.,"2,184.04",17/09/2014
Delivery Units,Adults and Communities,Other Agencies - Third Party Payment,30036408,HILTON LODGE LTD.,"2,256.04",17/09/2014
Delivery Units,Adults and Communities,Other Agencies - Third Party Payment,30033936,HOLLY HOUSE CARE HOME,"7,098.13",08/09/2014
Delivery Units,Adults and Communities,Other Agencies - Third Party Payment,30033308,HOLLY HOUSE RESIDENTIAL CARE HOME,"3,535.06",03/09/2014
Delivery Units,Adults and Communities,Other Agencies - Third Party Payment,30033633,HOLLY HOUSE RESIDENTIAL CARE HOME,"3,764.28",04/09/2014
Delivery Units,Adults and Communities,Other Agencies - Third Party Payment,30032156,HOME FARM TRUST LTD,-319.40,04/09/2014
Delivery Units,Adults and Communities,Other Agencies - Third Party Payment,30033281,HOME FARM TRUST LTD,-319.40,04/09/2014
Delivery Units,Adults and Communities,Other Agencies - Third Party Payment,30033280,HOME FARM TRUST LTD,"2,657.40",04/09/2014
Delivery Units,Adults and Communities,Other Agencies - Third Party Payment,30032155,HOME FARM TRUST LTD,"8,034.76",04/09/2014
Delivery Units,Adults and Communities,Other Agencies - Third Party Payment,30036455,HOME FROM HOME CARE LTD,-362.80,17/09/2014
Delivery Units,Adults and Communities,Other Agencies - Third Party Payment,30036454,HOME FROM HOME CARE LTD,"9,769.00",17/09/2014
Delivery Units,Adults and Communities,Other Agencies - Third Party Payment,30032592,HUSKARDS NEW CARE LTD,"2,216.50",02/09/2014
Delivery Units,Adults and Communities,Other Agencies - Third Party Payment,30035037,INDEPENDENCE HOMES LIMITED,"5,400.00",15/09/2014
Delivery Units,Adults and Communities,Other Agencies - Third Party Payment,30033749,INDIVIDUALISED CARE LIMITED,300.00,05/09/2014
Delivery Units,Adults and Communities,Other Agencies - Third Party Payment,30033753,INDIVIDUALISED CARE LIMITED,300.00,05/09/2014
Delivery Units,Adults and Communities,Other Agencies - Third Party Payment,30033745,INDIVIDUALISED CARE LIMITED,500.00,05/09/2014
Delivery Units,Adults and Communities,Other Agencies - Third Party Payment,30033744,INDIVIDUALISED CARE LIMITED,600.00,05/09/2014
Delivery Units,Adults and Communities,Other Agencies - Third Party Payment,30038120,INDIVIDUALISED CARE LIMITED,600.00,26/09/2014
Delivery Units,Adults and Communities,Other Agencies - Third Party Payment,30033742,INDIVIDUALISED CARE LIMITED,642.00,05/09/2014
Delivery Units,Adults and Communities,Other Agencies - Third Party Payment,30038119,INDIVIDUALISED CARE LIMITED,642.00,26/09/2014
Delivery Units,Adults and Communities,Other Agencies - Third Party Payment,30033754,INDIVIDUALISED CARE LIMITED,647.50,05/09/2014
Delivery Units,Adults and Communities,Other Agencies - Third Party Payment,30033755,INDIVIDUALISED CARE LIMITED,700.00,05/09/2014
Delivery Units,Adults and Communities,Other Agencies - Third Party Payment,30036931,INDIVIDUALISED CARE LIMITED,700.00,23/09/2014
Delivery Units,Adults and Communities,Other Agencies - Third Party Payment,30038121,INDIVIDUALISED CARE LIMITED,700.00,26/09/2014
Delivery Units,Adults and Communities,Other Agencies - Third Party Payment,30033740,INDIVIDUALISED CARE LIMITED,800.00,05/09/2014
Delivery Units,Adults and Communities,Other Agencies - Third Party Payment,30033743,INDIVIDUALISED CARE LIMITED,800.00,05/09/2014
Delivery Units,Adults and Communities,Other Agencies - Third Party Payment,30033746,INDIVIDUALISED CARE LIMITED,800.00,05/09/2014
Delivery Units,Adults and Communities,Other Agencies - Third Party Payment,30036928,INDIVIDUALISED CARE LIMITED,800.00,23/09/2014
Delivery Units,Adults and Communities,Other Agencies - Third Party Payment,30036929,INDIVIDUALISED CARE LIMITED,800.00,23/09/2014
Delivery Units,Adults and Communities,Other Agencies - Third Party Payment,30036930,INDIVIDUALISED CARE LIMITED,800.00,23/09/2014
Delivery Units,Adults and Communities,Other Agencies - Third Party Payment,30032013,INDIVIDUALISED CARE LIMITED,912.00,01/09/2014
Delivery Units,Adults and Communities,Other Agencies - Third Party Payment,30032014,INDIVIDUALISED CARE LIMITED,912.00,01/09/2014
Delivery Units,Adults and Communities,Other Agencies - Third Party Payment,30033741,INDIVIDUALISED CARE LIMITED,912.00,05/09/2014
Delivery Units,Adults and Communities,Other Agencies - Third Party Payment,30038118,INDIVIDUALISED CARE LIMITED,912.00,26/09/2014
Delivery Units,Adults and Communities,Other Agencies - Third Party Payment,30033938,INDIVIDUALISED CARE LIMITED,"1,050.00",08/09/2014
Delivery Units,Adults and Communities,Other Agencies - Third Party Payment,30033739,INDIVIDUALISED CARE LIMITED,"1,958.00",05/09/2014
Delivery Units,Adults and Communities,Other Agencies - Third Party Payment,30036927,INDIVIDUALISED CARE LIMITED,"2,000.00",23/09/2014
Delivery Units,Adults and Communities,Other Agencies - Third Party Payment,30033523,INDIVIDUALISED CARE LIMITED,"2,400.00",04/09/2014
Delivery Units,Adults and Communities,Other Agencies - Third Party Payment,30038117,INDIVIDUALISED CARE LIMITED,"2,400.00",26/09/2014
Delivery Units,Adults and Communities,Other Agencies - Third Party Payment,30032441,INSIGHT SPECIALIST BEHAVIOURAL,"5,944.08",02/09/2014
Delivery Units,Adults and Communities,Other Agencies - Third Party Payment,30033867,ISLINGTON OUTLOOK (ST JOHNS),879.60,05/09/2014
Delivery Units,Adults and Communities,Other Agencies - Third Party Payment,30033868,ISLINGTON OUTLOOK (ST JOHNS),879.60,05/09/2014
Delivery Units,Adults and Communities,Other Agencies - Third Party Payment,30032080,IVER HOUSE LTD,-401.67,01/09/2014
Delivery Units,Adults and Communities,Other Agencies - Third Party Payment,30032079,IVER HOUSE LTD,"3,815.77",01/09/2014
Delivery Units,Adults and Communities,Other Agencies - Third Party Payment,30032046,JANITH HOMES LTD,-353.71,01/09/2014
Delivery Units,Adults and Communities,Other Agencies - Third Party Payment,30032045,JANITH HOMES LTD,"2,650.19",01/09/2014
Delivery Units,Adults and Communities,Other Agencies - Third Party Payment,30036523,JEAN JUGAN RESIDENCE,-495.80,19/09/2014
Delivery Units,Adults and Communities,Other Agencies - Third Party Payment,30038759,JEAN JUGAN RESIDENCE,-495.80,30/09/2014
Delivery Units,Adults and Communities,Other Agencies - Third Party Payment,30036522,JEAN JUGAN RESIDENCE,"2,094.52",19/09/2014
Delivery Units,Adults and Communities,Other Agencies - Third Party Payment,30038758,JEAN JUGAN RESIDENCE,"2,094.52",30/09/2014
Delivery Units,Adults and Communities,Other Agencies - Third Party Payment,30033845,JEWISH CARE,"-9,009.15",05/09/2014
Delivery Units,Adults and Communities,Other Agencies - Third Party Payment,30031963,JEWISH CARE,"-2,321.92",01/09/2014
Delivery Units,Adults and Communities,Other Agencies - Third Party Payment,30033840,JEWISH CARE,-643.48,05/09/2014
Delivery Units,Adults and Communities,Other Agencies - Third Party Payment,30034857,JEWISH CARE,-495.80,11/09/2014
Delivery Units,Adults and Communities,Other Agencies - Third Party Payment,30034854,JEWISH CARE,-319.40,11/09/2014
Delivery Units,Adults and Communities,Other Agencies - Third Party Payment,30033839,JEWISH CARE,312.01,05/09/2014
Delivery Units,Adults and Communities,Other Agencies - Third Party Payment,30031965,JEWISH CARE,428.98,01/09/2014
Delivery Units,Adults and Communities,Other Agencies - Third Party Payment,30034061,JEWISH CARE,525.50,09/09/2014
Delivery Units,Adults and Communities,Other Agencies - Third Party Payment,30033837,JEWISH CARE,746.47,05/09/2014
Delivery Units,Adults and Communities,Other Agencies - Third Party Payment,30034849,JEWISH CARE,"1,126.07",11/09/2014
Delivery Units,Adults and Communities,Other Agencies - Third Party Payment,30033848,JEWISH CARE,"1,500.00",05/09/2014
Delivery Units,Adults and Communities,Other Agencies - Third Party Payment,30036858,JEWISH CARE,"1,726.64",22/09/2014
Delivery Units,Adults and Communities,Other Agencies - Third Party Payment,30037913,JEWISH CARE,"1,801.83",24/09/2014
Delivery Units,Adults and Communities,Other Agencies - Third Party Payment,30032123,JEWISH CARE,"1,857.14",01/09/2014
Delivery Units,Adults and Communities,Other Agencies - Third Party Payment,30034842,JEWISH CARE,"2,102.00",11/09/2014
Delivery Units,Adults and Communities,Other Agencies - Third Party Payment,30034856,JEWISH CARE,"2,133.84",11/09/2014
Delivery Units,Adults and Communities,Other Agencies - Third Party Payment,30032121,JEWISH CARE,"2,184.04",01/09/2014
Delivery Units,Adults and Communities,Other Agencies - Third Party Payment,30032122,JEWISH CARE,"2,184.04",01/09/2014
Delivery Units,Adults and Communities,Other Agencies - Third Party Payment,30034852,JEWISH CARE,"2,199.24",11/09/2014
Delivery Units,Adults and Communities,Other Agencies - Third Party Payment,30032124,JEWISH CARE,"2,293.24",01/09/2014
Delivery Units,Adults and Communities,Other Agencies - Third Party Payment,30034848,JEWISH CARE,"2,293.24",11/09/2014
Delivery Units,Adults and Communities,Other Agencies - Third Party Payment,30034843,JEWISH CARE,"3,200.00",11/09/2014
Delivery Units,Adults and Communities,Other Agencies - Third Party Payment,30034853,JEWISH CARE,"3,360.00",11/09/2014
Delivery Units,Adults and Communities,Other Agencies - Third Party Payment,30033849,JEWISH CARE,"3,903.71",05/09/2014
Delivery Units,Adults and Communities,Other Agencies - Third Party Payment,30033275,JEWISH CARE,"3,990.00",03/09/2014
Delivery Units,Adults and Communities,Other Agencies - Third Party Payment,30033527,JIGSAW CREATIVE CARE LIMITED,"1,412.00",04/09/2014
Delivery Units,Adults and Communities,Other Agencies - Third Party Payment,30035034,JIGSAW CREATIVE CARE LIMITED,"1,412.00",15/09/2014
Delivery Units,Adults and Communities,Other Agencies - Third Party Payment,30036530,JIGSAW CREATIVE CARE LIMITED,"1,412.00",18/09/2014
Delivery Units,Adults and Communities,Other Agencies - Third Party Payment,30037947,JIGSAW CREATIVE CARE LIMITED,"1,412.00",25/09/2014
Delivery Units,Adults and Communities,Other Agencies - Third Party Payment,30033528,JIGSAW CREATIVE CARE LIMITED,"2,783.00",04/09/2014
Delivery Units,Adults and Communities,Other Agencies - Third Party Payment,30035035,JIGSAW CREATIVE CARE LIMITED,"2,783.00",15/09/2014
Delivery Units,Adults and Communities,Other Agencies - Third Party Payment,30036531,JIGSAW CREATIVE CARE LIMITED,"2,783.00",18/09/2014
Delivery Units,Adults and Communities,Other Agencies - Third Party Payment,30037948,JIGSAW CREATIVE CARE LIMITED,"2,783.00",25/09/2014
Delivery Units,Adults and Communities,Other Agencies - Third Party Payment,30032031,JIGSAW CREATIVE CARE LIMITED,"2,998.68",01/09/2014
Delivery Units,Adults and Communities,Other Agencies - Third Party Payment,30035033,JIGSAW CREATIVE CARE LIMITED,"2,998.68",15/09/2014
Delivery Units,Adults and Communities,Other Agencies - Third Party Payment,30036529,JIGSAW CREATIVE CARE LIMITED,"2,998.68",18/09/2014
Delivery Units,Adults and Communities,Other Agencies - Third Party Payment,30037946,JIGSAW CREATIVE CARE LIMITED,"2,998.68",25/09/2014
Delivery Units,Adults and Communities,Other Agencies - Third Party Payment,30033530,JIGSAW CREATIVE CARE LIMITED,"3,021.76",04/09/2014
Delivery Units,Adults and Communities,Other Agencies - Third Party Payment,30032001,KEMBLE HOUSE,"8,192.99",01/09/2014
Delivery Units,Adults and Communities,Other Agencies - Third Party Payment,30036521,KEMBLE HOUSE,"9,680.37",18/09/2014
Delivery Units,Adults and Communities,Other Agencies - Third Party Payment,20011550,KENWARD TRUST,"1,432.86",15/09/2014
Delivery Units,Adults and Communities,Other Agencies - Third Party Payment,20011551,KENWARD TRUST,"2,360.00",15/09/2014
Delivery Units,Adults and Communities,Other Agencies - Third Party Payment,20011552,KENWARD TRUST,"2,360.00",15/09/2014
Delivery Units,Adults and Communities,Other Agencies - Third Party Payment,20011553,KENWARD TRUST,"2,360.00",15/09/2014
Delivery Units,Adults and Communities,Other Agencies - Third Party Payment,20011554,KENWARD TRUST,"2,360.00",15/09/2014
Delivery Units,Adults and Communities,Other Agencies - Third Party Payment,30036711,KILCULLEN HOMES (UK) LLP,"1,569.48",19/09/2014
Delivery Units,Adults and Communities,Other Agencies - Third Party Payment,30036712,KILCULLEN HOMES (UK) LLP,"1,569.48",19/09/2014
Delivery Units,Adults and Communities,Other Agencies - Third Party Payment,30036713,KILCULLEN HOMES (UK) LLP,"1,569.48",19/09/2014
Delivery Units,Adults and Communities,Other Agencies - Third Party Payment,30036714,KILCULLEN HOMES (UK) LLP,"1,569.48",19/09/2014
Delivery Units,Adults and Communities,Other Agencies - Third Party Payment,30036715,KILCULLEN HOMES (UK) LLP,"1,569.48",19/09/2014
Delivery Units,Adults and Communities,Other Agencies - Third Party Payment,30036716,KILCULLEN HOMES (UK) LLP,"1,569.48",19/09/2014
Delivery Units,Adults and Communities,Other Agencies - Third Party Payment,30036573,KIRKLEY MANOR,-495.80,18/09/2014
Delivery Units,Adults and Communities,Other Agencies - Third Party Payment,30036572,KIRKLEY MANOR,"2,001.92",18/09/2014
Delivery Units,Adults and Communities,Other Agencies - Third Party Payment,30034044,KISHARON DAY SCHOOL,-353.62,09/09/2014
Delivery Units,Adults and Communities,Other Agencies - Third Party Payment,30034046,KISHARON DAY SCHOOL,-353.62,09/09/2014
Delivery Units,Adults and Communities,Other Agencies - Third Party Payment,30034048,KISHARON DAY SCHOOL,-353.62,09/09/2014
Delivery Units,Adults and Communities,Other Agencies - Third Party Payment,30034050,KISHARON DAY SCHOOL,-353.62,09/09/2014
Delivery Units,Adults and Communities,Other Agencies - Third Party Payment,30034117,KISHARON DAY SCHOOL,381.54,10/09/2014
Delivery Units,Adults and Communities,Other Agencies - Third Party Payment,30034119,KISHARON DAY SCHOOL,397.11,10/09/2014
Delivery Units,Adults and Communities,Other Agencies - Third Party Payment,30034126,KISHARON DAY SCHOOL,733.72,10/09/2014
Delivery Units,Adults and Communities,Other Agencies - Third Party Payment,30034116,KISHARON DAY SCHOOL,794.08,10/09/2014
Delivery Units,Adults and Communities,Other Agencies - Third Party Payment,30034124,KISHARON DAY SCHOOL,"1,133.60",10/09/2014
Delivery Units,Adults and Communities,Other Agencies - Third Party Payment,30034122,KISHARON DAY SCHOOL,"1,241.16",10/09/2014
Delivery Units,Adults and Communities,Other Agencies - Third Party Payment,30034128,KISHARON DAY SCHOOL,"1,275.96",10/09/2014
Delivery Units,Adults and Communities,Other Agencies - Third Party Payment,30034121,KISHARON DAY SCHOOL,"1,340.18",10/09/2014
Delivery Units,Adults and Communities,Other Agencies - Third Party Payment,30034123,KISHARON DAY SCHOOL,"1,369.23",10/09/2014
Delivery Units,Adults and Communities,Other Agencies - Third Party Payment,30034115,KISHARON DAY SCHOOL,"1,373.49",10/09/2014
Delivery Units,Adults and Communities,Other Agencies - Third Party Payment,30034118,KISHARON DAY SCHOOL,"1,373.49",10/09/2014
Delivery Units,Adults and Communities,Other Agencies - Third Party Payment,30034114,KISHARON DAY SCHOOL,"1,373.68",10/09/2014
Delivery Units,Adults and Communities,Other Agencies - Third Party Payment,30034125,KISHARON DAY SCHOOL,"1,373.68",10/09/2014
Delivery Units,Adults and Communities,Other Agencies - Third Party Payment,30034110,KISHARON DAY SCHOOL,"1,464.03",10/09/2014
Delivery Units,Adults and Communities,Other Agencies - Third Party Payment,30034120,KISHARON DAY SCHOOL,"1,679.87",10/09/2014
Delivery Units,Adults and Communities,Other Agencies - Third Party Payment,30034112,KISHARON DAY SCHOOL,"2,144.10",10/09/2014
Delivery Units,Adults and Communities,Other Agencies - Third Party Payment,30034113,KISHARON DAY SCHOOL,"2,284.24",10/09/2014
Delivery Units,Adults and Communities,Other Agencies - Third Party Payment,30034043,KISHARON DAY SCHOOL,"3,098.05",09/09/2014
Delivery Units,Adults and Communities,Other Agencies - Third Party Payment,30034047,KISHARON DAY SCHOOL,"3,098.05",09/09/2014
Delivery Units,Adults and Communities,Other Agencies - Third Party Payment,30034049,KISHARON DAY SCHOOL,"3,098.05",09/09/2014
Delivery Units,Adults and Communities,Other Agencies - Third Party Payment,30034111,KISHARON DAY SCHOOL,"4,260.72",10/09/2014
Delivery Units,Adults and Communities,Other Agencies - Third Party Payment,30034045,KISHARON DAY SCHOOL,"5,044.23",09/09/2014
Delivery Units,Adults and Communities,Other Agencies - Third Party Payment,30032249,LANCAM CARE NURSING HOME,"2,318.93",01/09/2014
Delivery Units,Adults and Communities,Other Agencies - Third Party Payment,30038631,LANCAM CARE NURSING HOME,"5,638.95",30/09/2014
Delivery Units,Adults and Communities,Other Agencies - Third Party Payment,30034008,LANCAM CARE NURSING HOME,"6,358.85",08/09/2014
Delivery Units,Adults and Communities,Other Agencies - Third Party Payment,30032589,LANCASTER COURT,"2,615.38",02/09/2014
Delivery Units,Adults and Communities,Other Agencies - Third Party Payment,30033645,LANGDON COMMUNITY LTD,304.00,04/09/2014
Delivery Units,Adults and Communities,Other Agencies - Third Party Payment,30033593,LANGDON COMMUNITY LTD,478.19,04/09/2014
Delivery Units,Adults and Communities,Other Agencies - Third Party Payment,30033647,LANGDON COMMUNITY LTD,532.00,04/09/2014
Delivery Units,Adults and Communities,Other Agencies - Third Party Payment,30033644,LANGDON COMMUNITY LTD,657.56,04/09/2014
Delivery Units,Adults and Communities,Other Agencies - Third Party Payment,30033617,LANGDON COMMUNITY LTD,881.60,04/09/2014
Delivery Units,Adults and Communities,Other Agencies - Third Party Payment,30033621,LANGDON COMMUNITY LTD,886.16,04/09/2014
Delivery Units,Adults and Communities,Other Agencies - Third Party Payment,30033625,LANGDON COMMUNITY LTD,"1,048.80",04/09/2014
Delivery Units,Adults and Communities,Other Agencies - Third Party Payment,30033632,LANGDON COMMUNITY LTD,"1,064.00",04/09/2014
Delivery Units,Adults and Communities,Other Agencies - Third Party Payment,30033615,LANGDON COMMUNITY LTD,"1,253.39",04/09/2014
Delivery Units,Adults and Communities,Other Agencies - Third Party Payment,30033595,LANGDON COMMUNITY LTD,"1,572.28",04/09/2014
Delivery Units,Adults and Communities,Other Agencies - Third Party Payment,30033614,LANGDON COMMUNITY LTD,"1,705.75",04/09/2014
Delivery Units,Adults and Communities,Other Agencies - Third Party Payment,30033576,LANGDON COMMUNITY LTD,"2,403.92",04/09/2014
Delivery Units,Adults and Communities,Other Agencies - Third Party Payment,30033626,LANGDON COMMUNITY LTD,"2,501.31",04/09/2014
Delivery Units,Adults and Communities,Other Agencies - Third Party Payment,30033627,LANGDON COMMUNITY LTD,"2,771.27",04/09/2014
Delivery Units,Adults and Communities,Other Agencies - Third Party Payment,30032540,LEEMING BAR CARE HOME,"1,939.32",02/09/2014
Delivery Units,Adults and Communities,Other Agencies - Third Party Payment,30032054,LEO BAECK HOUSING ASSOC. LTD,"-1,629.06",01/09/2014
Delivery Units,Adults and Communities,Other Agencies - Third Party Payment,30036835,LEO BAECK HOUSING ASSOC. LTD,"2,216.41",25/09/2014
Delivery Units,Adults and Communities,Other Agencies - Third Party Payment,30037159,LEO BAECK HOUSING ASSOC. LTD,"2,340.00",25/09/2014
Delivery Units,Adults and Communities,Other Agencies - Third Party Payment,30032053,LEO BAECK HOUSING ASSOC. LTD,"6,577.73",01/09/2014
Delivery Units,Adults and Communities,Other Agencies - Third Party Payment,30032059,LEO BAECK HOUSING ASSOC. LTD,"6,577.73",01/09/2014
Delivery Units,Adults and Communities,Other Agencies - Third Party Payment,30032061,LEO BAECK HOUSING ASSOC. LTD,"6,577.73",01/09/2014
Delivery Units,Adults and Communities,Other Agencies - Third Party Payment,30037004,LEO BAECK HOUSING ASSOC. LTD,"6,577.73",25/09/2014
Delivery Units,Adults and Communities,Other Agencies - Third Party Payment,30032060,LEO BAECK HOUSING ASSOC. LTD,"7,176.00",01/09/2014
Delivery Units,Adults and Communities,Other Agencies - Third Party Payment,30033240,LEO BAECK HOUSING ASSOC. LTD,"7,176.00",03/09/2014
Delivery Units,Adults and Communities,Other Agencies - Third Party Payment,30032311,LEWIS.W.HAMMERSON MEMORIAL HOME,-905.91,01/09/2014
Delivery Units,Adults and Communities,Other Agencies - Third Party Payment,30032313,LEWIS.W.HAMMERSON MEMORIAL HOME,-663.53,01/09/2014
Delivery Units,Adults and Communities,Other Agencies - Third Party Payment,30032315,LEWIS.W.HAMMERSON MEMORIAL HOME,-544.01,01/09/2014
Delivery Units,Adults and Communities,Other Agencies - Third Party Payment,30032309,LEWIS.W.HAMMERSON MEMORIAL HOME,"2,216.41",01/09/2014
Delivery Units,Adults and Communities,Other Agencies - Third Party Payment,30032310,LEWIS.W.HAMMERSON MEMORIAL HOME,"2,216.41",01/09/2014
Delivery Units,Adults and Communities,Other Agencies - Third Party Payment,30032312,LEWIS.W.HAMMERSON MEMORIAL HOME,"2,216.41",01/09/2014
Delivery Units,Adults and Communities,Other Agencies - Third Party Payment,30032316,LEWIS.W.HAMMERSON MEMORIAL HOME,"2,216.41",01/09/2014
Delivery Units,Adults and Communities,Other Agencies - Third Party Payment,30032317,LEWIS.W.HAMMERSON MEMORIAL HOME,"2,216.41",01/09/2014
Delivery Units,Adults and Communities,Other Agencies - Third Party Payment,30032314,LEWIS.W.HAMMERSON MEMORIAL HOME,"2,216.42",01/09/2014
Delivery Units,Adults and Communities,Other Agencies - Third Party Payment,30033779,LEY COMMUNITY DRUG SERVICES,"2,243.27",05/09/2014
Delivery Units,Adults and Communities,Other Agencies - Third Party Payment,30033776,LEY COMMUNITY DRUG SERVICES,"2,317.25",05/09/2014
Delivery Units,Adults and Communities,Other Agencies - Third Party Payment,30033778,LEY COMMUNITY DRUG SERVICES,"2,317.25",05/09/2014
Delivery Units,Adults and Communities,Other Agencies - Third Party Payment,30034109,LEY COMMUNITY DRUG SERVICES,"2,317.25",10/09/2014
Delivery Units,Adults and Communities,Other Agencies - Third Party Payment,30034077,LIFESTYLE CARE 2011 PLC,"2,138.00",09/09/2014
Delivery Units,Adults and Communities,Other Agencies - Third Party Payment,30033864,LIFESTYLE CARE PLC,"1,271.67",05/09/2014
Delivery Units,Adults and Communities,Other Agencies - Third Party Payment,30033863,LIFESTYLE CARE PLC,"1,824.15",05/09/2014
Delivery Units,Adults and Communities,Other Agencies - Third Party Payment,30033608,LIFEWAYS,"2,377.20",04/09/2014
Delivery Units,Adults and Communities,Other Agencies - Third Party Payment,30033596,LIFEWAYS,"3,145.24",04/09/2014
Delivery Units,Adults and Communities,Other Agencies - Third Party Payment,30033606,LIFEWAYS,"3,656.00",04/09/2014
Delivery Units,Adults and Communities,Other Agencies - Third Party Payment,30033609,LIFEWAYS,"4,828.24",04/09/2014
Delivery Units,Adults and Communities,Other Agencies - Third Party Payment,30033599,LIFEWAYS,"5,037.40",04/09/2014
Delivery Units,Adults and Communities,Other Agencies - Third Party Payment,30033607,LIFEWAYS,"5,766.44",04/09/2014
Delivery Units,Adults and Communities,Other Agencies - Third Party Payment,30033600,LIFEWAYS,"5,943.00",04/09/2014
Delivery Units,Adults and Communities,Other Agencies - Third Party Payment,30033597,LIFEWAYS,"6,930.00",04/09/2014
Delivery Units,Adults and Communities,Other Agencies - Third Party Payment,30033541,LILAS HOUSE,-319.40,04/09/2014
Delivery Units,Adults and Communities,Other Agencies - Third Party Payment,30037006,LILAS HOUSE,-319.40,25/09/2014
Delivery Units,Adults and Communities,Other Agencies - Third Party Payment,30033540,LILAS HOUSE,"2,574.32",04/09/2014
Delivery Units,Adults and Communities,Other Agencies - Third Party Payment,30037005,LILAS HOUSE,"2,574.32",25/09/2014
Delivery Units,Adults and Communities,Other Agencies - Third Party Payment,30028569,LIONCARE LIMITED,"5,409.60",09/09/2014
Delivery Units,Adults and Communities,Other Agencies - Third Party Payment,30036561,LIVABILITY,-495.80,18/09/2014
Delivery Units,Adults and Communities,Other Agencies - Third Party Payment,30036564,LIVABILITY,-495.80,18/09/2014
Delivery Units,Adults and Communities,Other Agencies - Third Party Payment,30036559,LIVABILITY,-319.40,18/09/2014
Delivery Units,Adults and Communities,Other Agencies - Third Party Payment,30036377,LIVABILITY,"2,400.00",17/09/2014
Delivery Units,Adults and Communities,Other Agencies - Third Party Payment,30037157,LIVABILITY,"2,400.00",23/09/2014
Delivery Units,Adults and Communities,Other Agencies - Third Party Payment,30036563,LIVABILITY,"2,766.88",18/09/2014
Delivery Units,Adults and Communities,Other Agencies - Third Party Payment,30036560,LIVABILITY,"3,189.32",18/09/2014
Delivery Units,Adults and Communities,Other Agencies - Third Party Payment,30036562,LIVABILITY,"3,424.00",18/09/2014
Delivery Units,Adults and Communities,Other Agencies - Third Party Payment,30036558,LIVABILITY,"3,672.00",18/09/2014
Delivery Units,Adults and Communities,Other Agencies - Third Party Payment,30036412,LIVABILITY,"4,891.20",17/09/2014
Delivery Units,Adults and Communities,Other Agencies - Third Party Payment,30037173,LIVABILITY,"4,891.20",23/09/2014
Delivery Units,Adults and Communities,Other Agencies - Third Party Payment,30036577,LIVABILITY,"5,279.24",18/09/2014
Delivery Units,Adults and Communities,Other Agencies - Third Party Payment,30038100,LONDON CARE PLC,"5,595.03",25/09/2014
Delivery Units,Adults and Communities,Other Agencies - Third Party Payment,30038101,LONDON CARE PLC,"5,707.10",25/09/2014
Delivery Units,Adults and Communities,Other Agencies - Third Party Payment,30038407,LONDON CARE PLC,"6,333.03",26/09/2014
Delivery Units,Adults and Communities,Other Agencies - Third Party Payment,30032065,LONG FURROWS RESIDENTIAL CARE HOME,-548.92,01/09/2014
Delivery Units,Adults and Communities,Other Agencies - Third Party Payment,30032064,LONG FURROWS RESIDENTIAL CARE HOME,"4,242.08",01/09/2014
Delivery Units,Adults and Communities,Other Agencies - Third Party Payment,30032255,M D HOMES,"3,542.86",01/09/2014
Delivery Units,Adults and Communities,Other Agencies - Third Party Payment,30032299,MACINTYRE CARE,-319.40,01/09/2014
Delivery Units,Adults and Communities,Other Agencies - Third Party Payment,30032301,MACINTYRE CARE,-319.40,01/09/2014
Delivery Units,Adults and Communities,Other Agencies - Third Party Payment,30032304,MACINTYRE CARE,-319.40,01/09/2014
Delivery Units,Adults and Communities,Other Agencies - Third Party Payment,30032306,MACINTYRE CARE,-319.40,01/09/2014
Delivery Units,Adults and Communities,Other Agencies - Third Party Payment,30032308,MACINTYRE CARE,-319.40,01/09/2014
Delivery Units,Adults and Communities,Other Agencies - Third Party Payment,30032302,MACINTYRE CARE,750.40,01/09/2014
Delivery Units,Adults and Communities,Other Agencies - Third Party Payment,30032307,MACINTYRE CARE,"2,326.48",01/09/2014
Delivery Units,Adults and Communities,Other Agencies - Third Party Payment,30032300,MACINTYRE CARE,"2,332.48",01/09/2014
Delivery Units,Adults and Communities,Other Agencies - Third Party Payment,30032305,MACINTYRE CARE,"3,570.16",01/09/2014
Delivery Units,Adults and Communities,Other Agencies - Third Party Payment,30032303,MACINTYRE CARE,"3,812.84",01/09/2014
Delivery Units,Adults and Communities,Other Agencies - Third Party Payment,30032298,MACINTYRE CARE,"4,015.72",01/09/2014
Delivery Units,Adults and Communities,Other Agencies - Third Party Payment,30034012,MADELAYNE COURT,"2,216.41",08/09/2014
Delivery Units,Adults and Communities,Other Agencies - Third Party Payment,30034145,MAISON MOTI LTD,343.40,10/09/2014
Delivery Units,Adults and Communities,Other Agencies - Third Party Payment,30034144,MAISON MOTI LTD,768.00,10/09/2014
Delivery Units,Adults and Communities,Other Agencies - Third Party Payment,30034136,MAISON MOTI LTD,"1,026.00",10/09/2014
Delivery Units,Adults and Communities,Other Agencies - Third Party Payment,30034137,MAISON MOTI LTD,"1,140.00",10/09/2014
Delivery Units,Adults and Communities,Other Agencies - Third Party Payment,30034132,MAISON MOTI LTD,"1,642.48",10/09/2014
Delivery Units,Adults and Communities,Other Agencies - Third Party Payment,30034133,MAISON MOTI LTD,"2,240.00",10/09/2014
Delivery Units,Adults and Communities,Other Agencies - Third Party Payment,30034134,MAISON MOTI LTD,"2,440.00",10/09/2014
Delivery Units,Adults and Communities,Other Agencies - Third Party Payment,30034135,MAISON MOTI LTD,"2,440.00",10/09/2014
Delivery Units,Adults and Communities,Other Agencies - Third Party Payment,30034042,MAISON MOTI LTD,"3,260.00",09/09/2014
Delivery Units,Adults and Communities,Other Agencies - Third Party Payment,30033543,MANDELA HOUSE,-319.40,04/09/2014
Delivery Units,Adults and Communities,Other Agencies - Third Party Payment,30037008,MANDELA HOUSE,-319.40,25/09/2014
Delivery Units,Adults and Communities,Other Agencies - Third Party Payment,30033557,MANDELA HOUSE,"3,541.84",04/09/2014
Delivery Units,Adults and Communities,Other Agencies - Third Party Payment,30037021,MANDELA HOUSE,"3,541.84",25/09/2014
Delivery Units,Adults and Communities,Other Agencies - Third Party Payment,30033542,MANDELA HOUSE,"4,050.36",04/09/2014
Delivery Units,Adults and Communities,Other Agencies - Third Party Payment,30037007,MANDELA HOUSE,"4,050.36",25/09/2014
Delivery Units,Adults and Communities,Other Agencies - Third Party Payment,30033624,MARRILYNE LODGE,"2,235.12",04/09/2014
Delivery Units,Adults and Communities,Other Agencies - Third Party Payment,30038560,MARRILYNE LODGE,"2,235.12",29/09/2014
Delivery Units,Adults and Communities,Other Agencies - Third Party Payment,30033623,MARRILYNE LODGE,"2,554.16",04/09/2014
Delivery Units,Adults and Communities,Other Agencies - Third Party Payment,30038559,MARRILYNE LODGE,"2,554.16",29/09/2014
Delivery Units,Adults and Communities,Other Agencies - Third Party Payment,30032072,MARYVILLE CARE HOME,-548.92,01/09/2014
Delivery Units,Adults and Communities,Other Agencies - Third Party Payment,30032074,MARYVILLE CARE HOME,-548.92,01/09/2014
Delivery Units,Adults and Communities,Other Agencies - Third Party Payment,30032073,MARYVILLE CARE HOME,"2,318.93",01/09/2014
Delivery Units,Adults and Communities,Other Agencies - Third Party Payment,30032071,MARYVILLE CARE HOME,"2,512.73",01/09/2014
Delivery Units,Adults and Communities,Other Agencies - Third Party Payment,30032266,MAYFIELD ADULT SERVICES,"9,875.71",01/09/2014
Delivery Units,Adults and Communities,Other Agencies - Third Party Payment,30033319,MCCH SOCIETY LIMITED,-495.80,23/09/2014
Delivery Units,Adults and Communities,Other Agencies - Third Party Payment,30033318,MCCH SOCIETY LIMITED,"4,280.00",23/09/2014
Delivery Units,Adults and Communities,Other Agencies - Third Party Payment,30033566,MEADOWBANK TRUST,-353.62,04/09/2014
Delivery Units,Adults and Communities,Other Agencies - Third Party Payment,30033565,MEADOWBANK TRUST,"3,199.42",04/09/2014
Delivery Units,Adults and Communities,Other Agencies - Third Party Payment,30032167,MEERA NURSING HOME LIMITED,"2,318.93",01/09/2014
Delivery Units,Adults and Communities,Other Agencies - Third Party Payment,30032265,MEERA NURSING HOME LIMITED,"2,318.93",01/09/2014
Delivery Units,Adults and Communities,Other Agencies - Third Party Payment,30032273,MEERA NURSING HOME LIMITED,"2,318.93",01/09/2014
Delivery Units,Adults and Communities,Other Agencies - Third Party Payment,30032278,MEERA NURSING HOME LIMITED,"2,318.93",01/09/2014
Delivery Units,Adults and Communities,Other Agencies - Third Party Payment,30032297,MEERA NURSING HOME LIMITED,"2,318.93",01/09/2014
Delivery Units,Adults and Communities,Other Agencies - Third Party Payment,30032279,MEERA NURSING HOME LIMITED,"2,320.53",01/09/2014
Delivery Units,Adults and Communities,Other Agencies - Third Party Payment,30032328,MEERA NURSING HOME LIMITED,"2,320.57",01/09/2014
Delivery Units,Adults and Communities,Other Agencies - Third Party Payment,30032277,MEERA NURSING HOME LIMITED,"2,531.42",01/09/2014
Delivery Units,Adults and Communities,Other Agencies - Third Party Payment,30032596,METHODIST HOMES FOR THE AGED,-495.80,02/09/2014
Delivery Units,Adults and Communities,Other Agencies - Third Party Payment,30037201,METHODIST HOMES FOR THE AGED,-495.80,23/09/2014
Delivery Units,Adults and Communities,Other Agencies - Third Party Payment,30037170,METHODIST HOMES FOR THE AGED,"2,001.92",23/09/2014
Delivery Units,Adults and Communities,Other Agencies - Third Party Payment,30032595,METHODIST HOMES FOR THE AGED,"2,321.92",02/09/2014
Delivery Units,Adults and Communities,Other Agencies - Third Party Payment,30037200,METHODIST HOMES FOR THE AGED,"2,321.92",23/09/2014
Delivery Units,Adults and Communities,Other Agencies - Third Party Payment,30037176,METHODIST HOMES FOR THE AGED,"2,500.00",23/09/2014
Delivery Units,Adults and Communities,Other Agencies - Third Party Payment,30036911,MILBURY,"5,915.60",22/09/2014
Delivery Units,Adults and Communities,Other Agencies - Third Party Payment,30032246,ML HOMES LTD,"1,417.24",05/09/2014
Delivery Units,Adults and Communities,Other Agencies - Third Party Payment,30036570,ML HOMES LTD,"1,417.24",19/09/2014
Delivery Units,Adults and Communities,Other Agencies - Third Party Payment,30032247,ML HOMES LTD,"1,428.68",05/09/2014
Delivery Units,Adults and Communities,Other Agencies - Third Party Payment,30036574,ML HOMES LTD,"1,428.68",19/09/2014
Delivery Units,Adults and Communities,Other Agencies - Third Party Payment,30032168,ML HOMES LTD,"1,433.56",05/09/2014
Delivery Units,Adults and Communities,Other Agencies - Third Party Payment,30036557,ML HOMES LTD,"1,433.56",19/09/2014
Delivery Units,Adults and Communities,Other Agencies - Third Party Payment,30032159,ML HOMES LTD,"1,740.00",05/09/2014
Delivery Units,Adults and Communities,Other Agencies - Third Party Payment,30036555,ML HOMES LTD,"1,740.00",19/09/2014
Delivery Units,Adults and Communities,Other Agencies - Third Party Payment,30032184,ML HOMES LTD,"1,751.16",05/09/2014
Delivery Units,Adults and Communities,Other Agencies - Third Party Payment,30032251,ML HOMES LTD,"1,751.16",05/09/2014
Delivery Units,Adults and Communities,Other Agencies - Third Party Payment,30036565,ML HOMES LTD,"1,751.16",19/09/2014
Delivery Units,Adults and Communities,Other Agencies - Third Party Payment,30036576,ML HOMES LTD,"1,751.16",19/09/2014
Delivery Units,Adults and Communities,Other Agencies - Third Party Payment,30032248,ML HOMES LTD,"1,765.80",05/09/2014
Delivery Units,Adults and Communities,Other Agencies - Third Party Payment,30036575,ML HOMES LTD,"1,765.80",19/09/2014
Delivery Units,Adults and Communities,Other Agencies - Third Party Payment,30032272,ML HOMES LTD,"1,767.40",05/09/2014
Delivery Units,Adults and Communities,Other Agencies - Third Party Payment,30036717,ML HOMES LTD,"1,767.40",19/09/2014
Delivery Units,Adults and Communities,Other Agencies - Third Party Payment,30032323,ML HOMES LTD,"1,780.00",05/09/2014
Delivery Units,Adults and Communities,Other Agencies - Third Party Payment,30036595,ML HOMES LTD,"1,780.00",19/09/2014
Delivery Units,Adults and Communities,Other Agencies - Third Party Payment,30032322,ML HOMES LTD,"1,820.00",05/09/2014
Delivery Units,Adults and Communities,Other Agencies - Third Party Payment,30036593,ML HOMES LTD,"1,820.00",19/09/2014
Delivery Units,Adults and Communities,Other Agencies - Third Party Payment,30032232,ML HOMES LTD,"1,955.84",05/09/2014
Delivery Units,Adults and Communities,Other Agencies - Third Party Payment,30036568,ML HOMES LTD,"1,955.84",19/09/2014
Delivery Units,Adults and Communities,Other Agencies - Third Party Payment,30032166,ML HOMES LTD,"2,118.36",05/09/2014
Delivery Units,Adults and Communities,Other Agencies - Third Party Payment,30032191,ML HOMES LTD,"2,118.36",05/09/2014
Delivery Units,Adults and Communities,Other Agencies - Third Party Payment,30036556,ML HOMES LTD,"2,118.36",19/09/2014
Delivery Units,Adults and Communities,Other Agencies - Third Party Payment,30036566,ML HOMES LTD,"2,118.36",19/09/2014
Delivery Units,Adults and Communities,Other Agencies - Third Party Payment,30036861,NAS SERVICES LTD,-319.40,22/09/2014
Delivery Units,Adults and Communities,Other Agencies - Third Party Payment,30037914,NAS SERVICES LTD,"2,035.64",24/09/2014
Delivery Units,Adults and Communities,Other Agencies - Third Party Payment,30036860,NAS SERVICES LTD,"3,666.96",22/09/2014
Delivery Units,Adults and Communities,Other Agencies - Third Party Payment,30032201,NAZARETH HOUSE,"2,216.41",01/09/2014
Delivery Units,Adults and Communities,Other Agencies - Third Party Payment,30032204,NAZARETH HOUSE,"2,216.41",01/09/2014
Delivery Units,Adults and Communities,Other Agencies - Third Party Payment,30032203,NAZARETH HOUSE,"2,418.04",01/09/2014
Delivery Units,Adults and Communities,Other Agencies - Third Party Payment,30032202,NAZARETH HOUSE,"2,934.37",01/09/2014
Delivery Units,Adults and Communities,Other Agencies - Third Party Payment,20011201,NEEM TREE CARE CENTRE,"2,697.00",04/09/2014
Delivery Units,Adults and Communities,Other Agencies - Third Party Payment,30033520,NEWCENTURY CARE LTD,"2,288.00",04/09/2014
Delivery Units,Adults and Communities,Other Agencies - Third Party Payment,30033521,NEWCENTURY CARE LTD,"2,534.14",04/09/2014
Delivery Units,Adults and Communities,Other Agencies - Third Party Payment,30033221,NEWCENTURY CARE LTD,"2,581.86",03/09/2014
Delivery Units,Adults and Communities,Other Agencies - Third Party Payment,30032408,NEWCENTURY CARE LTD,"2,618.61",02/09/2014
Delivery Units,Adults and Communities,Other Agencies - Third Party Payment,30036452,NEXT STEP SUPPORT LIMITED,"2,000.00",17/09/2014
Delivery Units,Adults and Communities,Other Agencies - Third Party Payment,30036370,NEXT STEP SUPPORT LIMITED,"2,240.00",17/09/2014
Delivery Units,Adults and Communities,Other Agencies - Third Party Payment,30033322,NIGHTINGALE HOUSE,"2,524.29",02/09/2014
Delivery Units,Adults and Communities,Other Agencies - Third Party Payment,30032439,NORTH LONDON CARE SERVICES LTD,-401.67,02/09/2014
Delivery Units,Adults and Communities,Other Agencies - Third Party Payment,30032438,NORTH LONDON CARE SERVICES LTD,"6,260.84",02/09/2014
Delivery Units,Adults and Communities,Other Agencies - Third Party Payment,30036427,NORWOOD RAVENSWOOD SCHOOLS LTD,-495.80,17/09/2014
Delivery Units,Adults and Communities,Other Agencies - Third Party Payment,30036437,NORWOOD RAVENSWOOD SCHOOLS LTD,-495.80,17/09/2014
Delivery Units,Adults and Communities,Other Agencies - Third Party Payment,30036443,NORWOOD RAVENSWOOD SCHOOLS LTD,-495.80,17/09/2014
Delivery Units,Adults and Communities,Other Agencies - Third Party Payment,30036445,NORWOOD RAVENSWOOD SCHOOLS LTD,-495.80,17/09/2014
Delivery Units,Adults and Communities,Other Agencies - Third Party Payment,30036469,NORWOOD RAVENSWOOD SCHOOLS LTD,-350.60,17/09/2014
Delivery Units,Adults and Communities,Other Agencies - Third Party Payment,30036429,NORWOOD RAVENSWOOD SCHOOLS LTD,-319.40,17/09/2014
Delivery Units,Adults and Communities,Other Agencies - Third Party Payment,30036431,NORWOOD RAVENSWOOD SCHOOLS LTD,-319.40,17/09/2014
Delivery Units,Adults and Communities,Other Agencies - Third Party Payment,30036435,NORWOOD RAVENSWOOD SCHOOLS LTD,-319.40,17/09/2014
Delivery Units,Adults and Communities,Other Agencies - Third Party Payment,30036467,NORWOOD RAVENSWOOD SCHOOLS LTD,-319.40,17/09/2014
Delivery Units,Adults and Communities,Other Agencies - Third Party Payment,20011386,NORWOOD RAVENSWOOD SCHOOLS LTD,280.00,09/09/2014
Delivery Units,Adults and Communities,Other Agencies - Third Party Payment,20011387,NORWOOD RAVENSWOOD SCHOOLS LTD,280.00,09/09/2014
Delivery Units,Adults and Communities,Other Agencies - Third Party Payment,30036728,NORWOOD RAVENSWOOD SCHOOLS LTD,304.00,19/09/2014
Delivery Units,Adults and Communities,Other Agencies - Third Party Payment,30036901,NORWOOD RAVENSWOOD SCHOOLS LTD,364.80,22/09/2014
Delivery Units,Adults and Communities,Other Agencies - Third Party Payment,30033636,NORWOOD RAVENSWOOD SCHOOLS LTD,440.00,04/09/2014
Delivery Units,Adults and Communities,Other Agencies - Third Party Payment,30033637,NORWOOD RAVENSWOOD SCHOOLS LTD,440.00,04/09/2014
Delivery Units,Adults and Communities,Other Agencies - Third Party Payment,30036732,NORWOOD RAVENSWOOD SCHOOLS LTD,486.40,19/09/2014
Delivery Units,Adults and Communities,Other Agencies - Third Party Payment,30036725,NORWOOD RAVENSWOOD SCHOOLS LTD,608.00,19/09/2014
Delivery Units,Adults and Communities,Other Agencies - Third Party Payment,30036727,NORWOOD RAVENSWOOD SCHOOLS LTD,729.60,19/09/2014
Delivery Units,Adults and Communities,Other Agencies - Third Party Payment,30036730,NORWOOD RAVENSWOOD SCHOOLS LTD,790.40,19/09/2014
Delivery Units,Adults and Communities,Other Agencies - Third Party Payment,30036908,NORWOOD RAVENSWOOD SCHOOLS LTD,820.80,22/09/2014
Delivery Units,Adults and Communities,Other Agencies - Third Party Payment,30033638,NORWOOD RAVENSWOOD SCHOOLS LTD,880.00,04/09/2014
Delivery Units,Adults and Communities,Other Agencies - Third Party Payment,30036906,NORWOOD RAVENSWOOD SCHOOLS LTD,"1,021.44",22/09/2014
Delivery Units,Adults and Communities,Other Agencies - Third Party Payment,30036907,NORWOOD RAVENSWOOD SCHOOLS LTD,"1,021.44",22/09/2014
Delivery Units,Adults and Communities,Other Agencies - Third Party Payment,30036726,NORWOOD RAVENSWOOD SCHOOLS LTD,"1,520.00",19/09/2014
Delivery Units,Adults and Communities,Other Agencies - Third Party Payment,30036430,NORWOOD RAVENSWOOD SCHOOLS LTD,"4,656.00",17/09/2014
Delivery Units,Adults and Communities,Other Agencies - Third Party Payment,30036442,NORWOOD RAVENSWOOD SCHOOLS LTD,"4,748.00",17/09/2014
Delivery Units,Adults and Communities,Other Agencies - Third Party Payment,30036444,NORWOOD RAVENSWOOD SCHOOLS LTD,"4,924.00",17/09/2014
Delivery Units,Adults and Communities,Other Agencies - Third Party Payment,30036450,NORWOOD RAVENSWOOD SCHOOLS LTD,"5,540.00",17/09/2014
Delivery Units,Adults and Communities,Other Agencies - Third Party Payment,30036426,NORWOOD RAVENSWOOD SCHOOLS LTD,"5,732.00",17/09/2014
Delivery Units,Adults and Communities,Other Agencies - Third Party Payment,30036434,NORWOOD RAVENSWOOD SCHOOLS LTD,"5,792.00",17/09/2014
Delivery Units,Adults and Communities,Other Agencies - Third Party Payment,30036428,NORWOOD RAVENSWOOD SCHOOLS LTD,"6,528.00",17/09/2014
Delivery Units,Adults and Communities,Other Agencies - Third Party Payment,30036466,NORWOOD RAVENSWOOD SCHOOLS LTD,"7,148.00",17/09/2014
Delivery Units,Adults and Communities,Other Agencies - Third Party Payment,30036436,NORWOOD RAVENSWOOD SCHOOLS LTD,"7,788.00",17/09/2014
Delivery Units,Adults and Communities,Other Agencies - Third Party Payment,30036468,NORWOOD RAVENSWOOD SCHOOLS LTD,"8,224.00",17/09/2014
Delivery Units,Adults and Communities,Other Agencies - Third Party Payment,30031928,OAKHOUSE,-319.40,02/09/2014
Delivery Units,Adults and Communities,Other Agencies - Third Party Payment,30037163,OAKHOUSE,-319.40,25/09/2014
Delivery Units,Adults and Communities,Other Agencies - Third Party Payment,30031926,OAKHOUSE,-255.34,02/09/2014
Delivery Units,Adults and Communities,Other Agencies - Third Party Payment,30031925,OAKHOUSE,"1,913.68",02/09/2014
Delivery Units,Adults and Communities,Other Agencies - Third Party Payment,30031927,OAKHOUSE,"3,047.48",02/09/2014
Delivery Units,Adults and Communities,Other Agencies - Third Party Payment,30037162,OAKHOUSE,"3,047.48",25/09/2014
Delivery Units,Adults and Communities,Other Agencies - Third Party Payment,30034088,ONE STEP (SUPPORT) LTD,"1,084.60",09/09/2014
Delivery Units,Adults and Communities,Other Agencies - Third Party Payment,30037195,ONE STEP (SUPPORT) LTD,"3,395.80",23/09/2014
Delivery Units,Adults and Communities,Other Agencies - Third Party Payment,30037190,ONE STEP (SUPPORT) LTD,"5,564.12",23/09/2014
Delivery Units,Adults and Communities,Other Agencies - Third Party Payment,30037191,ONE STEP (SUPPORT) LTD,"5,770.20",23/09/2014
Delivery Units,Adults and Communities,Other Agencies - Third Party Payment,30037192,ONE STEP (SUPPORT) LTD,"5,770.20",23/09/2014
Delivery Units,Adults and Communities,Other Agencies - Third Party Payment,30037193,ONE STEP (SUPPORT) LTD,"5,770.20",23/09/2014
Delivery Units,Adults and Communities,Other Agencies - Third Party Payment,30032444,OPTIMAL LIVING (LUTON) LTD,-548.92,02/09/2014
Delivery Units,Adults and Communities,Other Agencies - Third Party Payment,30032443,OPTIMAL LIVING (LUTON) LTD,"4,776.70",02/09/2014
Delivery Units,Adults and Communities,Other Agencies - Third Party Payment,30038562,ORIGIN HOUSING LIMITED,561.60,29/09/2014
Delivery Units,Adults and Communities,Other Agencies - Third Party Payment,30033643,ORIGIN HOUSING LIMITED,"1,065.60",04/09/2014
Delivery Units,Adults and Communities,Other Agencies - Third Party Payment,30037198,ORIGIN HOUSING LIMITED,"1,065.60",23/09/2014
Delivery Units,Adults and Communities,Other Agencies - Third Party Payment,30033642,ORIGIN HOUSING LIMITED,"1,324.80",04/09/2014
Delivery Units,Adults and Communities,Other Agencies - Third Party Payment,30037197,ORIGIN HOUSING LIMITED,"1,324.80",23/09/2014
Delivery Units,Adults and Communities,Other Agencies - Third Party Payment,30033640,ORIGIN HOUSING LIMITED,"1,728.00",04/09/2014
Delivery Units,Adults and Communities,Other Agencies - Third Party Payment,30033641,ORIGIN HOUSING LIMITED,"1,728.00",04/09/2014
Delivery Units,Adults and Communities,Other Agencies - Third Party Payment,30037196,ORIGIN HOUSING LIMITED,"1,728.00",23/09/2014
Delivery Units,Adults and Communities,Other Agencies - Third Party Payment,30037199,ORIGIN HOUSING LIMITED,"1,728.00",23/09/2014
Delivery Units,Adults and Communities,Other Agencies - Third Party Payment,30033568,PARADISE HOUSE ASSOCIATION LTD,-353.62,04/09/2014
Delivery Units,Adults and Communities,Other Agencies - Third Party Payment,30033567,PARADISE HOUSE ASSOCIATION LTD,"3,514.69",04/09/2014
Delivery Units,Adults and Communities,Other Agencies - Third Party Payment,30033237,PARKCARE HOMES (NO2) LIMITED,-353.62,03/09/2014
Delivery Units,Adults and Communities,Other Agencies - Third Party Payment,30033239,PARKCARE HOMES (NO2) LIMITED,-353.62,03/09/2014
Delivery Units,Adults and Communities,Other Agencies - Third Party Payment,30033246,PARKCARE HOMES (NO2) LIMITED,-353.62,03/09/2014
Delivery Units,Adults and Communities,Other Agencies - Third Party Payment,30033248,PARKCARE HOMES (NO2) LIMITED,-353.62,03/09/2014
Delivery Units,Adults and Communities,Other Agencies - Third Party Payment,30033250,PARKCARE HOMES (NO2) LIMITED,-353.62,03/09/2014
Delivery Units,Adults and Communities,Other Agencies - Third Party Payment,30033238,PARKCARE HOMES (NO2) LIMITED,"4,796.41",03/09/2014
Delivery Units,Adults and Communities,Other Agencies - Third Party Payment,30033245,PARKCARE HOMES (NO2) LIMITED,"4,813.41",03/09/2014
Delivery Units,Adults and Communities,Other Agencies - Third Party Payment,30033247,PARKCARE HOMES (NO2) LIMITED,"5,155.03",03/09/2014
Delivery Units,Adults and Communities,Other Agencies - Third Party Payment,30033249,PARKCARE HOMES (NO2) LIMITED,"5,155.03",03/09/2014
Delivery Units,Adults and Communities,Other Agencies - Third Party Payment,30033236,PARKCARE HOMES (NO2) LIMITED,"5,486.91",03/09/2014
Delivery Units,Adults and Communities,Other Agencies - Third Party Payment,30032170,PILLARCARE,"6,328.00",01/09/2014
Delivery Units,Adults and Communities,Other Agencies - Third Party Payment,30038098,PLATINUM HEALTH RESOURCES LTD,"1,597.84",25/09/2014
Delivery Units,Adults and Communities,Other Agencies - Third Party Payment,30032216,PLATINUM HEALTH RESOURCES LTD,"3,764.29",01/09/2014
Delivery Units,Adults and Communities,Other Agencies - Third Party Payment,30032250,PLATINUM HEALTH RESOURCES LTD,"3,764.29",01/09/2014
Delivery Units,Adults and Communities,Other Agencies - Third Party Payment,30032327,PLATINUM HEALTH RESOURCES LTD,"4,949.11",01/09/2014
Delivery Units,Adults and Communities,Other Agencies - Third Party Payment,30038582,PRINCE MICHAEL OF KENT COURT,"2,144.91",30/09/2014
Delivery Units,Adults and Communities,Other Agencies - Third Party Payment,30032445,PRINCE MICHAEL OF KENT COURT,"2,216.41",02/09/2014
Delivery Units,Adults and Communities,Other Agencies - Third Party Payment,30034946,PROSPECTS STAFF BUREAU LTD,373.75,12/09/2014
Delivery Units,Adults and Communities,Other Agencies - Third Party Payment,30038116,PROSPECTS STAFF BUREAU LTD,373.75,26/09/2014
Delivery Units,Adults and Communities,Other Agencies - Third Party Payment,30034823,PRT BARNET CARERS CENTRE,535.70,11/09/2014
Delivery Units,Adults and Communities,Other Agencies - Third Party Payment,30034824,PRT BARNET CARERS CENTRE,725.48,11/09/2014
Delivery Units,Adults and Communities,Other Agencies - Third Party Payment,30034859,PURBECK CARE LTD,-548.92,15/09/2014
Delivery Units,Adults and Communities,Other Agencies - Third Party Payment,30034861,PURBECK CARE LTD,-301.02,15/09/2014
Delivery Units,Adults and Communities,Other Agencies - Third Party Payment,30037145,PURBECK CARE LTD,"1,782.00",23/09/2014
Delivery Units,Adults and Communities,Other Agencies - Third Party Payment,30034860,PURBECK CARE LTD,"4,327.71",15/09/2014
Delivery Units,Adults and Communities,Other Agencies - Third Party Payment,30034858,PURBECK CARE LTD,"7,891.71",15/09/2014
Delivery Units,Adults and Communities,Other Agencies - Third Party Payment,30033291,QUALITY HOUSING & SOCIAL CARE LTD,"2,879.28",03/09/2014
Delivery Units,Adults and Communities,Other Agencies - Third Party Payment,30036542,QUANTUM CARE LIMITED,-548.92,18/09/2014
Delivery Units,Adults and Communities,Other Agencies - Third Party Payment,30036545,QUANTUM CARE LIMITED,-548.92,18/09/2014
Delivery Units,Adults and Communities,Other Agencies - Third Party Payment,30036541,QUANTUM CARE LIMITED,"2,320.53",18/09/2014
Delivery Units,Adults and Communities,Other Agencies - Third Party Payment,30036543,QUANTUM CARE LIMITED,"2,321.90",18/09/2014
Delivery Units,Adults and Communities,Other Agencies - Third Party Payment,30037032,QUANTUM CARE LIMITED,"2,364.81",23/09/2014
Delivery Units,Adults and Communities,Other Agencies - Third Party Payment,30037034,QUANTUM CARE LIMITED,"2,364.81",23/09/2014
Delivery Units,Adults and Communities,Other Agencies - Third Party Payment,30036544,QUANTUM CARE LIMITED,"2,418.04",18/09/2014
Delivery Units,Adults and Communities,Other Agencies - Third Party Payment,30032500,QUEEN ANN CARE,"3,985.71",02/09/2014
Delivery Units,Adults and Communities,Other Agencies - Third Party Payment,30038567,RAINBOW HOMES LONDON LTD,"3,199.80",30/09/2014
Delivery Units,Adults and Communities,Other Agencies - Third Party Payment,30034813,RAINBOW HOMES LONDON LTD,"3,306.46",11/09/2014
Delivery Units,Adults and Communities,Other Agencies - Third Party Payment,30038566,RAINBOW HOMES LONDON LTD,"3,978.00",30/09/2014
Delivery Units,Adults and Communities,Other Agencies - Third Party Payment,30034812,RAINBOW HOMES LONDON LTD,"4,110.60",11/09/2014
Delivery Units,Adults and Communities,Other Agencies - Third Party Payment,30036366,REAL LIFE OPTIONS,-319.40,17/09/2014
Delivery Units,Adults and Communities,Other Agencies - Third Party Payment,30036365,REAL LIFE OPTIONS,"5,252.28",17/09/2014
Delivery Units,Adults and Communities,Other Agencies - Third Party Payment,30032447,REDACTED - PERSONAL DATA,-353.62,02/09/2014
Delivery Units,Adults and Communities,Other Agencies - Third Party Payment,30032446,REDACTED - PERSONAL DATA,"4,862.75",02/09/2014
Delivery Units,Adults and Communities,Other Agencies - Third Party Payment,30032033,REHABILITATION EDUCATION AND,-495.80,01/09/2014
Delivery Units,Adults and Communities,Other Agencies - Third Party Payment,30037813,REHABILITATION EDUCATION AND,-495.80,24/09/2014
Delivery Units,Adults and Communities,Other Agencies - Third Party Payment,30032032,REHABILITATION EDUCATION AND,"2,961.76",01/09/2014
Delivery Units,Adults and Communities,Other Agencies - Third Party Payment,30037812,REHABILITATION EDUCATION AND,"2,961.76",24/09/2014
Delivery Units,Adults and Communities,Other Agencies - Third Party Payment,30036864,RESIDENTIAL CARE PROVIDERS LTD,-319.40,22/09/2014
Delivery Units,Adults and Communities,Other Agencies - Third Party Payment,30036863,RESIDENTIAL CARE PROVIDERS LTD,"7,800.00",22/09/2014
Delivery Units,Adults and Communities,Other Agencies - Third Party Payment,30032069,RIDGEWAY NURSING HOME,"2,435.67",01/09/2014
Delivery Units,Adults and Communities,Other Agencies - Third Party Payment,30033227,ROBERT OWEN COMMUNITIES (ROC),-353.62,03/09/2014
Delivery Units,Adults and Communities,Other Agencies - Third Party Payment,30033226,ROBERT OWEN COMMUNITIES (ROC),"5,913.11",03/09/2014
Delivery Units,Adults and Communities,Other Agencies - Third Party Payment,30032254,ROLAND RESIDENTIAL CARE HOMES,"4,049.44",01/09/2014
Delivery Units,Adults and Communities,Other Agencies - Third Party Payment,30032162,ROLAND RESIDENTIAL CARE HOMES LTD,"3,225.24",01/09/2014
Delivery Units,Adults and Communities,Other Agencies - Third Party Payment,30032190,ROLAND RESIDENTIAL CARE HOMES LTD,"3,274.93",01/09/2014
Delivery Units,Adults and Communities,Other Agencies - Third Party Payment,30032261,ROLAND RESIDENTIAL CARE HOMES LTD,"3,426.96",01/09/2014
Delivery Units,Adults and Communities,Other Agencies - Third Party Payment,30032238,ROLAND RESIDENTIAL CARE HOMES LTD,"4,196.51",01/09/2014
Delivery Units,Adults and Communities,Other Agencies - Third Party Payment,30037917,ROSEACRES CARE HOME LIMITED,546.01,24/09/2014
Delivery Units,Adults and Communities,Other Agencies - Third Party Payment,30037919,ROSEACRES CARE HOME LIMITED,858.02,24/09/2014
Delivery Units,Adults and Communities,Other Agencies - Third Party Payment,30038652,ROSEACRES CARE HOME LIMITED,858.02,30/09/2014
Delivery Units,Adults and Communities,Other Agencies - Third Party Payment,30037925,ROSEACRES CARE HOME LIMITED,"1,092.02",24/09/2014
Delivery Units,Adults and Communities,Other Agencies - Third Party Payment,30036873,ROSEACRES CARE HOME LIMITED,"1,560.03",22/09/2014
Delivery Units,Adults and Communities,Other Agencies - Third Party Payment,30032270,ROSEACRES CARE HOME LIMITED,"2,340.04",01/09/2014
Delivery Units,Adults and Communities,Other Agencies - Third Party Payment,30038651,ROSEACRES CARE HOME LIMITED,"2,399.47",30/09/2014
Delivery Units,Adults and Communities,Other Agencies - Third Party Payment,30032269,ROSEACRES CARE HOME LIMITED,"2,418.04",01/09/2014
Delivery Units,Adults and Communities,Other Agencies - Third Party Payment,30036874,ROSEACRES CARE HOME LIMITED,"2,418.04",22/09/2014
Delivery Units,Adults and Communities,Other Agencies - Third Party Payment,30036875,ROSEACRES CARE HOME LIMITED,"2,418.04",22/09/2014
Delivery Units,Adults and Communities,Other Agencies - Third Party Payment,30036876,ROSEACRES CARE HOME LIMITED,"2,418.04",22/09/2014
Delivery Units,Adults and Communities,Other Agencies - Third Party Payment,30036877,ROSEACRES CARE HOME LIMITED,"2,418.04",22/09/2014
Delivery Units,Adults and Communities,Other Agencies - Third Party Payment,30036878,ROSEACRES CARE HOME LIMITED,"2,418.04",22/09/2014
Delivery Units,Adults and Communities,Other Agencies - Third Party Payment,30036879,ROSEACRES CARE HOME LIMITED,"2,418.04",22/09/2014
Delivery Units,Adults and Communities,Other Agencies - Third Party Payment,30036880,ROSEACRES CARE HOME LIMITED,"2,418.04",22/09/2014
Delivery Units,Adults and Communities,Other Agencies - Third Party Payment,30036881,ROSEACRES CARE HOME LIMITED,"2,418.04",22/09/2014
Delivery Units,Adults and Communities,Other Agencies - Third Party Payment,30036882,ROSEACRES CARE HOME LIMITED,"2,418.04",22/09/2014
Delivery Units,Adults and Communities,Other Agencies - Third Party Payment,30036883,ROSEACRES CARE HOME LIMITED,"2,418.04",22/09/2014
Delivery Units,Adults and Communities,Other Agencies - Third Party Payment,30036884,ROSEACRES CARE HOME LIMITED,"2,418.04",22/09/2014
Delivery Units,Adults and Communities,Other Agencies - Third Party Payment,30036885,ROSEACRES CARE HOME LIMITED,"2,418.04",22/09/2014
Delivery Units,Adults and Communities,Other Agencies - Third Party Payment,30032543,ROSEACRES CARE HOME LIMITED,"10,296.19",04/09/2014
Delivery Units,Adults and Communities,Other Agencies - Third Party Payment,30033296,ROWAN HOUSE,"4,422.28",03/09/2014
Delivery Units,Adults and Communities,Other Agencies - Third Party Payment,30035994,ROYAL MENCAP SOCIETY,"1,595.00",17/09/2014
Delivery Units,Adults and Communities,Other Agencies - Third Party Payment,30037979,ROYAL MENCAP SOCIETY,"1,595.00",25/09/2014
Delivery Units,Adults and Communities,Other Agencies - Third Party Payment,30035993,ROYAL MENCAP SOCIETY,"1,722.60",17/09/2014
Delivery Units,Adults and Communities,Other Agencies - Third Party Payment,30037978,ROYAL MENCAP SOCIETY,"1,722.60",25/09/2014
Delivery Units,Adults and Communities,Other Agencies - Third Party Payment,30036000,SAGE NURSING HOME,"1,092.02",17/09/2014
Delivery Units,Adults and Communities,Other Agencies - Third Party Payment,30032220,SANCTUARY CARE LTD,"2,418.04",01/09/2014
Delivery Units,Adults and Communities,Other Agencies - Third Party Payment,30031998,SAXON COURT,-548.92,01/09/2014
Delivery Units,Adults and Communities,Other Agencies - Third Party Payment,30032000,SAXON COURT,-548.92,01/09/2014
Delivery Units,Adults and Communities,Other Agencies - Third Party Payment,30031997,SAXON COURT,"2,434.07",01/09/2014
Delivery Units,Adults and Communities,Other Agencies - Third Party Payment,30031999,SAXON COURT,"2,434.08",01/09/2014
Delivery Units,Adults and Communities,Other Agencies - Third Party Payment,30032208,SCIMITAR CARE HOTELS PLC,-531.21,01/09/2014
Delivery Units,Adults and Communities,Other Agencies - Third Party Payment,30032205,SCIMITAR CARE HOTELS PLC,633.50,15/09/2014
Delivery Units,Adults and Communities,Other Agencies - Third Party Payment,30031803,SCIMITAR CARE HOTELS PLC,814.50,01/09/2014
Delivery Units,Adults and Communities,Other Agencies - Third Party Payment,30032206,SCIMITAR CARE HOTELS PLC,"2,418.04",01/09/2014
Delivery Units,Adults and Communities,Other Agencies - Third Party Payment,30032260,SCIMITAR CARE HOTELS PLC,"2,418.04",01/09/2014
Delivery Units,Adults and Communities,Other Agencies - Third Party Payment,30037160,SCIMITAR CARE HOTELS PLC,"2,418.04",23/09/2014
Delivery Units,Adults and Communities,Other Agencies - Third Party Payment,30032207,SCIMITAR CARE HOTELS PLC,"2,754.57",01/09/2014
Delivery Units,Adults and Communities,Other Agencies - Third Party Payment,30034026,SCOPE,-548.92,09/09/2014
Delivery Units,Adults and Communities,Other Agencies - Third Party Payment,30036816,SCOPE,-362.80,22/09/2014
Delivery Units,Adults and Communities,Other Agencies - Third Party Payment,30033220,SCOPE,-353.62,03/09/2014
Delivery Units,Adults and Communities,Other Agencies - Third Party Payment,30033934,SCOPE,-353.62,08/09/2014
Delivery Units,Adults and Communities,Other Agencies - Third Party Payment,30033219,SCOPE,"3,000.68",03/09/2014
Delivery Units,Adults and Communities,Other Agencies - Third Party Payment,30034025,SCOPE,"3,368.05",09/09/2014
Delivery Units,Adults and Communities,Other Agencies - Third Party Payment,30036815,SCOPE,"4,000.00",22/09/2014
Delivery Units,Adults and Communities,Other Agencies - Third Party Payment,30036837,SCOTTISH SOCIETY FOR AUTISM,-396.60,22/09/2014
Delivery Units,Adults and Communities,Other Agencies - Third Party Payment,30036838,SCOTTISH SOCIETY FOR AUTISM,"1,172.08",22/09/2014
Delivery Units,Adults and Communities,Other Agencies - Third Party Payment,30036836,SCOTTISH SOCIETY FOR AUTISM,"5,781.64",22/09/2014
Delivery Units,Adults and Communities,Other Agencies - Third Party Payment,30034066,SEAFORTH LODGE,"1,638.03",09/09/2014
Delivery Units,Adults and Communities,Other Agencies - Third Party Payment,30037169,SEAFORTH LODGE,"1,638.03",23/09/2014
Delivery Units,Adults and Communities,Other Agencies - Third Party Payment,30032243,SEAFORTH LODGE,"2,216.41",01/09/2014
Delivery Units,Adults and Communities,Other Agencies - Third Party Payment,30032267,SEAFORTH LODGE,"2,418.04",01/09/2014
Delivery Units,Adults and Communities,Other Agencies - Third Party Payment,30032271,SEAFORTH LODGE,"2,418.04",01/09/2014
Delivery Units,Adults and Communities,Other Agencies - Third Party Payment,30032321,SEAFORTH LODGE,"2,418.04",01/09/2014
Delivery Units,Adults and Communities,Other Agencies - Third Party Payment,30032192,SEAFORTH LODGE,"4,836.08",01/09/2014
Delivery Units,Adults and Communities,Other Agencies - Third Party Payment,30033279,SELF UNLIMITED,-353.62,03/09/2014
Delivery Units,Adults and Communities,Other Agencies - Third Party Payment,30033283,SELF UNLIMITED,-353.62,03/09/2014
Delivery Units,Adults and Communities,Other Agencies - Third Party Payment,30033282,SELF UNLIMITED,"2,291.16",03/09/2014
Delivery Units,Adults and Communities,Other Agencies - Third Party Payment,30033278,SELF UNLIMITED,"3,301.85",03/09/2014
Delivery Units,Adults and Communities,Other Agencies - Third Party Payment,30032275,SENSE CAS FINANCE TEAM,-548.92,01/09/2014
Delivery Units,Adults and Communities,Other Agencies - Third Party Payment,30034870,SENSE CAS FINANCE TEAM,"2,413.60",11/09/2014
Delivery Units,Adults and Communities,Other Agencies - Third Party Payment,30032274,SENSE CAS FINANCE TEAM,"8,206.94",01/09/2014
Delivery Units,Adults and Communities,Other Agencies - Third Party Payment,30032417,SEVA CARE HOME,"2,216.41",02/09/2014
Delivery Units,Adults and Communities,Other Agencies - Third Party Payment,30032418,SEVA CARE HOME,"2,216.41",02/09/2014
Delivery Units,Adults and Communities,Other Agencies - Third Party Payment,30038583,SEYMOUR RESIDENTIAL CARE HOME,"2,340.04",30/09/2014
Delivery Units,Adults and Communities,Other Agencies - Third Party Payment,30033261,SEYMOUR RESIDENTIAL CARE HOME,"2,418.04",03/09/2014
Delivery Units,Adults and Communities,Other Agencies - Third Party Payment,30036592,SGSL LTD,"2,399.88",18/09/2014
Delivery Units,Adults and Communities,Other Agencies - Third Party Payment,30038097,SGSL LTD,"2,514.20",25/09/2014
Delivery Units,Adults and Communities,Other Agencies - Third Party Payment,30036594,SGSL LTD,"2,720.00",18/09/2014
Delivery Units,Adults and Communities,Other Agencies - Third Party Payment,30036402,SGSL LTD,"2,880.00",17/09/2014
Delivery Units,Adults and Communities,Other Agencies - Third Party Payment,30037920,SHAKTI NURSING HOME,"1,570.80",24/09/2014
Delivery Units,Adults and Communities,Other Agencies - Third Party Payment,30034078,SHAKTI NURSING HOME,"2,318.93",11/09/2014
Delivery Units,Adults and Communities,Other Agencies - Third Party Payment,30034080,SHAKTI NURSING HOME,"2,318.93",09/09/2014
Delivery Units,Adults and Communities,Other Agencies - Third Party Payment,30035041,SHAW TRUST LIMITED,600.00,15/09/2014
Delivery Units,Adults and Communities,Other Agencies - Third Party Payment,30035042,SHAW TRUST LIMITED,600.00,15/09/2014
Delivery Units,Adults and Communities,Other Agencies - Third Party Payment,30035043,SHAW TRUST LIMITED,600.00,15/09/2014
Delivery Units,Adults and Communities,Other Agencies - Third Party Payment,30035044,SHAW TRUST LIMITED,600.00,15/09/2014
Delivery Units,Adults and Communities,Other Agencies - Third Party Payment,30035045,SHAW TRUST LIMITED,600.00,15/09/2014
Delivery Units,Adults and Communities,Other Agencies - Third Party Payment,30035046,SHAW TRUST LIMITED,600.00,15/09/2014
Delivery Units,Adults and Communities,Other Agencies - Third Party Payment,30035047,SHAW TRUST LIMITED,600.00,15/09/2014
Delivery Units,Adults and Communities,Other Agencies - Third Party Payment,30038096,SHINE PARTNERSHIPS LTD,"2,352.00",25/09/2014
Delivery Units,Adults and Communities,Other Agencies - Third Party Payment,30038099,SHINE PARTNERSHIPS LTD,"2,640.00",25/09/2014
Delivery Units,Adults and Communities,Other Agencies - Third Party Payment,30033235,SIGN HEALTH,-273.24,03/09/2014
Delivery Units,Adults and Communities,Other Agencies - Third Party Payment,30033234,SIGN HEALTH,"10,185.71",03/09/2014
Delivery Units,Adults and Communities,Other Agencies - Third Party Payment,30032051,SIMEON CARE,"3,200.40",01/09/2014
Delivery Units,Adults and Communities,Other Agencies - Third Party Payment,30033293,SISTERS OF CHARITY SETON UNIT,-548.92,03/09/2014
Delivery Units,Adults and Communities,Other Agencies - Third Party Payment,30033292,SISTERS OF CHARITY SETON UNIT,"2,216.41",03/09/2014
Delivery Units,Adults and Communities,Other Agencies - Third Party Payment,30034103,SNEH CARE,358.00,12/09/2014
Delivery Units,Adults and Communities,Other Agencies - Third Party Payment,30029963,SODEXO HEALTHCARE SERVICES LTD,"8,287.75",08/09/2014
Delivery Units,Adults and Communities,Other Agencies - Third Party Payment,30032057,SONESTA NURSING HOME LTD.,"2,109.73",01/09/2014
Delivery Units,Adults and Communities,Other Agencies - Third Party Payment,30032055,SONESTA NURSING HOME LTD.,"2,318.93",01/09/2014
Delivery Units,Adults and Communities,Other Agencies - Third Party Payment,30032056,SONESTA NURSING HOME LTD.,"2,318.93",01/09/2014
Delivery Units,Adults and Communities,Other Agencies - Third Party Payment,30032058,SONESTA NURSING HOME LTD.,"2,570.70",01/09/2014
Delivery Units,Adults and Communities,Other Agencies - Third Party Payment,30032546,SOUTHDOWN HOUSING ASSOC. LIMITED,-319.40,02/09/2014
Delivery Units,Adults and Communities,Other Agencies - Third Party Payment,30036421,SOUTHDOWN HOUSING ASSOC. LIMITED,-319.40,17/09/2014
Delivery Units,Adults and Communities,Other Agencies - Third Party Payment,30032547,SOUTHDOWN HOUSING ASSOC. LIMITED,"1,291.56",02/09/2014
Delivery Units,Adults and Communities,Other Agencies - Third Party Payment,30036422,SOUTHDOWN HOUSING ASSOC. LIMITED,"1,291.56",17/09/2014
Delivery Units,Adults and Communities,Other Agencies - Third Party Payment,30032545,SOUTHDOWN HOUSING ASSOC. LIMITED,"3,599.28",02/09/2014
Delivery Units,Adults and Communities,Other Agencies - Third Party Payment,30036420,SOUTHDOWN HOUSING ASSOC. LIMITED,"3,599.28",17/09/2014
Delivery Units,Adults and Communities,Other Agencies - Third Party Payment,30034056,SPRINGDENE,-617.87,09/09/2014
Delivery Units,Adults and Communities,Other Agencies - Third Party Payment,30034053,SPRINGDENE,"1,047.20",09/09/2014
Delivery Units,Adults and Communities,Other Agencies - Third Party Payment,30034055,SPRINGDENE,"2,367.07",09/09/2014
Delivery Units,Adults and Communities,Other Agencies - Third Party Payment,30034051,SPRINGDENE,"3,321.43",09/09/2014
Delivery Units,Adults and Communities,Other Agencies - Third Party Payment,30034041,SPRINGDENE,"3,617.70",09/09/2014
Delivery Units,Adults and Communities,Other Agencies - Third Party Payment,30032585,ST AGNELL'S HOUSE (CARETECH),"6,177.86",02/09/2014
Delivery Units,Adults and Communities,Other Agencies - Third Party Payment,30034947,ST ANDREWS DAY CENTRE,"2,988.60",12/09/2014
Delivery Units,Adults and Communities,Other Agencies - Third Party Payment,30032293,ST ELIZABETH'S CENTRE,-548.92,01/09/2014
Delivery Units,Adults and Communities,Other Agencies - Third Party Payment,30032291,ST ELIZABETH'S CENTRE,-388.15,01/09/2014
Delivery Units,Adults and Communities,Other Agencies - Third Party Payment,30033635,ST ELIZABETH'S CENTRE,-388.15,04/09/2014
Delivery Units,Adults and Communities,Other Agencies - Third Party Payment,30032292,ST ELIZABETH'S CENTRE,"4,351.78",01/09/2014
Delivery Units,Adults and Communities,Other Agencies - Third Party Payment,30032290,ST ELIZABETH'S CENTRE,"10,485.75",01/09/2014
Delivery Units,Adults and Communities,Other Agencies - Third Party Payment,30033634,ST ELIZABETH'S CENTRE,"10,485.75",04/09/2014
Delivery Units,Adults and Communities,Other Agencies - Third Party Payment,30032294,ST ELIZABETH'S CENTRE,"11,753.34",01/09/2014
Delivery Units,Adults and Communities,Other Agencies - Third Party Payment,30037025,ST MUNGO ASSOCIATION,-495.80,23/09/2014
Delivery Units,Adults and Communities,Other Agencies - Third Party Payment,30037024,ST MUNGO ASSOCIATION,"2,720.00",23/09/2014
Delivery Units,Adults and Communities,Other Agencies - Third Party Payment,30032416,ST RAPHAELS HOME,-548.92,02/09/2014
Delivery Units,Adults and Communities,Other Agencies - Third Party Payment,30036926,ST RAPHAELS HOME,-538.07,23/09/2014
Delivery Units,Adults and Communities,Other Agencies - Third Party Payment,20011925,ST RAPHAELS HOME,"1,924.21",29/09/2014
Delivery Units,Adults and Communities,Other Agencies - Third Party Payment,30032415,ST RAPHAELS HOME,"2,462.28",02/09/2014
Delivery Units,Adults and Communities,Other Agencies - Third Party Payment,30036925,ST RAPHAELS HOME,"2,462.28",23/09/2014
Delivery Units,Adults and Communities,Other Agencies - Third Party Payment,30036870,ST VINCENT'S NURSING HOME,-548.92,22/09/2014
Delivery Units,Adults and Communities,Other Agencies - Third Party Payment,30036869,ST VINCENT'S NURSING HOME,"2,216.41",22/09/2014
Delivery Units,Adults and Communities,Other Agencies - Third Party Payment,30032009,ST. AUDREYS RETIREMENT HOME,"2,418.04",01/09/2014
Delivery Units,Adults and Communities,Other Agencies - Third Party Payment,30036553,ST. MARK'S DAY SERVICE,"1,999.08",25/09/2014
Delivery Units,Adults and Communities,Other Agencies - Third Party Payment,30033288,ST.DAVIDS CARE IN THE,-353.40,25/09/2014
Delivery Units,Adults and Communities,Other Agencies - Third Party Payment,30033287,ST.DAVIDS CARE IN THE,"3,928.63",25/09/2014
Delivery Units,Adults and Communities,Other Agencies - Third Party Payment,30036820,STALLCOMBE HOUSE FARM TRUST,"6,472.00",22/09/2014
Delivery Units,Adults and Communities,Other Agencies - Third Party Payment,30032063,STOUR VALLEY CARE GROUP,"5,668.57",01/09/2014
Delivery Units,Adults and Communities,Other Agencies - Third Party Payment,30033225,STRIVING FOR INDEPENDENCE HOMES LLP,-548.92,03/09/2014
Delivery Units,Adults and Communities,Other Agencies - Third Party Payment,30033224,STRIVING FOR INDEPENDENCE HOMES LLP,"6,022.86",03/09/2014
Delivery Units,Adults and Communities,Other Agencies - Third Party Payment,30033244,SUNRIDGE HOUSING ASSOCIATION LTD,-560.16,03/09/2014
Delivery Units,Adults and Communities,Other Agencies - Third Party Payment,30037027,SUNRIDGE HOUSING ASSOCIATION LTD,-560.16,23/09/2014
Delivery Units,Adults and Communities,Other Agencies - Third Party Payment,30036335,SWANBOROUGH HOUSE,"3,722.44",17/09/2014
Delivery Units,Adults and Communities,Other Agencies - Third Party Payment,30036886,SYDMAR LODGE,643.47,22/09/2014
Delivery Units,Adults and Communities,Other Agencies - Third Party Payment,30032296,SYDMAR LODGE,"2,418.04",01/09/2014
Delivery Units,Adults and Communities,Other Agencies - Third Party Payment,30038658,SYDMAR LODGE,"2,418.04",30/09/2014
Delivery Units,Adults and Communities,Other Agencies - Third Party Payment,20011280,SYDMAR LODGE,"2,878.57",08/09/2014
Delivery Units,Adults and Communities,Other Agencies - Third Party Payment,30038615,TANSLEY HOUSE RESIDENTIAL HOME,"6,577.08",30/09/2014
Delivery Units,Adults and Communities,Other Agencies - Third Party Payment,30032324,TENTERDEN HOUSE,"3,962.42",01/09/2014
Delivery Units,Adults and Communities,Other Agencies - Third Party Payment,30037808,TERRINGTON LODGE LTD,"1,836.36",24/09/2014
Delivery Units,Adults and Communities,Other Agencies - Third Party Payment,30034956,THE BARNETGROUP LIMITED,300.00,12/09/2014
Delivery Units,Adults and Communities,Other Agencies - Third Party Payment,30034961,THE BARNETGROUP LIMITED,360.00,12/09/2014
Delivery Units,Adults and Communities,Other Agencies - Third Party Payment,30034962,THE BARNETGROUP LIMITED,360.00,12/09/2014
Delivery Units,Adults and Communities,Other Agencies - Third Party Payment,30034955,THE BARNETGROUP LIMITED,408.75,12/09/2014
Delivery Units,Adults and Communities,Other Agencies - Third Party Payment,30034954,THE BARNETGROUP LIMITED,600.00,12/09/2014
Delivery Units,Adults and Communities,Other Agencies - Third Party Payment,30034957,THE BARNETGROUP LIMITED,600.00,12/09/2014
Delivery Units,Adults and Communities,Other Agencies - Third Party Payment,30034958,THE BARNETGROUP LIMITED,600.00,12/09/2014
Delivery Units,Adults and Communities,Other Agencies - Third Party Payment,30034959,THE BARNETGROUP LIMITED,600.00,12/09/2014
Delivery Units,Adults and Communities,Other Agencies - Third Party Payment,30034960,THE BARNETGROUP LIMITED,600.00,12/09/2014
Delivery Units,Adults and Communities,Other Agencies - Third Party Payment,30036723,THE BARNETGROUP LIMITED,810.00,19/09/2014
Delivery Units,Adults and Communities,Other Agencies - Third Party Payment,30034966,THE BARNETGROUP LIMITED,881.60,12/09/2014
Delivery Units,Adults and Communities,Other Agencies - Third Party Payment,30036722,THE BARNETGROUP LIMITED,"1,080.00",19/09/2014
Delivery Units,Adults and Communities,Other Agencies - Third Party Payment,30036724,THE BARNETGROUP LIMITED,"1,080.00",19/09/2014
Delivery Units,Adults and Communities,Other Agencies - Third Party Payment,30034971,THE BARNETGROUP LIMITED,"1,120.00",12/09/2014
Delivery Units,Adults and Communities,Other Agencies - Third Party Payment,30034973,THE BARNETGROUP LIMITED,"1,120.00",12/09/2014
Delivery Units,Adults and Communities,Other Agencies - Third Party Payment,30034975,THE BARNETGROUP LIMITED,"1,120.00",12/09/2014
Delivery Units,Adults and Communities,Other Agencies - Third Party Payment,30034976,THE BARNETGROUP LIMITED,"1,120.00",12/09/2014
Delivery Units,Adults and Communities,Other Agencies - Third Party Payment,30034871,THE BARNETGROUP LIMITED,"1,320.00",11/09/2014
Delivery Units,Adults and Communities,Other Agencies - Third Party Payment,30034872,THE BARNETGROUP LIMITED,"1,320.00",11/09/2014
Delivery Units,Adults and Communities,Other Agencies - Third Party Payment,30034964,THE BARNETGROUP LIMITED,"2,200.00",12/09/2014
Delivery Units,Adults and Communities,Other Agencies - Third Party Payment,30034969,THE BARNETGROUP LIMITED,"3,920.00",12/09/2014
Delivery Units,Adults and Communities,Other Agencies - Third Party Payment,30036721,THE BARNETGROUP LIMITED,"12,382.50",19/09/2014
Delivery Units,Adults and Communities,Other Agencies - Third Party Payment,30036361,THE BEECHES UK LTD,"13,746.52",17/09/2014
Delivery Units,Adults and Communities,Other Agencies - Third Party Payment,30036571,THE CHRISTIAN CARE TRUST,"2,001.92",18/09/2014
Delivery Units,Adults and Communities,Other Agencies - Third Party Payment,30037177,THE CHRISTIAN CARE TRUST,"2,184.04",23/09/2014
Delivery Units,Adults and Communities,Other Agencies - Third Party Payment,30036303,THE CONIFERS,-522.35,17/09/2014
Delivery Units,Adults and Communities,Other Agencies - Third Party Payment,30036302,THE CONIFERS,"2,497.59",17/09/2014
Delivery Units,Adults and Communities,Other Agencies - Third Party Payment,30038612,THE DISABILITIES TRUST,"7,507.80",30/09/2014
Delivery Units,Adults and Communities,Other Agencies - Third Party Payment,30032169,THE DISABILITIES TRUST,"7,758.06",01/09/2014
Delivery Units,Adults and Communities,Other Agencies - Third Party Payment,30033622,THE DISABILITIES TRUST,"11,038.48",04/09/2014
Delivery Units,Adults and Communities,Other Agencies - Third Party Payment,30032256,THE DISABILITIES TRUST,"15,921.33",01/09/2014
Delivery Units,Adults and Communities,Other Agencies - Third Party Payment,30032257,THE DISABILITIES TRUST,"19,029.57",01/09/2014
Delivery Units,Adults and Communities,Other Agencies - Third Party Payment,30037829,THE EXTRA MILE CARE CO LTD,253.92,24/09/2014
Delivery Units,Adults and Communities,Other Agencies - Third Party Payment,30033802,THE EXTRA MILE CARE CO LTD,254.04,05/09/2014
Delivery Units,Adults and Communities,Other Agencies - Third Party Payment,30033804,THE EXTRA MILE CARE CO LTD,264.40,05/09/2014
Delivery Units,Adults and Communities,Other Agencies - Third Party Payment,30036700,THE EXTRA MILE CARE CO LTD,264.40,19/09/2014
Delivery Units,Adults and Communities,Other Agencies - Third Party Payment,30037822,THE EXTRA MILE CARE CO LTD,264.40,24/09/2014
Delivery Units,Adults and Communities,Other Agencies - Third Party Payment,30037832,THE EXTRA MILE CARE CO LTD,264.40,24/09/2014
Delivery Units,Adults and Communities,Other Agencies - Third Party Payment,30033269,THE EXTRA MILE CARE CO LTD,264.50,03/09/2014
Delivery Units,Adults and Communities,Other Agencies - Third Party Payment,30034138,THE EXTRA MILE CARE CO LTD,264.50,10/09/2014
Delivery Units,Adults and Communities,Other Agencies - Third Party Payment,30033831,THE EXTRA MILE CARE CO LTD,264.60,05/09/2014
Delivery Units,Adults and Communities,Other Agencies - Third Party Payment,30032491,THE EXTRA MILE CARE CO LTD,275.06,02/09/2014
Delivery Units,Adults and Communities,Other Agencies - Third Party Payment,30037135,THE EXTRA MILE CARE CO LTD,275.08,23/09/2014
Delivery Units,Adults and Communities,Other Agencies - Third Party Payment,30034058,THE EXTRA MILE CARE CO LTD,285.60,09/09/2014
Delivery Units,Adults and Communities,Other Agencies - Third Party Payment,30037889,THE EXTRA MILE CARE CO LTD,285.64,24/09/2014
Delivery Units,Adults and Communities,Other Agencies - Third Party Payment,30032095,THE EXTRA MILE CARE CO LTD,285.66,01/09/2014
Delivery Units,Adults and Communities,Other Agencies - Third Party Payment,30033808,THE EXTRA MILE CARE CO LTD,285.66,05/09/2014
Delivery Units,Adults and Communities,Other Agencies - Third Party Payment,30037836,THE EXTRA MILE CARE CO LTD,285.66,24/09/2014
Delivery Units,Adults and Communities,Other Agencies - Third Party Payment,30038063,THE EXTRA MILE CARE CO LTD,285.66,25/09/2014
Delivery Units,Adults and Communities,Other Agencies - Third Party Payment,30037835,THE EXTRA MILE CARE CO LTD,291.00,24/09/2014
Delivery Units,Adults and Communities,Other Agencies - Third Party Payment,30033812,THE EXTRA MILE CARE CO LTD,296.24,05/09/2014
Delivery Units,Adults and Communities,Other Agencies - Third Party Payment,30033968,THE EXTRA MILE CARE CO LTD,296.24,08/09/2014
Delivery Units,Adults and Communities,Other Agencies - Third Party Payment,30033981,THE EXTRA MILE CARE CO LTD,296.24,08/09/2014
Delivery Units,Adults and Communities,Other Agencies - Third Party Payment,30033985,THE EXTRA MILE CARE CO LTD,296.24,08/09/2014
Delivery Units,Adults and Communities,Other Agencies - Third Party Payment,30033992,THE EXTRA MILE CARE CO LTD,296.24,08/09/2014
Delivery Units,Adults and Communities,Other Agencies - Third Party Payment,30034139,THE EXTRA MILE CARE CO LTD,296.24,10/09/2014
Delivery Units,Adults and Communities,Other Agencies - Third Party Payment,30036843,THE EXTRA MILE CARE CO LTD,296.24,22/09/2014
Delivery Units,Adults and Communities,Other Agencies - Third Party Payment,30036846,THE EXTRA MILE CARE CO LTD,296.24,22/09/2014
Delivery Units,Adults and Communities,Other Agencies - Third Party Payment,30036853,THE EXTRA MILE CARE CO LTD,296.24,22/09/2014
Delivery Units,Adults and Communities,Other Agencies - Third Party Payment,30037840,THE EXTRA MILE CARE CO LTD,296.24,24/09/2014
Delivery Units,Adults and Communities,Other Agencies - Third Party Payment,30037898,THE EXTRA MILE CARE CO LTD,296.24,24/09/2014
Delivery Units,Adults and Communities,Other Agencies - Third Party Payment,30038074,THE EXTRA MILE CARE CO LTD,296.24,25/09/2014
Delivery Units,Adults and Communities,Other Agencies - Third Party Payment,30033821,THE EXTRA MILE CARE CO LTD,298.82,05/09/2014
Delivery Units,Adults and Communities,Other Agencies - Third Party Payment,30037824,THE EXTRA MILE CARE CO LTD,304.06,24/09/2014
Delivery Units,Adults and Communities,Other Agencies - Third Party Payment,30034836,THE EXTRA MILE CARE CO LTD,304.18,11/09/2014
Delivery Units,Adults and Communities,Other Agencies - Third Party Payment,30033801,THE EXTRA MILE CARE CO LTD,306.80,05/09/2014
Delivery Units,Adults and Communities,Other Agencies - Third Party Payment,30033271,THE EXTRA MILE CARE CO LTD,306.92,03/09/2014
Delivery Units,Adults and Communities,Other Agencies - Third Party Payment,30036705,THE EXTRA MILE CARE CO LTD,317.28,19/09/2014
Delivery Units,Adults and Communities,Other Agencies - Third Party Payment,30036845,THE EXTRA MILE CARE CO LTD,317.28,22/09/2014
Delivery Units,Adults and Communities,Other Agencies - Third Party Payment,30036841,THE EXTRA MILE CARE CO LTD,325.38,22/09/2014
Delivery Units,Adults and Communities,Other Agencies - Third Party Payment,30033987,THE EXTRA MILE CARE CO LTD,327.98,08/09/2014
Delivery Units,Adults and Communities,Other Agencies - Third Party Payment,30038048,THE EXTRA MILE CARE CO LTD,328.08,25/09/2014
Delivery Units,Adults and Communities,Other Agencies - Third Party Payment,30033813,THE EXTRA MILE CARE CO LTD,338.54,05/09/2014
Delivery Units,Adults and Communities,Other Agencies - Third Party Payment,30037841,THE EXTRA MILE CARE CO LTD,338.54,24/09/2014
Delivery Units,Adults and Communities,Other Agencies - Third Party Payment,30033807,THE EXTRA MILE CARE CO LTD,351.88,05/09/2014
Delivery Units,Adults and Communities,Other Agencies - Third Party Payment,30032094,THE EXTRA MILE CARE CO LTD,356.94,01/09/2014
Delivery Units,Adults and Communities,Other Agencies - Third Party Payment,30032101,THE EXTRA MILE CARE CO LTD,356.94,01/09/2014
Delivery Units,Adults and Communities,Other Agencies - Third Party Payment,30032105,THE EXTRA MILE CARE CO LTD,356.94,01/09/2014
Delivery Units,Adults and Communities,Other Agencies - Third Party Payment,30037138,THE EXTRA MILE CARE CO LTD,356.94,23/09/2014
Delivery Units,Adults and Communities,Other Agencies - Third Party Payment,30037863,THE EXTRA MILE CARE CO LTD,356.94,24/09/2014
Delivery Units,Adults and Communities,Other Agencies - Third Party Payment,30032109,THE EXTRA MILE CARE CO LTD,370.16,01/09/2014
Delivery Units,Adults and Communities,Other Agencies - Third Party Payment,30032484,THE EXTRA MILE CARE CO LTD,370.16,02/09/2014
Delivery Units,Adults and Communities,Other Agencies - Third Party Payment,30033960,THE EXTRA MILE CARE CO LTD,370.16,08/09/2014
Delivery Units,Adults and Communities,Other Agencies - Third Party Payment,30034140,THE EXTRA MILE CARE CO LTD,370.16,10/09/2014
Delivery Units,Adults and Communities,Other Agencies - Third Party Payment,30036852,THE EXTRA MILE CARE CO LTD,370.16,22/09/2014
Delivery Units,Adults and Communities,Other Agencies - Third Party Payment,30037130,THE EXTRA MILE CARE CO LTD,370.16,23/09/2014
Delivery Units,Adults and Communities,Other Agencies - Third Party Payment,30037880,THE EXTRA MILE CARE CO LTD,370.16,24/09/2014
Delivery Units,Adults and Communities,Other Agencies - Third Party Payment,30037834,THE EXTRA MILE CARE CO LTD,370.40,24/09/2014
Delivery Units,Adults and Communities,Other Agencies - Third Party Payment,30037878,THE EXTRA MILE CARE CO LTD,388.68,24/09/2014
Delivery Units,Adults and Communities,Other Agencies - Third Party Payment,30033973,THE EXTRA MILE CARE CO LTD,404.94,08/09/2014
Delivery Units,Adults and Communities,Other Agencies - Third Party Payment,30033977,THE EXTRA MILE CARE CO LTD,420.46,08/09/2014
Delivery Units,Adults and Communities,Other Agencies - Third Party Payment,30033828,THE EXTRA MILE CARE CO LTD,423.20,05/09/2014
Delivery Units,Adults and Communities,Other Agencies - Third Party Payment,30037854,THE EXTRA MILE CARE CO LTD,423.20,24/09/2014
Delivery Units,Adults and Communities,Other Agencies - Third Party Payment,30037838,THE EXTRA MILE CARE CO LTD,436.26,24/09/2014
Delivery Units,Adults and Communities,Other Agencies - Third Party Payment,30033266,THE EXTRA MILE CARE CO LTD,436.70,03/09/2014
Delivery Units,Adults and Communities,Other Agencies - Third Party Payment,30038060,THE EXTRA MILE CARE CO LTD,436.70,25/09/2014
Delivery Units,Adults and Communities,Other Agencies - Third Party Payment,30032102,THE EXTRA MILE CARE CO LTD,444.64,01/09/2014
Delivery Units,Adults and Communities,Other Agencies - Third Party Payment,30033959,THE EXTRA MILE CARE CO LTD,444.64,08/09/2014
Delivery Units,Adults and Communities,Other Agencies - Third Party Payment,30033993,THE EXTRA MILE CARE CO LTD,444.64,08/09/2014
Delivery Units,Adults and Communities,Other Agencies - Third Party Payment,30037128,THE EXTRA MILE CARE CO LTD,444.64,23/09/2014
Delivery Units,Adults and Communities,Other Agencies - Third Party Payment,30037862,THE EXTRA MILE CARE CO LTD,444.64,24/09/2014
Delivery Units,Adults and Communities,Other Agencies - Third Party Payment,30037908,THE EXTRA MILE CARE CO LTD,444.64,24/09/2014
Delivery Units,Adults and Communities,Other Agencies - Third Party Payment,30037873,THE EXTRA MILE CARE CO LTD,449.92,24/09/2014
Delivery Units,Adults and Communities,Other Agencies - Third Party Payment,30033975,THE EXTRA MILE CARE CO LTD,457.72,08/09/2014
Delivery Units,Adults and Communities,Other Agencies - Third Party Payment,30037850,THE EXTRA MILE CARE CO LTD,462.70,24/09/2014
Delivery Units,Adults and Communities,Other Agencies - Third Party Payment,30033810,THE EXTRA MILE CARE CO LTD,475.92,05/09/2014
Delivery Units,Adults and Communities,Other Agencies - Third Party Payment,30038071,THE EXTRA MILE CARE CO LTD,486.86,25/09/2014
Delivery Units,Adults and Communities,Other Agencies - Third Party Payment,30034141,THE EXTRA MILE CARE CO LTD,507.84,10/09/2014
Delivery Units,Adults and Communities,Other Agencies - Third Party Payment,30037874,THE EXTRA MILE CARE CO LTD,507.98,24/09/2014
Delivery Units,Adults and Communities,Other Agencies - Third Party Payment,30038055,THE EXTRA MILE CARE CO LTD,507.98,25/09/2014
Delivery Units,Adults and Communities,Other Agencies - Third Party Payment,30033800,THE EXTRA MILE CARE CO LTD,510.62,05/09/2014
Delivery Units,Adults and Communities,Other Agencies - Third Party Payment,30033832,THE EXTRA MILE CARE CO LTD,515.92,05/09/2014
Delivery Units,Adults and Communities,Other Agencies - Third Party Payment,30032098,THE EXTRA MILE CARE CO LTD,518.56,01/09/2014
Delivery Units,Adults and Communities,Other Agencies - Third Party Payment,30032099,THE EXTRA MILE CARE CO LTD,518.56,01/09/2014
Delivery Units,Adults and Communities,Other Agencies - Third Party Payment,30032479,THE EXTRA MILE CARE CO LTD,518.56,02/09/2014
Delivery Units,Adults and Communities,Other Agencies - Third Party Payment,30033954,THE EXTRA MILE CARE CO LTD,518.56,08/09/2014
Delivery Units,Adults and Communities,Other Agencies - Third Party Payment,30036848,THE EXTRA MILE CARE CO LTD,518.56,22/09/2014
Delivery Units,Adults and Communities,Other Agencies - Third Party Payment,30036849,THE EXTRA MILE CARE CO LTD,518.56,22/09/2014
Delivery Units,Adults and Communities,Other Agencies - Third Party Payment,30037828,THE EXTRA MILE CARE CO LTD,518.56,24/09/2014
Delivery Units,Adults and Communities,Other Agencies - Third Party Payment,30037876,THE EXTRA MILE CARE CO LTD,518.56,24/09/2014
Delivery Units,Adults and Communities,Other Agencies - Third Party Payment,30038067,THE EXTRA MILE CARE CO LTD,518.56,25/09/2014
Delivery Units,Adults and Communities,Other Agencies - Third Party Payment,30033835,THE EXTRA MILE CARE CO LTD,526.46,05/09/2014
Delivery Units,Adults and Communities,Other Agencies - Third Party Payment,30037869,THE EXTRA MILE CARE CO LTD,528.80,24/09/2014
Delivery Units,Adults and Communities,Other Agencies - Third Party Payment,30032477,THE EXTRA MILE CARE CO LTD,550.00,02/09/2014
Delivery Units,Adults and Communities,Other Agencies - Third Party Payment,30033974,THE EXTRA MILE CARE CO LTD,555.56,08/09/2014
Delivery Units,Adults and Communities,Other Agencies - Third Party Payment,30033794,THE EXTRA MILE CARE CO LTD,562.01,05/09/2014
Delivery Units,Adults and Communities,Other Agencies - Third Party Payment,30037896,THE EXTRA MILE CARE CO LTD,566.16,24/09/2014
Delivery Units,Adults and Communities,Other Agencies - Third Party Payment,30038068,THE EXTRA MILE CARE CO LTD,568.46,25/09/2014
Delivery Units,Adults and Communities,Other Agencies - Third Party Payment,30033803,THE EXTRA MILE CARE CO LTD,571.44,05/09/2014
Delivery Units,Adults and Communities,Other Agencies - Third Party Payment,30037133,THE EXTRA MILE CARE CO LTD,571.44,23/09/2014
Delivery Units,Adults and Communities,Other Agencies - Third Party Payment,30037831,THE EXTRA MILE CARE CO LTD,571.44,24/09/2014
Delivery Units,Adults and Communities,Other Agencies - Third Party Payment,30037833,THE EXTRA MILE CARE CO LTD,576.60,24/09/2014
Delivery Units,Adults and Communities,Other Agencies - Third Party Payment,30033806,THE EXTRA MILE CARE CO LTD,584.54,05/09/2014
Delivery Units,Adults and Communities,Other Agencies - Third Party Payment,30037867,THE EXTRA MILE CARE CO LTD,584.62,24/09/2014
Delivery Units,Adults and Communities,Other Agencies - Third Party Payment,30032475,THE EXTRA MILE CARE CO LTD,592.48,02/09/2014
Delivery Units,Adults and Communities,Other Agencies - Third Party Payment,30033793,THE EXTRA MILE CARE CO LTD,592.48,05/09/2014
Delivery Units,Adults and Communities,Other Agencies - Third Party Payment,30037134,THE EXTRA MILE CARE CO LTD,592.48,23/09/2014
Delivery Units,Adults and Communities,Other Agencies - Third Party Payment,30037900,THE EXTRA MILE CARE CO LTD,592.48,24/09/2014
Delivery Units,Adults and Communities,Other Agencies - Third Party Payment,30033962,THE EXTRA MILE CARE CO LTD,610.86,08/09/2014
Delivery Units,Adults and Communities,Other Agencies - Third Party Payment,30037137,THE EXTRA MILE CARE CO LTD,613.42,23/09/2014
Delivery Units,Adults and Communities,Other Agencies - Third Party Payment,30037860,THE EXTRA MILE CARE CO LTD,624.32,24/09/2014
Delivery Units,Adults and Communities,Other Agencies - Third Party Payment,30033982,THE EXTRA MILE CARE CO LTD,666.40,08/09/2014
Delivery Units,Adults and Communities,Other Agencies - Third Party Payment,30033990,THE EXTRA MILE CARE CO LTD,666.40,08/09/2014
Delivery Units,Adults and Communities,Other Agencies - Third Party Payment,30037895,THE EXTRA MILE CARE CO LTD,666.40,24/09/2014
Delivery Units,Adults and Communities,Other Agencies - Third Party Payment,30033972,THE EXTRA MILE CARE CO LTD,666.96,08/09/2014
Delivery Units,Adults and Communities,Other Agencies - Third Party Payment,30037906,THE EXTRA MILE CARE CO LTD,725.00,24/09/2014
Delivery Units,Adults and Communities,Other Agencies - Third Party Payment,30032474,THE EXTRA MILE CARE CO LTD,730.40,02/09/2014
Delivery Units,Adults and Communities,Other Agencies - Third Party Payment,30032481,THE EXTRA MILE CARE CO LTD,732.94,02/09/2014
Delivery Units,Adults and Communities,Other Agencies - Third Party Payment,30033952,THE EXTRA MILE CARE CO LTD,735.58,08/09/2014
Delivery Units,Adults and Communities,Other Agencies - Third Party Payment,30032483,THE EXTRA MILE CARE CO LTD,740.32,02/09/2014
Delivery Units,Adults and Communities,Other Agencies - Third Party Payment,30033823,THE EXTRA MILE CARE CO LTD,740.32,05/09/2014
Delivery Units,Adults and Communities,Other Agencies - Third Party Payment,30037848,THE EXTRA MILE CARE CO LTD,740.32,24/09/2014
Delivery Units,Adults and Communities,Other Agencies - Third Party Payment,30037879,THE EXTRA MILE CARE CO LTD,740.32,24/09/2014
Delivery Units,Adults and Communities,Other Agencies - Third Party Payment,30033799,THE EXTRA MILE CARE CO LTD,740.88,05/09/2014
Delivery Units,Adults and Communities,Other Agencies - Third Party Payment,30033991,THE EXTRA MILE CARE CO LTD,740.88,08/09/2014
Delivery Units,Adults and Communities,Other Agencies - Third Party Payment,30037136,THE EXTRA MILE CARE CO LTD,740.88,23/09/2014
Delivery Units,Adults and Communities,Other Agencies - Third Party Payment,30037857,THE EXTRA MILE CARE CO LTD,740.88,24/09/2014
Delivery Units,Adults and Communities,Other Agencies - Third Party Payment,30038050,THE EXTRA MILE CARE CO LTD,743.14,25/09/2014
Delivery Units,Adults and Communities,Other Agencies - Third Party Payment,30036847,THE EXTRA MILE CARE CO LTD,746.28,22/09/2014
Delivery Units,Adults and Communities,Other Agencies - Third Party Payment,30032100,THE EXTRA MILE CARE CO LTD,780.16,01/09/2014
Delivery Units,Adults and Communities,Other Agencies - Third Party Payment,30033956,THE EXTRA MILE CARE CO LTD,785.70,08/09/2014
Delivery Units,Adults and Communities,Other Agencies - Third Party Payment,30036698,THE EXTRA MILE CARE CO LTD,788.36,19/09/2014
Delivery Units,Adults and Communities,Other Agencies - Third Party Payment,30033979,THE EXTRA MILE CARE CO LTD,801.58,08/09/2014
Delivery Units,Adults and Communities,Other Agencies - Third Party Payment,30038078,THE EXTRA MILE CARE CO LTD,804.08,25/09/2014
Delivery Units,Adults and Communities,Other Agencies - Third Party Payment,30033270,THE EXTRA MILE CARE CO LTD,804.22,03/09/2014
Delivery Units,Adults and Communities,Other Agencies - Third Party Payment,30037912,THE EXTRA MILE CARE CO LTD,804.22,24/09/2014
Delivery Units,Adults and Communities,Other Agencies - Third Party Payment,30038064,THE EXTRA MILE CARE CO LTD,804.22,25/09/2014
Delivery Units,Adults and Communities,Other Agencies - Third Party Payment,30032485,THE EXTRA MILE CARE CO LTD,814.80,02/09/2014
Delivery Units,Adults and Communities,Other Agencies - Third Party Payment,30032489,THE EXTRA MILE CARE CO LTD,814.80,02/09/2014
Delivery Units,Adults and Communities,Other Agencies - Third Party Payment,30033796,THE EXTRA MILE CARE CO LTD,814.80,05/09/2014
Delivery Units,Adults and Communities,Other Agencies - Third Party Payment,30033958,THE EXTRA MILE CARE CO LTD,814.80,08/09/2014
Delivery Units,Adults and Communities,Other Agencies - Third Party Payment,30036699,THE EXTRA MILE CARE CO LTD,814.80,19/09/2014
Delivery Units,Adults and Communities,Other Agencies - Third Party Payment,30036701,THE EXTRA MILE CARE CO LTD,814.80,19/09/2014
Delivery Units,Adults and Communities,Other Agencies - Third Party Payment,30037861,THE EXTRA MILE CARE CO LTD,814.80,24/09/2014
Delivery Units,Adults and Communities,Other Agencies - Third Party Payment,30037881,THE EXTRA MILE CARE CO LTD,814.80,24/09/2014
Delivery Units,Adults and Communities,Other Agencies - Third Party Payment,30037910,THE EXTRA MILE CARE CO LTD,814.80,24/09/2014
Delivery Units,Adults and Communities,Other Agencies - Third Party Payment,30033819,THE EXTRA MILE CARE CO LTD,820.08,05/09/2014
Delivery Units,Adults and Communities,Other Agencies - Third Party Payment,30036702,THE EXTRA MILE CARE CO LTD,825.38,19/09/2014
Delivery Units,Adults and Communities,Other Agencies - Third Party Payment,30033970,THE EXTRA MILE CARE CO LTD,888.72,08/09/2014
Delivery Units,Adults and Communities,Other Agencies - Third Party Payment,30033978,THE EXTRA MILE CARE CO LTD,888.72,08/09/2014
Delivery Units,Adults and Communities,Other Agencies - Third Party Payment,30037872,THE EXTRA MILE CARE CO LTD,888.72,24/09/2014
Delivery Units,Adults and Communities,Other Agencies - Third Party Payment,30033264,THE EXTRA MILE CARE CO LTD,889.28,03/09/2014
Delivery Units,Adults and Communities,Other Agencies - Third Party Payment,30038058,THE EXTRA MILE CARE CO LTD,889.28,25/09/2014
Delivery Units,Adults and Communities,Other Agencies - Third Party Payment,30037131,THE EXTRA MILE CARE CO LTD,909.84,23/09/2014
Delivery Units,Adults and Communities,Other Agencies - Third Party Payment,30037849,THE EXTRA MILE CARE CO LTD,910.08,24/09/2014
Delivery Units,Adults and Communities,Other Agencies - Third Party Payment,30037129,THE EXTRA MILE CARE CO LTD,912.76,23/09/2014
Delivery Units,Adults and Communities,Other Agencies - Third Party Payment,30033826,THE EXTRA MILE CARE CO LTD,923.32,05/09/2014
Delivery Units,Adults and Communities,Other Agencies - Third Party Payment,30038070,THE EXTRA MILE CARE CO LTD,938.84,25/09/2014
Delivery Units,Adults and Communities,Other Agencies - Third Party Payment,30033957,THE EXTRA MILE CARE CO LTD,941.84,08/09/2014
Delivery Units,Adults and Communities,Other Agencies - Third Party Payment,30032490,THE EXTRA MILE CARE CO LTD,955.26,02/09/2014
Delivery Units,Adults and Communities,Other Agencies - Third Party Payment,30032106,THE EXTRA MILE CARE CO LTD,963.20,01/09/2014
Delivery Units,Adults and Communities,Other Agencies - Third Party Payment,30038066,THE EXTRA MILE CARE CO LTD,963.20,25/09/2014
Delivery Units,Adults and Communities,Other Agencies - Third Party Payment,30038061,THE EXTRA MILE CARE CO LTD,971.14,25/09/2014
Delivery Units,Adults and Communities,Other Agencies - Third Party Payment,30033825,THE EXTRA MILE CARE CO LTD,989.24,05/09/2014
Delivery Units,Adults and Communities,Other Agencies - Third Party Payment,30038047,THE EXTRA MILE CARE CO LTD,999.48,25/09/2014
Delivery Units,Adults and Communities,Other Agencies - Third Party Payment,30037845,THE EXTRA MILE CARE CO LTD,"1,016.08",24/09/2014
Delivery Units,Adults and Communities,Other Agencies - Third Party Payment,30037851,THE EXTRA MILE CARE CO LTD,"1,034.18",24/09/2014
Delivery Units,Adults and Communities,Other Agencies - Third Party Payment,30033814,THE EXTRA MILE CARE CO LTD,"1,037.12",05/09/2014
Delivery Units,Adults and Communities,Other Agencies - Third Party Payment,30033815,THE EXTRA MILE CARE CO LTD,"1,037.12",05/09/2014
Delivery Units,Adults and Communities,Other Agencies - Third Party Payment,30037842,THE EXTRA MILE CARE CO LTD,"1,037.12",24/09/2014
Delivery Units,Adults and Communities,Other Agencies - Third Party Payment,30037843,THE EXTRA MILE CARE CO LTD,"1,037.12",24/09/2014
Delivery Units,Adults and Communities,Other Agencies - Third Party Payment,30033983,THE EXTRA MILE CARE CO LTD,"1,039.74",08/09/2014
Delivery Units,Adults and Communities,Other Agencies - Third Party Payment,30034837,THE EXTRA MILE CARE CO LTD,"1,042.52",11/09/2014
Delivery Units,Adults and Communities,Other Agencies - Third Party Payment,30037887,THE EXTRA MILE CARE CO LTD,"1,055.74",24/09/2014
Delivery Units,Adults and Communities,Other Agencies - Third Party Payment,30033955,THE EXTRA MILE CARE CO LTD,"1,060.94",08/09/2014
Delivery Units,Adults and Communities,Other Agencies - Third Party Payment,30032478,THE EXTRA MILE CARE CO LTD,"1,090.00",02/09/2014
Delivery Units,Adults and Communities,Other Agencies - Third Party Payment,30033989,THE EXTRA MILE CARE CO LTD,"1,090.00",08/09/2014
Delivery Units,Adults and Communities,Other Agencies - Third Party Payment,30037903,THE EXTRA MILE CARE CO LTD,"1,090.00",24/09/2014
Delivery Units,Adults and Communities,Other Agencies - Third Party Payment,30034060,THE EXTRA MILE CARE CO LTD,"1,111.04",09/09/2014
Delivery Units,Adults and Communities,Other Agencies - Third Party Payment,30038077,THE EXTRA MILE CARE CO LTD,"1,111.04",25/09/2014
Delivery Units,Adults and Communities,Other Agencies - Third Party Payment,30033827,THE EXTRA MILE CARE CO LTD,"1,174.16",05/09/2014
Delivery Units,Adults and Communities,Other Agencies - Third Party Payment,30037853,THE EXTRA MILE CARE CO LTD,"1,174.16",24/09/2014
Delivery Units,Adults and Communities,Other Agencies - Third Party Payment,30033951,THE EXTRA MILE CARE CO LTD,"1,182.42",08/09/2014
Delivery Units,Adults and Communities,Other Agencies - Third Party Payment,30032096,THE EXTRA MILE CARE CO LTD,"1,235.64",01/09/2014
Delivery Units,Adults and Communities,Other Agencies - Third Party Payment,30036709,THE EXTRA MILE CARE CO LTD,"1,238.28",19/09/2014
Delivery Units,Adults and Communities,Other Agencies - Third Party Payment,30037890,THE EXTRA MILE CARE CO LTD,"1,298.82",24/09/2014
Delivery Units,Adults and Communities,Other Agencies - Third Party Payment,30033265,THE EXTRA MILE CARE CO LTD,"1,306.82",03/09/2014
Delivery Units,Adults and Communities,Other Agencies - Third Party Payment,30033980,THE EXTRA MILE CARE CO LTD,"1,352.16",08/09/2014
Delivery Units,Adults and Communities,Other Agencies - Third Party Payment,30037882,THE EXTRA MILE CARE CO LTD,"1,394.06",24/09/2014
Delivery Units,Adults and Communities,Other Agencies - Third Party Payment,30032493,THE EXTRA MILE CARE CO LTD,"1,396.14",02/09/2014
Delivery Units,Adults and Communities,Other Agencies - Third Party Payment,30032486,THE EXTRA MILE CARE CO LTD,"1,407.28",02/09/2014
Delivery Units,Adults and Communities,Other Agencies - Third Party Payment,30037859,THE EXTRA MILE CARE CO LTD,"1,407.28",24/09/2014
Delivery Units,Adults and Communities,Other Agencies - Third Party Payment,30037826,THE EXTRA MILE CARE CO LTD,"1,463.24",24/09/2014
Delivery Units,Adults and Communities,Other Agencies - Third Party Payment,30033798,THE EXTRA MILE CARE CO LTD,"1,473.82",05/09/2014
Delivery Units,Adults and Communities,Other Agencies - Third Party Payment,30037891,THE EXTRA MILE CARE CO LTD,"1,473.82",24/09/2014
Delivery Units,Adults and Communities,Other Agencies - Third Party Payment,30038049,THE EXTRA MILE CARE CO LTD,"1,597.04",25/09/2014
